Body Name,Trans. Date,Department Code,Department,Expense Area Code,Expense Area,Expense type code,Expense type,Amount Paid (�),Supplier name,Extended description,TransNo,Period
Rother District Council,30/12/2017,101RESOURCES,Resources,20241,Stationery,D2420,General office supplies (Stationery purchased from ext suppliers),94.30,Office Depot UK Ltd,General office supplies - Stationery (Stationery Services to buy ONLY),1005970,201912
Rother District Council,30/12/2017,101RESOURCES,Resources,20241,Stationery,D2420,General office supplies (Stationery purchased from ext suppliers),-94.30,Office Depot UK Ltd,General office supplies - Stationery (Stationery Services to buy ONLY),2015607,201911
Rother District Council,01/04/2019,091HOUSING,Housing and Community Services,20200,Housing Needs - HB (Housing Benefit),D2513,Hired and Contracted services,"2,500.00",YMCA Downslink Group,Hired and contracted services - Service fee paid,2015306,201911
Rother District Council,16/04/2019,041ENVIRON,Environmental Services,32134,EH Pollution R + W Partnership,D2352,Clothing and Uniforms,129.90,SuperStitch 86,Clothing and Uniforms - EnvH- Protective Clothing EnvHealth,2015085,201911
Rother District Council,05/08/2019,101RESOURCES,Resources,20209,Corporate management,D2513,Hired and Contracted services,111.00,Lloyds Bank,Bank Charges,2014652,201910
Rother District Council,30/09/2019,031RESOURCES,Executive Directors & Corporate Core,20171,Human Resources,D2513,Hired and Contracted services,499.50,Blue Planet Software Ltd,Hired and contracted services - Consultancy Service per Contract,2014547,201910
Rother District Council,04/10/2019,091HOUSING,Housing and Community Services,20200,Housing Needs - HB (Housing Benefit),D2514,Accommodation Costs,"7,500.00",Paramount Independent Property Services LLP,Accommodation Costs,2015870,201912
Rother District Council,07/10/2019,091HOUSING,Housing and Community Services,20107,Camber Beach & Foreshore,D1201,Equipment & Materials,"2,450.00",Rye Pilots,Equipment & Materials - Marker Buoys and Signs,2016102,201912
Rother District Council,09/10/2019,091HOUSING,Housing and Community Services,20204,Housing Administration Account,A2203,Training,590.00,Lloyds Bank,Training,2014800,201910
Rother District Council,09/10/2019,101RESOURCES,Resources,20239,Computer Services,C2335,Public transport,129.00,Lloyds Bank,Public Transport - Train tickets,2014802,201910
Rother District Council,09/10/2019,091HOUSING,Housing and Community Services,20145,Maintenance Services,D1201,Equipment & Materials,9.40,Lloyds Bank,Equipment & Materials - Purchase of Tools,2014802,201910
Rother District Council,09/10/2019,101RESOURCES,Resources,20241,Stationery,D2420,General office supplies (Stationery purchased from ext suppliers),140.50,Lloyds Bank,General office supplies - Stationery (Stationery Services to buy ONLY),2014802,201910
Rother District Council,09/10/2019,031RESOURCES,Executive Directors & Corporate Core,20182,Legal Services,D2513,Hired and Contracted services,-7.50,Lloyds Bank,Hired and contracted services - Service fee paid,2014799,201910
Rother District Council,09/10/2019,101RESOURCES,Resources,20216,Cost Of Collection,D2513,Hired and Contracted services,1.50,Lloyds Bank,Hired and contracted services - Council Tax-Land Registry Enquiries,2014802,201910
Rother District Council,09/10/2019,091HOUSING,Housing and Community Services,20206,Syrians,D2513,Hired and Contracted services,54.20,Lloyds Bank,Hired and contracted services - Syrian-Education-Exempt VAT,2014801,201910
Rother District Council,09/10/2019,091HOUSING,Housing and Community Services,20206,Syrians,D2513,Hired and Contracted services,37.29,Lloyds Bank,Hired and contracted services - Syrian Resettlement Programme-Furniture,2014801,201910
Rother District Council,09/10/2019,091HOUSING,Housing and Community Services,20206,Syrians,D2513,Hired and Contracted services,387.20,Lloyds Bank,Hired and contracted services - Syrian Resettlement Programme-Travel,2014801,201910
Rother District Council,09/10/2019,081ACQUISIT,"Acquisitions, Transformation and Regeneration",20144,Property Management,D2518,Advertising,37.50,Lloyds Bank,Advertising - Newspapers/Magazine,2014800,201910
Rother District Council,09/10/2019,081ACQUISIT,"Acquisitions, Transformation and Regeneration",20144,Property Management,D2518,Advertising,37.50,Lloyds Bank,Advertising - Newspapers/Magazine,2014800,201910
Rother District Council,09/10/2019,081ACQUISIT,"Acquisitions, Transformation and Regeneration",20144,Property Management,D2518,Advertising,37.50,Lloyds Bank,Advertising - Newspapers/Magazine,2014800,201910
Rother District Council,09/10/2019,101RESOURCES,Resources,20239,Computer Services,D2622,Mobile Phones,34.90,Lloyds Bank,Mobile Phones - Purchase of mobile phones,2014802,201910
Rother District Council,09/10/2019,101RESOURCES,Resources,20239,Computer Services,D2622,Mobile Phones,62.45,Lloyds Bank,Mobile Phones - Purchase of mobile phones,2014802,201910
Rother District Council,09/10/2019,031RESOURCES,Executive Directors & Corporate Core,20270,Preparation for EU Exit,D2633,Computer Equipment,246.75,Lloyds Bank,Computer Equipment - New - Computer Hardware,2014799,201910
Rother District Council,09/10/2019,101RESOURCES,Resources,20239,Computer Services,D2633,Computer Equipment,22.72,Lloyds Bank,Computer Equipment - New - Computer Hardware,2014799,201910
Rother District Council,09/10/2019,101RESOURCES,Resources,20239,Computer Services,D2633,Computer Equipment,605.71,Lloyds Bank,Computer Equipment - New - Computer Hardware,2014799,201910
Rother District Council,09/10/2019,101RESOURCES,Resources,20239,Computer Services,D2633,Computer Equipment,54.95,Lloyds Bank,Computer Equipment - New - Computer Hardware,2014799,201910
Rother District Council,09/10/2019,031RESOURCES,Executive Directors & Corporate Core,20270,Preparation for EU Exit,D2633,Computer Equipment,40.41,Lloyds Bank,Computer Equipment - Carry Case,2014799,201910
Rother District Council,09/10/2019,101RESOURCES,Resources,20239,Computer Services,D2635,Computer Licences,49.95,Lloyds Bank,Computer Licences - Website Management,2014802,201910
Rother District Council,09/10/2019,101RESOURCES,Resources,20239,Computer Services,D2635,Computer Licences,19.98,Lloyds Bank,Computer Licences - Domain Name Renewal,2014802,201910
Rother District Council,09/10/2019,091HOUSING,Housing and Community Services,20109,Sports Development,D2738,Conferences,275.00,Lloyds Bank,Conferences - Officers Conference fees,2014799,201910
Rother District Council,10/10/2019,091HOUSING,Housing and Community Services,20114,Bexhill Parks & Open Spaces,B1100,Repairs to Premises,"3,789.00",Southern Land Services Ltd,Repairs to Premises - Parks- Landscaping Works,2016171,201912
Rother District Council,15/10/2019,091HOUSING,Housing and Community Services,20128,Public Conveniences,B1100,Repairs to Premises,129.61,Alfa Electric Ltd,Repairs to Premises - Repairs - Electrical Works,2014556,201910
Rother District Council,17/10/2019,101RESOURCES,Resources,20217,Reliefs & Benefits-Council Tax Benefit,D2513,Hired and Contracted services,130.00,Victoria Solutions Ltd t/a Victoria Forms,Hired and Contracted services,2014654,201910
Rother District Council,25/10/2019,041ENVIRON,Environmental Services,32143,EH Licenses and Registration R + W Partnership,D2513,Hired and Contracted services,368.28,Fairfield House Veterinary Surgery,Hired and contracted services - EnvH-Veterinary Services for Licens,2015869,201912
Rother District Council,29/10/2019,031RESOURCES,Executive Directors & Corporate Core,20171,Human Resources,D1201,Equipment & Materials,88.35,Office Furniture Online,Equipment & Materials - Health and Safety Act Equipment,2014738,201910
Rother District Council,30/10/2019,031RESOURCES,Executive Directors & Corporate Core,20270,Preparation for EU Exit,D2632,Additional Computer Equipment,-336.00,UK Computer Group Ltd T/A  Misco,Additional Computer Equipment,2015427,201911
Rother District Council,31/10/2019,031RESOURCES,Executive Directors & Corporate Core,20173,Administrative Offices - Town Hall,B1100,Repairs to Premises,"1,804.00",Alfa Electric Ltd,Repairs to Premises - Portable Appliance Testing (PAT),2014557,201910
Rother District Council,31/10/2019,071STRAT,Strategy and Planning,20246,Planning Applications,D2513,Hired and Contracted services,"1,300.00",Altair Consultancy & Advisory Services Ltd,Hired and contracted services - Valuation Services,2014735,201910
Rother District Council,31/10/2019,071STRAT,Strategy and Planning,20246,Planning Applications,D2513,Hired and Contracted services,900.00,Altair Consultancy & Advisory Services Ltd,Hired and contracted services - Valuation Services,2014880,201910
Rother District Council,01/11/2019,021CORP,Corporate Services & Human Resources,20166,Parliamentary Elections,B2312,Hire of premises (RDC),250.00,Dallington Old School Village Hall,Hire of premises (RDC),2014914,201910
Rother District Council,01/11/2019,071STRAT,Strategy and Planning,20249,Planning Appeals,D2513,Hired and Contracted services,320.00,Manor Barn Ltd,Hired and Contracted services,2015086,201911
Rother District Council,04/11/2019,081ACQUISIT,"Acquisitions, Transformation and Regeneration",20153,"Elva Business Centre, Bexhill",B1100,Repairs to Premises,127.40,J M Waste Management Limited,Contract cleaning - Office Cleaning,2015551,201911
Rother District Council,04/11/2019,081ACQUISIT,"Acquisitions, Transformation and Regeneration",20155,Investment properties,B2201,Electricity,108.99,Opus Energy Ltd,Electricity - Electricity Charges,2014753,201910
Rother District Council,04/11/2019,091HOUSING,Housing and Community Services,20200,Housing Needs - HB (Housing Benefit),D2514,Accommodation Costs,"7,500.00",Paramount Independent Property Services LLP,Accommodation Costs,2015871,201912
Rother District Council,05/11/2019,031RESOURCES,Executive Directors & Corporate Core,20176,Administrative Offices - Print Room,B1100,Repairs to Premises,169.07,Alfa Electric Ltd,Repairs to Premises - Portable Appliance Testing (PAT),2014558,201910
Rother District Council,07/11/2019,021CORP,Corporate Services & Human Resources,20166,Parliamentary Elections,B2312,Hire of premises (RDC),312.00,Battle Methodist Church,Hire of premises (RDC),2014916,201910
Rother District Council,07/11/2019,021CORP,Corporate Services & Human Resources,20166,Parliamentary Elections,B2312,Hire of premises (RDC),280.00,Beckley Village Hall,Hire of premises (RDC),2014893,201910
Rother District Council,07/11/2019,021CORP,Corporate Services & Human Resources,20166,Parliamentary Elections,B2312,Hire of premises (RDC),157.50,Mountfield Village Hall,Hire of premises (RDC),2014917,201910
Rother District Council,07/11/2019,021CORP,Corporate Services & Human Resources,20166,Parliamentary Elections,B2312,Hire of premises (RDC),285.00,St Mark�s Church,Hire of premises (RDC),2014935,201910
Rother District Council,07/11/2019,021CORP,Corporate Services & Human Resources,20166,Parliamentary Elections,B2312,Hire of premises (RDC),200.00,Whatlington Village Hall,Hire of premises (RDC),2014886,201910
Rother District Council,08/11/2019,091HOUSING,Housing and Community Services,20128,Public Conveniences,B1100,Repairs to Premises,332.91,Alfa Electric Ltd,Repairs to Premises - Repairs - Electrical Works,2014559,201910
Rother District Council,08/11/2019,021CORP,Corporate Services & Human Resources,20166,Parliamentary Elections,B2312,Hire of premises (RDC),155.00,Sackville Road Methodist Church,Hire of premises (RDC),2014885,201910
Rother District Council,08/11/2019,021CORP,Corporate Services & Human Resources,20166,Parliamentary Elections,B2312,Hire of premises (RDC),176.00,Sedlescombe Village Hall,Hire of premises (RDC),2014926,201910
Rother District Council,09/11/2019,021CORP,Corporate Services & Human Resources,20166,Parliamentary Elections,B2312,Hire of premises (RDC),162.50,All Saints Church Sidley,Hire of premises (RDC),2014908,201910
Rother District Council,10/11/2019,021CORP,Corporate Services & Human Resources,20166,Parliamentary Elections,B2312,Hire of premises (RDC),150.00,Hurst Green Village Hall,Hire of premises (RDC),2014883,201910
Rother District Council,11/11/2019,021CORP,Corporate Services & Human Resources,20166,Parliamentary Elections,B2312,Hire of premises (RDC),180.00,Ashburnham and  Penhurst Parish Council,Hire of premises (RDC),2014892,201910
Rother District Council,11/11/2019,071STRAT,Strategy and Planning,20246,Planning Applications,D1201,Equipment & Materials,95.70,Lloyds Bank,Equipment & Materials - Purchase of Tools,2014778,201910
Rother District Council,11/11/2019,091HOUSING,Housing and Community Services,20206,Syrians,D2513,Hired and Contracted services,70.98,Lloyds Bank,Hired and contracted services - Syrian-Education-Exempt VAT,2014779,201910
Rother District Council,11/11/2019,091HOUSING,Housing and Community Services,20206,Syrians,D2513,Hired and Contracted services,79.50,Lloyds Bank,Hired and contracted services - Syrian Resettlement Programme-Furniture,2014779,201910
Rother District Council,11/11/2019,091HOUSING,Housing and Community Services,20206,Syrians,D2513,Hired and Contracted services,"1,462.20",Lloyds Bank,Hired and contracted services - Syrian Misc,2014779,201910
Rother District Council,11/11/2019,091HOUSING,Housing and Community Services,20206,Syrians,D2513,Hired and Contracted services,716.30,Lloyds Bank,Hired and contracted services - Syrian Resettlement Programme-Travel,2014779,201910
Rother District Council,11/11/2019,081ACQUISIT,"Acquisitions, Transformation and Regeneration",20144,Property Management,D2518,Advertising,37.50,Lloyds Bank,Advertising - Newspapers/Magazine,2014778,201910
Rother District Council,11/11/2019,081ACQUISIT,"Acquisitions, Transformation and Regeneration",20144,Property Management,D2518,Advertising,37.50,Lloyds Bank,Advertising - Newspapers/Magazine,2014778,201910
Rother District Council,11/11/2019,081ACQUISIT,"Acquisitions, Transformation and Regeneration",20144,Property Management,D2518,Advertising,37.50,Lloyds Bank,Advertising - Newspapers/Magazine,2014778,201910
Rother District Council,11/11/2019,031RESOURCES,Executive Directors & Corporate Core,20170,Communications-Postages,D2626,Postages,317.75,Lloyds Bank,Postages - Stamps,2014778,201910
Rother District Council,11/11/2019,031RESOURCES,Executive Directors & Corporate Core,20170,Communications-Postages,D2626,Postages,218.20,Lloyds Bank,Postages - Stamps,2014778,201910
Rother District Council,11/11/2019,031RESOURCES,Executive Directors & Corporate Core,20170,Communications-Postages,D2626,Postages,142.75,Lloyds Bank,Postages - Stamps,2014778,201910
Rother District Council,11/11/2019,101RESOURCES,Resources,20239,Computer Services,D2633,Computer Equipment,118.40,Lloyds Bank,Computer Equipment - Computer peripherals,2014778,201910
Rother District Council,11/11/2019,101RESOURCES,Resources,20239,Computer Services,D2633,Computer Equipment,39.10,Lloyds Bank,Computer Equipment - Computer peripherals,2014778,201910
Rother District Council,11/11/2019,101RESOURCES,Resources,20239,Computer Services,D2633,Computer Equipment,265.88,Lloyds Bank,Computer Equipment - TFT Monitor 19 Inch,2014778,201910
Rother District Council,11/11/2019,021CORP,Corporate Services & Human Resources,20166,Parliamentary Elections,B2312,Hire of premises (RDC),250.00,Northiam Village Hall Trust,Hire of premises (RDC),2014919,201910
Rother District Council,11/11/2019,021CORP,Corporate Services & Human Resources,20166,Parliamentary Elections,B2312,Hire of premises (RDC),108.50,Playden Women�s Institute Hall,Hire of premises (RDC),2014923,201910
Rother District Council,11/11/2019,021CORP,Corporate Services & Human Resources,20166,Parliamentary Elections,B2312,Hire of premises (RDC),375.00,Sidley Baptist Church,Hire of premises (RDC),2014909,201910
Rother District Council,11/11/2019,021CORP,Corporate Services & Human Resources,20166,Parliamentary Elections,B2312,Hire of premises (RDC),192.00,Stonegate Village Hall,Hire of premises (RDC),2014930,201910
Rother District Council,12/11/2019,021CORP,Corporate Services & Human Resources,20166,Parliamentary Elections,B2312,Hire of premises (RDC),250.00,Brightling Village Hall Committee,Hire of premises (RDC),2014910,201910
Rother District Council,12/11/2019,021CORP,Corporate Services & Human Resources,20166,Parliamentary Elections,B2312,Hire of premises (RDC),250.00,Life with Hope Trust/ Battle Baptist Church,Hire of premises (RDC),2014881,201910
Rother District Council,13/11/2019,091HOUSING,Housing and Community Services,20145,Maintenance Services,D1201,Equipment & Materials,29.88,Autolec Motor Factors,Equipment & Materials - Purchase of Tools,2014472,201910
Rother District Council,13/11/2019,081ACQUISIT,"Acquisitions, Transformation and Regeneration",20121,Programme and Policy Office,D2622,Mobile Phones,10.00,O2 (UK) Ltd,Mobile Phones,2014637,201910
Rother District Council,13/11/2019,081ACQUISIT,"Acquisitions, Transformation and Regeneration",20243,Business Improvement,D2622,Mobile Phones,14.35,O2 (UK) Ltd,Mobile Phones,2014637,201910
Rother District Council,13/11/2019,091HOUSING,Housing and Community Services,20120,Neighbourhood Services,D2622,Mobile Phones,10.00,O2 (UK) Ltd,Mobile Phones,2014634,201910
Rother District Council,13/11/2019,101RESOURCES,Resources,20215,Revenue and Benefits,D2622,Mobile Phones,10.00,O2 (UK) Ltd,Mobile Phones,2014633,201910
Rother District Council,13/11/2019,081ACQUISIT,"Acquisitions, Transformation and Regeneration",20122,Economic Development,D2622,Mobile Phones,10.00,O2 (UK) Ltd,Mobile Phones,2014637,201910
Rother District Council,13/11/2019,101RESOURCES,Resources,20239,Computer Services,D2622,Mobile Phones,10.00,O2 (UK) Ltd,Mobile Phones,2014633,201910
Rother District Council,13/11/2019,041ENVIRON,Environmental Services,20199,Food and Safety Team,D2622,Mobile Phones,10.00,O2 (UK) Ltd,Mobile Phones,2014635,201910
Rother District Council,13/11/2019,091HOUSING,Housing and Community Services,20120,Neighbourhood Services,D2622,Mobile Phones,34.23,O2 (UK) Ltd,Mobile Phones,2014634,201910
Rother District Council,13/11/2019,081ACQUISIT,"Acquisitions, Transformation and Regeneration",20263,"Head of Service Acquisitions, Transformation and Regeneration",D2622,Mobile Phones,10.00,O2 (UK) Ltd,Mobile Phones,2014637,201910
Rother District Council,13/11/2019,041ENVIRON,Environmental Services,20199,Food and Safety Team,D2622,Mobile Phones,10.00,O2 (UK) Ltd,Mobile Phones,2014635,201910
Rother District Council,13/11/2019,041ENVIRON,Environmental Services,20199,Food and Safety Team,D2622,Mobile Phones,10.00,O2 (UK) Ltd,Mobile Phones,2014635,201910
Rother District Council,13/11/2019,041ENVIRON,Environmental Services,20198,Licensing Team,D2622,Mobile Phones,10.00,O2 (UK) Ltd,Mobile Phones,2014635,201910
Rother District Council,13/11/2019,041ENVIRON,Environmental Services,20198,Licensing Team,D2622,Mobile Phones,10.00,O2 (UK) Ltd,Mobile Phones,2014635,201910
Rother District Council,13/11/2019,101RESOURCES,Resources,20222,Accountancy,D2622,Mobile Phones,10.00,O2 (UK) Ltd,Mobile Phones,2014633,201910
Rother District Council,13/11/2019,091HOUSING,Housing and Community Services,20264,Property Maintenance Team,D2622,Mobile Phones,10.00,O2 (UK) Ltd,Mobile Phones,2014634,201910
Rother District Council,13/11/2019,041ENVIRON,Environmental Services,20198,Licensing Team,D2622,Mobile Phones,10.00,O2 (UK) Ltd,Mobile Phones,2014635,201910
Rother District Council,13/11/2019,031RESOURCES,Executive Directors & Corporate Core,20185,Joint Waste procurement,D2622,Mobile Phones,10.00,O2 (UK) Ltd,Mobile Phones,2014636,201910
Rother District Council,13/11/2019,091HOUSING,Housing and Community Services,20204,Housing Administration Account,D2622,Mobile Phones,10.00,O2 (UK) Ltd,Mobile Phones,2014634,201910
Rother District Council,13/11/2019,041ENVIRON,Environmental Services,20265,Pollution Team,D2622,Mobile Phones,10.00,O2 (UK) Ltd,Mobile Phones,2014635,201910
Rother District Council,13/11/2019,041ENVIRON,Environmental Services,20265,Pollution Team,D2622,Mobile Phones,10.00,O2 (UK) Ltd,Mobile Phones,2014635,201910
Rother District Council,13/11/2019,041ENVIRON,Environmental Services,20265,Pollution Team,D2622,Mobile Phones,10.00,O2 (UK) Ltd,Mobile Phones,2014635,201910
Rother District Council,13/11/2019,101RESOURCES,Resources,20215,Revenue and Benefits,D2622,Mobile Phones,12.15,O2 (UK) Ltd,Mobile Phones,2014633,201910
Rother District Council,13/11/2019,101RESOURCES,Resources,20215,Revenue and Benefits,D2622,Mobile Phones,10.00,O2 (UK) Ltd,Mobile Phones,2014633,201910
Rother District Council,13/11/2019,091HOUSING,Housing and Community Services,20120,Neighbourhood Services,D2622,Mobile Phones,10.00,O2 (UK) Ltd,Mobile Phones,2014634,201910
Rother District Council,13/11/2019,091HOUSING,Housing and Community Services,20120,Neighbourhood Services,D2622,Mobile Phones,10.00,O2 (UK) Ltd,Mobile Phones,2014634,201910
Rother District Council,13/11/2019,091HOUSING,Housing and Community Services,20120,Neighbourhood Services,D2622,Mobile Phones,10.00,O2 (UK) Ltd,Mobile Phones,2014634,201910
Rother District Council,13/11/2019,091HOUSING,Housing and Community Services,20120,Neighbourhood Services,D2622,Mobile Phones,10.00,O2 (UK) Ltd,Mobile Phones,2014634,201910
Rother District Council,13/11/2019,091HOUSING,Housing and Community Services,20120,Neighbourhood Services,D2622,Mobile Phones,10.00,O2 (UK) Ltd,Mobile Phones,2014634,201910
Rother District Council,13/11/2019,091HOUSING,Housing and Community Services,20120,Neighbourhood Services,D2622,Mobile Phones,10.00,O2 (UK) Ltd,Mobile Phones,2014634,201910
Rother District Council,13/11/2019,091HOUSING,Housing and Community Services,20120,Neighbourhood Services,D2622,Mobile Phones,10.00,O2 (UK) Ltd,Mobile Phones,2014634,201910
Rother District Council,13/11/2019,091HOUSING,Housing and Community Services,20120,Neighbourhood Services,D2622,Mobile Phones,10.00,O2 (UK) Ltd,Mobile Phones,2014634,201910
Rother District Council,13/11/2019,091HOUSING,Housing and Community Services,20120,Neighbourhood Services,D2622,Mobile Phones,10.00,O2 (UK) Ltd,Mobile Phones,2014634,201910
Rother District Council,13/11/2019,091HOUSING,Housing and Community Services,20236,Customer Services and Development,D2622,Mobile Phones,15.00,O2 (UK) Ltd,Mobile Phones,2014634,201910
Rother District Council,13/11/2019,071STRAT,Strategy and Planning,20248,"Complaints,Compliance,Enforce",D2622,Mobile Phones,10.00,O2 (UK) Ltd,Mobile Phones,2014632,201910
Rother District Council,13/11/2019,041ENVIRON,Environmental Services,20265,Pollution Team,D2622,Mobile Phones,10.00,O2 (UK) Ltd,Mobile Phones,2014635,201910
Rother District Council,13/11/2019,091HOUSING,Housing and Community Services,20120,Neighbourhood Services,D2622,Mobile Phones,10.00,O2 (UK) Ltd,Mobile Phones,2014634,201910
Rother District Council,13/11/2019,081ACQUISIT,"Acquisitions, Transformation and Regeneration",20122,Economic Development,D2622,Mobile Phones,10.00,O2 (UK) Ltd,Mobile Phones,2014634,201910
Rother District Council,13/11/2019,091HOUSING,Housing and Community Services,20120,Neighbourhood Services,D2622,Mobile Phones,10.00,O2 (UK) Ltd,Mobile Phones,2014634,201910
Rother District Council,13/11/2019,091HOUSING,Housing and Community Services,20204,Housing Administration Account,D2622,Mobile Phones,10.00,O2 (UK) Ltd,Mobile Phones,2014634,201910
Rother District Council,13/11/2019,031RESOURCES,Executive Directors & Corporate Core,20171,Human Resources,D2622,Mobile Phones,10.00,O2 (UK) Ltd,Mobile Phones,2014636,201910
Rother District Council,13/11/2019,091HOUSING,Housing and Community Services,20204,Housing Administration Account,D2622,Mobile Phones,13.95,O2 (UK) Ltd,Mobile Phones,2014634,201910
Rother District Council,13/11/2019,041ENVIRON,Environmental Services,20198,Licensing Team,D2622,Mobile Phones,10.00,O2 (UK) Ltd,Mobile Phones,2014636,201910
Rother District Council,13/11/2019,091HOUSING,Housing and Community Services,20204,Housing Administration Account,D2622,Mobile Phones,10.00,O2 (UK) Ltd,Mobile Phones,2014634,201910
Rother District Council,13/11/2019,091HOUSING,Housing and Community Services,20204,Housing Administration Account,D2622,Mobile Phones,10.00,O2 (UK) Ltd,Mobile Phones,2014634,201910
Rother District Council,13/11/2019,091HOUSING,Housing and Community Services,20204,Housing Administration Account,D2622,Mobile Phones,10.00,O2 (UK) Ltd,Mobile Phones,2014634,201910
Rother District Council,13/11/2019,041ENVIRON,Environmental Services,20265,Pollution Team,D2622,Mobile Phones,10.00,O2 (UK) Ltd,Mobile Phones,2014635,201910
Rother District Council,13/11/2019,081ACQUISIT,"Acquisitions, Transformation and Regeneration",20122,Economic Development,D2622,Mobile Phones,10.00,O2 (UK) Ltd,Mobile Phones,2014637,201910
Rother District Council,13/11/2019,081ACQUISIT,"Acquisitions, Transformation and Regeneration",20122,Economic Development,D2622,Mobile Phones,10.00,O2 (UK) Ltd,Mobile Phones,2014637,201910
Rother District Council,13/11/2019,101RESOURCES,Resources,20239,Computer Services,D2622,Mobile Phones,10.00,O2 (UK) Ltd,Mobile Phones,2014633,201910
Rother District Council,13/11/2019,041ENVIRON,Environmental Services,20199,Food and Safety Team,D2622,Mobile Phones,10.12,O2 (UK) Ltd,Mobile Phones,2014635,201910
Rother District Council,13/11/2019,101RESOURCES,Resources,20239,Computer Services,D2622,Mobile Phones,10.00,O2 (UK) Ltd,Mobile Phones,2014633,201910
Rother District Council,13/11/2019,041ENVIRON,Environmental Services,20265,Pollution Team,D2622,Mobile Phones,10.00,O2 (UK) Ltd,Mobile Phones,2014635,201910
Rother District Council,13/11/2019,081ACQUISIT,"Acquisitions, Transformation and Regeneration",20243,Business Improvement,D2622,Mobile Phones,10.00,O2 (UK) Ltd,Mobile Phones,2014637,201910
Rother District Council,13/11/2019,091HOUSING,Housing and Community Services,20204,Housing Administration Account,D2622,Mobile Phones,10.00,O2 (UK) Ltd,Mobile Phones,2014634,201910
Rother District Council,13/11/2019,031RESOURCES,Executive Directors & Corporate Core,20179,Communications,D2622,Mobile Phones,10.00,O2 (UK) Ltd,Mobile Phones,2014636,201910
Rother District Council,13/11/2019,091HOUSING,Housing and Community Services,20204,Housing Administration Account,D2622,Mobile Phones,10.00,O2 (UK) Ltd,Mobile Phones,2014634,201910
Rother District Council,13/11/2019,091HOUSING,Housing and Community Services,20204,Housing Administration Account,D2622,Mobile Phones,10.00,O2 (UK) Ltd,Mobile Phones,2014634,201910
Rother District Council,13/11/2019,091HOUSING,Housing and Community Services,20264,Property Maintenance Team,D2622,Mobile Phones,10.00,O2 (UK) Ltd,Mobile Phones,2014634,201910
Rother District Council,13/11/2019,091HOUSING,Housing and Community Services,20204,Housing Administration Account,D2622,Mobile Phones,10.00,O2 (UK) Ltd,Mobile Phones,2014634,201910
Rother District Council,13/11/2019,091HOUSING,Housing and Community Services,20204,Housing Administration Account,D2622,Mobile Phones,10.00,O2 (UK) Ltd,Mobile Phones,2014634,201910
Rother District Council,13/11/2019,041ENVIRON,Environmental Services,20265,Pollution Team,D2622,Mobile Phones,10.00,O2 (UK) Ltd,Mobile Phones,2014635,201910
Rother District Council,13/11/2019,091HOUSING,Housing and Community Services,20120,Neighbourhood Services,D2622,Mobile Phones,10.00,O2 (UK) Ltd,Mobile Phones,2014634,201910
Rother District Council,13/11/2019,041ENVIRON,Environmental Services,20199,Food and Safety Team,D2622,Mobile Phones,10.00,O2 (UK) Ltd,Mobile Phones,2014635,201910
Rother District Council,13/11/2019,091HOUSING,Housing and Community Services,20262,Head of Service Housing and Community Services,D2622,Mobile Phones,49.44,O2 (UK) Ltd,Mobile Phones,2014634,201910
Rother District Council,13/11/2019,091HOUSING,Housing and Community Services,20120,Neighbourhood Services,D2622,Mobile Phones,10.00,O2 (UK) Ltd,Mobile Phones,2014634,201910
Rother District Council,13/11/2019,101RESOURCES,Resources,20215,Revenue and Benefits,D2622,Mobile Phones,10.00,O2 (UK) Ltd,Mobile Phones,2014633,201910
Rother District Council,13/11/2019,091HOUSING,Housing and Community Services,20204,Housing Administration Account,D2622,Mobile Phones,10.00,O2 (UK) Ltd,Mobile Phones,2014634,201910
Rother District Council,13/11/2019,091HOUSING,Housing and Community Services,20264,Property Maintenance Team,D2622,Mobile Phones,10.00,O2 (UK) Ltd,Mobile Phones,2014634,201910
Rother District Council,13/11/2019,101RESOURCES,Resources,20222,Accountancy,D2622,Mobile Phones,10.00,O2 (UK) Ltd,Mobile Phones,2014633,201910
Rother District Council,13/11/2019,031RESOURCES,Executive Directors & Corporate Core,20158,Committee Service General Exp,D2622,Mobile Phones,10.00,O2 (UK) Ltd,Mobile Phones,2014636,201910
Rother District Council,13/11/2019,041ENVIRON,Environmental Services,20265,Pollution Team,D2622,Mobile Phones,10.00,O2 (UK) Ltd,Mobile Phones,2014635,201910
Rother District Council,13/11/2019,091HOUSING,Housing and Community Services,20120,Neighbourhood Services,D2622,Mobile Phones,10.00,O2 (UK) Ltd,Mobile Phones,2014634,201910
Rother District Council,13/11/2019,031RESOURCES,Executive Directors & Corporate Core,32132,Joint Waste Contract Client Unit,D2622,Mobile Phones,10.00,O2 (UK) Ltd,Mobile Phones,2014636,201910
Rother District Council,13/11/2019,031RESOURCES,Executive Directors & Corporate Core,32132,Joint Waste Contract Client Unit,D2622,Mobile Phones,10.00,O2 (UK) Ltd,Mobile Phones,2014636,201910
Rother District Council,13/11/2019,031RESOURCES,Executive Directors & Corporate Core,20171,Human Resources,D2622,Mobile Phones,10.00,O2 (UK) Ltd,Mobile Phones,2014636,201910
Rother District Council,13/11/2019,071STRAT,Strategy and Planning,20248,"Complaints,Compliance,Enforce",D2622,Mobile Phones,10.00,O2 (UK) Ltd,Mobile Phones,2014632,201910
Rother District Council,13/11/2019,091HOUSING,Housing and Community Services,20204,Housing Administration Account,D2622,Mobile Phones,10.00,O2 (UK) Ltd,Mobile Phones,2014634,201910
Rother District Council,13/11/2019,091HOUSING,Housing and Community Services,20264,Property Maintenance Team,D2622,Mobile Phones,10.22,O2 (UK) Ltd,Mobile Phones,2014634,201910
Rother District Council,13/11/2019,091HOUSING,Housing and Community Services,20120,Neighbourhood Services,D2622,Mobile Phones,10.00,O2 (UK) Ltd,Mobile Phones,2014634,201910
Rother District Council,13/11/2019,031RESOURCES,Executive Directors & Corporate Core,20183,Executive Directors,D2622,Mobile Phones,30.00,O2 (UK) Ltd,Mobile Phones,2014636,201910
Rother District Council,13/11/2019,031RESOURCES,Executive Directors & Corporate Core,20183,Executive Directors,D2622,Mobile Phones,10.00,O2 (UK) Ltd,Mobile Phones,2014636,201910
Rother District Council,13/11/2019,041ENVIRON,Environmental Services,20199,Food and Safety Team,D2622,Mobile Phones,10.00,O2 (UK) Ltd,Mobile Phones,2014635,201910
Rother District Council,13/11/2019,091HOUSING,Housing and Community Services,20204,Housing Administration Account,D2622,Mobile Phones,17.24,O2 (UK) Ltd,Mobile Phones,2014634,201910
Rother District Council,13/11/2019,081ACQUISIT,"Acquisitions, Transformation and Regeneration",20122,Economic Development,D2622,Mobile Phones,10.00,O2 (UK) Ltd,Mobile Phones,2014637,201910
Rother District Council,13/11/2019,041ENVIRON,Environmental Services,20198,Licensing Team,D2622,Mobile Phones,10.00,O2 (UK) Ltd,Mobile Phones,2014635,201910
Rother District Council,13/11/2019,041ENVIRON,Environmental Services,20198,Licensing Team,D2622,Mobile Phones,10.00,O2 (UK) Ltd,Mobile Phones,2014635,201910
Rother District Council,13/11/2019,041ENVIRON,Environmental Services,20199,Food and Safety Team,D2622,Mobile Phones,10.00,O2 (UK) Ltd,Mobile Phones,2014635,201910
Rother District Council,13/11/2019,041ENVIRON,Environmental Services,20265,Pollution Team,D2622,Mobile Phones,10.00,O2 (UK) Ltd,Mobile Phones,2014635,201910
Rother District Council,13/11/2019,081ACQUISIT,"Acquisitions, Transformation and Regeneration",20122,Economic Development,D2622,Mobile Phones,10.00,O2 (UK) Ltd,Mobile Phones,2014637,201910
Rother District Council,13/11/2019,041ENVIRON,Environmental Services,20198,Licensing Team,D2622,Mobile Phones,10.00,O2 (UK) Ltd,Mobile Phones,2014635,201910
Rother District Council,13/11/2019,031RESOURCES,Executive Directors & Corporate Core,20180,Emergency Planning,D2622,Mobile Phones,10.00,O2 (UK) Ltd,Mobile Phones,2014636,201910
Rother District Council,13/11/2019,091HOUSING,Housing and Community Services,20264,Property Maintenance Team,D2622,Mobile Phones,10.00,O2 (UK) Ltd,Mobile Phones,2014634,201910
Rother District Council,13/11/2019,071STRAT,Strategy and Planning,20248,"Complaints,Compliance,Enforce",D2622,Mobile Phones,10.00,O2 (UK) Ltd,Mobile Phones,2014632,201910
Rother District Council,13/11/2019,091HOUSING,Housing and Community Services,20204,Housing Administration Account,D2622,Mobile Phones,10.00,O2 (UK) Ltd,Mobile Phones,2014634,201910
Rother District Council,13/11/2019,091HOUSING,Housing and Community Services,20264,Property Maintenance Team,D2622,Mobile Phones,10.00,O2 (UK) Ltd,Mobile Phones,2014634,201910
Rother District Council,13/11/2019,041ENVIRON,Environmental Services,20199,Food and Safety Team,D2622,Mobile Phones,10.00,O2 (UK) Ltd,Mobile Phones,2014635,201910
Rother District Council,13/11/2019,041ENVIRON,Environmental Services,20265,Pollution Team,D2622,Mobile Phones,10.00,O2 (UK) Ltd,Mobile Phones,2014635,201910
Rother District Council,13/11/2019,091HOUSING,Housing and Community Services,20120,Neighbourhood Services,D2622,Mobile Phones,10.00,O2 (UK) Ltd,Mobile Phones,2014634,201910
Rother District Council,13/11/2019,071STRAT,Strategy and Planning,20246,Planning Applications,D2622,Mobile Phones,10.00,O2 (UK) Ltd,Mobile Phones,2014632,201910
Rother District Council,13/11/2019,031RESOURCES,Executive Directors & Corporate Core,20162,Electoral Registration,D2622,Mobile Phones,10.00,O2 (UK) Ltd,Mobile Phones,2014636,201910
Rother District Council,13/11/2019,101RESOURCES,Resources,20215,Revenue and Benefits,D2622,Mobile Phones,10.00,O2 (UK) Ltd,Mobile Phones,2014633,201910
Rother District Council,13/11/2019,071STRAT,Strategy and Planning,20246,Planning Applications,D2622,Mobile Phones,10.00,O2 (UK) Ltd,Mobile Phones,2014632,201910
Rother District Council,13/11/2019,091HOUSING,Housing and Community Services,20120,Neighbourhood Services,D2622,Mobile Phones,10.00,O2 (UK) Ltd,Mobile Phones,2014634,201910
Rother District Council,13/11/2019,091HOUSING,Housing and Community Services,20120,Neighbourhood Services,D2622,Mobile Phones,10.00,O2 (UK) Ltd,Mobile Phones,2014634,201910
Rother District Council,13/11/2019,091HOUSING,Housing and Community Services,20264,Property Maintenance Team,D2622,Mobile Phones,13.95,O2 (UK) Ltd,Mobile Phones,2014634,201910
Rother District Council,13/11/2019,041ENVIRON,Environmental Services,20198,Licensing Team,D2622,Mobile Phones,10.00,O2 (UK) Ltd,Mobile Phones,2014635,201910
Rother District Council,13/11/2019,091HOUSING,Housing and Community Services,20120,Neighbourhood Services,D2622,Mobile Phones,10.00,O2 (UK) Ltd,Mobile Phones,2014634,201910
Rother District Council,13/11/2019,041ENVIRON,Environmental Services,20197,Service Manager Env Serv,D2622,Mobile Phones,10.00,O2 (UK) Ltd,Mobile Phones,2014635,201910
Rother District Council,13/11/2019,041ENVIRON,Environmental Services,20199,Food and Safety Team,D2622,Mobile Phones,10.00,O2 (UK) Ltd,Mobile Phones,2014635,201910
Rother District Council,13/11/2019,091HOUSING,Housing and Community Services,20120,Neighbourhood Services,D2622,Mobile Phones,10.00,O2 (UK) Ltd,Mobile Phones,2014634,201910
Rother District Council,13/11/2019,041ENVIRON,Environmental Services,20199,Food and Safety Team,D2622,Mobile Phones,10.00,O2 (UK) Ltd,Mobile Phones,2014635,201910
Rother District Council,13/11/2019,101RESOURCES,Resources,20226,Service Manager Finance and Welfare,D2622,Mobile Phones,10.00,O2 (UK) Ltd,Mobile Phones,2014636,201910
Rother District Council,13/11/2019,031RESOURCES,Executive Directors & Corporate Core,20180,Emergency Planning,D2622,Mobile Phones,10.00,O2 (UK) Ltd,Mobile Phones,2014636,201910
Rother District Council,13/11/2019,031RESOURCES,Executive Directors & Corporate Core,20180,Emergency Planning,D2622,Mobile Phones,4.50,O2 (UK) Ltd,Mobile Phones,2014636,201910
Rother District Council,13/11/2019,091HOUSING,Housing and Community Services,20264,Property Maintenance Team,D2622,Mobile Phones,10.00,O2 (UK) Ltd,Mobile Phones,2014634,201910
Rother District Council,13/11/2019,041ENVIRON,Environmental Services,20265,Pollution Team,D2622,Mobile Phones,10.00,O2 (UK) Ltd,Mobile Phones,2014635,201910
Rother District Council,13/11/2019,091HOUSING,Housing and Community Services,20204,Housing Administration Account,D2622,Mobile Phones,10.00,O2 (UK) Ltd,Mobile Phones,2014634,201910
Rother District Council,13/11/2019,041ENVIRON,Environmental Services,20265,Pollution Team,D2622,Mobile Phones,10.00,O2 (UK) Ltd,Mobile Phones,2014635,201910
Rother District Council,13/11/2019,091HOUSING,Housing and Community Services,20120,Neighbourhood Services,D2622,Mobile Phones,10.00,O2 (UK) Ltd,Mobile Phones,2014634,201910
Rother District Council,13/11/2019,091HOUSING,Housing and Community Services,20120,Neighbourhood Services,D2622,Mobile Phones,10.00,O2 (UK) Ltd,Mobile Phones,2014634,201910
Rother District Council,13/11/2019,081ACQUISIT,"Acquisitions, Transformation and Regeneration",20122,Economic Development,D2622,Mobile Phones,10.00,O2 (UK) Ltd,Mobile Phones,2014637,201910
Rother District Council,13/11/2019,041ENVIRON,Environmental Services,20199,Food and Safety Team,D2622,Mobile Phones,10.00,O2 (UK) Ltd,Mobile Phones,2014635,201910
Rother District Council,13/11/2019,091HOUSING,Housing and Community Services,20109,Sports Development,D2622,Mobile Phones,10.00,O2 (UK) Ltd,Mobile Phones,2014634,201910
Rother District Council,13/11/2019,041ENVIRON,Environmental Services,20199,Food and Safety Team,D2622,Mobile Phones,10.00,O2 (UK) Ltd,Mobile Phones,2014635,201910
Rother District Council,13/11/2019,041ENVIRON,Environmental Services,20265,Pollution Team,D2622,Mobile Phones,10.00,O2 (UK) Ltd,Mobile Phones,2014635,201910
Rother District Council,13/11/2019,091HOUSING,Housing and Community Services,20120,Neighbourhood Services,D2622,Mobile Phones,10.00,O2 (UK) Ltd,Mobile Phones,2014634,201910
Rother District Council,13/11/2019,091HOUSING,Housing and Community Services,20120,Neighbourhood Services,D2622,Mobile Phones,10.00,O2 (UK) Ltd,Mobile Phones,2014634,201910
Rother District Council,13/11/2019,091HOUSING,Housing and Community Services,20120,Neighbourhood Services,D2622,Mobile Phones,10.00,O2 (UK) Ltd,Mobile Phones,2014634,201910
Rother District Council,13/11/2019,091HOUSING,Housing and Community Services,20204,Housing Administration Account,D2622,Mobile Phones,10.00,O2 (UK) Ltd,Mobile Phones,2014634,201910
Rother District Council,13/11/2019,071STRAT,Strategy and Planning,20247,Service Manager Strategy and Planning,D2622,Mobile Phones,10.00,O2 (UK) Ltd,Mobile Phones,2014632,201910
Rother District Council,13/11/2019,031RESOURCES,Executive Directors & Corporate Core,20183,Executive Directors,D2622,Mobile Phones,10.00,O2 (UK) Ltd,Mobile Phones,2014636,201910
Rother District Council,13/11/2019,101RESOURCES,Resources,20215,Revenue and Benefits,D2622,Mobile Phones,10.00,O2 (UK) Ltd,Mobile Phones,2014633,201910
Rother District Council,13/11/2019,101RESOURCES,Resources,20215,Revenue and Benefits,D2622,Mobile Phones,10.00,O2 (UK) Ltd,Mobile Phones,2014633,201910
Rother District Council,13/11/2019,101RESOURCES,Resources,20239,Computer Services,D2622,Mobile Phones,10.00,O2 (UK) Ltd,Mobile Phones,2014633,201910
Rother District Council,13/11/2019,041ENVIRON,Environmental Services,20199,Food and Safety Team,D2622,Mobile Phones,10.00,O2 (UK) Ltd,Mobile Phones,2014635,201910
Rother District Council,13/11/2019,091HOUSING,Housing and Community Services,20120,Neighbourhood Services,D2622,Mobile Phones,10.00,O2 (UK) Ltd,Mobile Phones,2014634,201910
Rother District Council,13/11/2019,091HOUSING,Housing and Community Services,20120,Neighbourhood Services,D2622,Mobile Phones,10.00,O2 (UK) Ltd,Mobile Phones,2014634,201910
Rother District Council,13/11/2019,091HOUSING,Housing and Community Services,20120,Neighbourhood Services,D2622,Mobile Phones,10.00,O2 (UK) Ltd,Mobile Phones,2014634,201910
Rother District Council,13/11/2019,101RESOURCES,Resources,20239,Computer Services,D2622,Mobile Phones,10.00,O2 (UK) Ltd,Mobile Phones,2014633,201910
Rother District Council,13/11/2019,101RESOURCES,Resources,20239,Computer Services,D2622,Mobile Phones,10.00,O2 (UK) Ltd,Mobile Phones,2014633,201910
Rother District Council,14/11/2019,091HOUSING,Housing and Community Services,20145,Maintenance Services,C1101,Vehicle Repairs & Servicing,36.00,Autolec Motor Factors,Vehicle Repairs & Servicing,2014446,201910
Rother District Council,14/11/2019,021CORP,Corporate Services & Human Resources,20166,Parliamentary Elections,B2312,Hire of premises (RDC),290.00,Burwash Village Hall,Hire of premises (RDC),2014911,201910
Rother District Council,14/11/2019,081ACQUISIT,"Acquisitions, Transformation and Regeneration",20150,Peasmarsh Workshops,B1100,Repairs to Premises,480.00,CountyClean Environmental Services Ltd,Repairs to Premises - Cesspool Pumping station service/Call out,2014445,201910
Rother District Council,14/11/2019,081ACQUISIT,"Acquisitions, Transformation and Regeneration",20150,Peasmarsh Workshops,B2422,Sewerage,155.00,CountyClean Environmental Services Ltd,Sewerage - Sewage/Cesspool Emptying,2014445,201910
Rother District Council,14/11/2019,031RESOURCES,Executive Directors & Corporate Core,20171,Human Resources,D1201,Equipment & Materials,254.00,Office Furniture Online,Equipment & Materials - Health and Safety Act Equipment,2014739,201910
Rother District Council,15/11/2019,091HOUSING,Housing and Community Services,20206,Syrians,D2513,Hired and Contracted services,106.01,Muna Smallman,Hired and contracted services - Syrian-Translation Services,2015696,201912
Rother District Council,15/11/2019,101RESOURCES,Resources,20241,Stationery,D2420,General office supplies (Stationery purchased from ext suppliers),143.55,Office Depot UK Ltd,General office supplies - Stationery (Stationery Services to buy ONLY),2014575,201910
Rother District Council,18/11/2019,091HOUSING,Housing and Community Services,20137,Car Parks,B1100,Repairs to Premises,194.00,Direct Bollards Ltd,Repairs to Premises - Purchase of Materials - Build Maint,2015302,201911
Rother District Council,18/11/2019,031RESOURCES,Executive Directors & Corporate Core,20173,Administrative Offices - Town Hall,D2509,Consultants and Other Services,350.00,Jamie Ballan Associates Ltd,Consultants and other services - Consultants Fees,2014986,201911
Rother District Council,18/11/2019,091HOUSING,Housing and Community Services,20109,Sports Development,D2927,Services Facilitated by External Grants,40.00,The Pelham,Services Facilitated by External - Grants-Active Sussex Project workforce dev.,2014674,201910
Rother District Council,19/11/2019,091HOUSING,Housing and Community Services,20145,Maintenance Services,C1101,Vehicle Repairs & Servicing,15.60,Autolec Motor Factors,Equipment & Materials - Purchase of Tools,2014447,201910
Rother District Council,20/11/2019,021CORP,Corporate Services & Human Resources,20166,Parliamentary Elections,B2312,Hire of premises (RDC),150.00,Catsfield Village Hall,Hire of premises (RDC),2014913,201910
Rother District Council,20/11/2019,021CORP,Corporate Services & Human Resources,20166,Parliamentary Elections,B2312,Hire of premises (RDC),200.00,Etchingham Trust For Sports and Recreation,Hire of premises (RDC),2014915,201910
Rother District Council,20/11/2019,091HOUSING,Housing and Community Services,20137,Car Parks,B1100,Repairs to Premises,127.73,Saint-Gobain Building Distribution Ltd t/a Jewson,Repairs to Premises - Purchase of Materials - Build Maint,2015756,201912
Rother District Council,21/11/2019,101RESOURCES,Resources,20239,Computer Services,D2632,Additional Computer Equipment,700.00,Apple Retail UK Ltd,Additional Computer Equipment - New PC/Computer,2015569,201911
Rother District Council,21/11/2019,091HOUSING,Housing and Community Services,20145,Maintenance Services,C1101,Vehicle Repairs & Servicing,11.91,Autolec Motor Factors,Equipment & Materials - Purchase of Tools,2014448,201910
Rother District Council,21/11/2019,031RESOURCES,Executive Directors & Corporate Core,32131,Sussex Training Partnership,D2513,Hired and Contracted services,80.00,Hailsham Town Council,Hired and contracted service -STC VENUE HIRE,2014384,201910
Rother District Council,21/11/2019,101RESOURCES,Resources,20241,Stationery,D2420,General office supplies (Stationery purchased from ext suppliers),28.28,Office Depot UK Ltd,General office supplies - Stationery (Stationery Services to buy ONLY),2014576,201910
Rother District Council,25/11/2019,101RESOURCES,Resources,20241,Stationery,D2420,General office supplies (Stationery purchased from ext suppliers),15.15,Office Depot UK Ltd,General office supplies - Stationery (Stationery Services to buy ONLY),2014577,201910
Rother District Council,26/11/2019,081ACQUISIT,"Acquisitions, Transformation and Regeneration",20153,"Elva Business Centre, Bexhill",B1100,Repairs to Premises,535.69,Alfa Electric Ltd,Repairs to Premises - Repairs Doors,2014560,201910
Rother District Council,26/11/2019,031RESOURCES,Executive Directors & Corporate Core,20171,Human Resources,D2513,Hired and Contracted services,528.00,DMH Stallard,Hired and contracted services - Legal Advice,2014385,201910
Rother District Council,27/11/2019,091HOUSING,Housing and Community Services,20200,Housing Needs - HB (Housing Benefit),D2509,Consultants and Other Services,850.00,Meridian Surveyors,Consultants and other services - Consultants Fees,2014813,201910
Rother District Council,28/11/2019,999NOREPORT,Not included in reporting,70704,Capital - Bexhill Leisure Centre,N1004,Architects & Consultant Fees,876.00,Bevan Brittan LLP,Architects & Consultant Fees,2014710,201910
Rother District Council,28/11/2019,101RESOURCES,Resources,20240,Printing Services,D2626,Postages,15.00,SBS Consumables,General office supplies - Stationery (Stationery Services to buy ONLY),2014682,201910
Rother District Council,29/11/2019,041ENVIRON,Environmental Services,32144,EH Environmental Services Admin R + W Partnership,D1201,Equipment & Materials,7.95,Marston Book Services Limited,Equipment & Materials - Carriage/Handling Charge,2015333,201911
Rother District Council,29/11/2019,041ENVIRON,Environmental Services,32134,EH Pollution R + W Partnership,D1203,Books And Publications,102.00,Marston Book Services Limited,Books And Publications - EnvH Books+Publications (Pollution),2015333,201911
Rother District Council,29/11/2019,031RESOURCES,Executive Directors & Corporate Core,20171,Human Resources,D2513,Hired and Contracted services,120.00,Staywell Occupational Health Ltd,Hired and contracted services - Occupational Health,2014389,201910
Rother District Council,30/11/2019,091HOUSING,Housing and Community Services,20114,Bexhill Parks & Open Spaces,B1100,Repairs to Premises,830.00,All Roofing Solutions Ltd,Repairs to Premises - Parks - Roofing Repairs,2014480,201910
Rother District Council,30/11/2019,101RESOURCES,Resources,20209,Corporate management,D2513,Hired and Contracted services,"1,341.06",allpay.net Ltd,Hired and contracted services - Allpay Card/Rep/Let Chrg - Vatable,2014638,201910
Rother District Council,30/11/2019,101RESOURCES,Resources,20216,Cost Of Collection,D2513,Hired and Contracted services,37.69,allpay.net Ltd,Hired and contracted services - Allpay Card/Rep/Let Chrg - Vatable,2014641,201910
Rother District Council,30/11/2019,101RESOURCES,Resources,20216,Cost Of Collection,D2513,Hired and Contracted services,16.19,allpay.net Ltd,Hired and contracted services - Allpay Card/Rep/Let Chrg - Vatable,2014640,201910
Rother District Council,30/11/2019,101RESOURCES,Resources,20216,Cost Of Collection,D2513,Hired and Contracted services,24.76,allpay.net Ltd,Hired and contracted services - Allpay Card/Rep/Let Chrg - Vatable,2014639,201910
Rother District Council,30/11/2019,091HOUSING,Housing and Community Services,20145,Maintenance Services,C1103,Petrol,20.83,Allstar Business Solutions,Petrol,2014803,201910
Rother District Council,30/11/2019,041ENVIRON,Environmental Services,32136,EH Pest Control R + W Partnership,C1104,Derv,48.33,Allstar Business Solutions,Derv,2014803,201910
Rother District Council,30/11/2019,041ENVIRON,Environmental Services,32136,EH Pest Control R + W Partnership,C1104,Derv,45.83,Allstar Business Solutions,Derv,2014803,201910
Rother District Council,30/11/2019,091HOUSING,Housing and Community Services,20145,Maintenance Services,C1104,Derv,37.54,Allstar Business Solutions,Derv,2014803,201910
Rother District Council,30/11/2019,091HOUSING,Housing and Community Services,20145,Maintenance Services,C1104,Derv,42.50,Allstar Business Solutions,Derv,2014803,201910
Rother District Council,30/11/2019,091HOUSING,Housing and Community Services,20145,Maintenance Services,C1104,Derv,71.92,Allstar Business Solutions,Derv,2014803,201910
Rother District Council,30/11/2019,091HOUSING,Housing and Community Services,20107,Camber Beach & Foreshore,C1104,Derv,29.73,Allstar Business Solutions,Derv,2014803,201910
Rother District Council,30/11/2019,091HOUSING,Housing and Community Services,20107,Camber Beach & Foreshore,C1104,Derv,25.01,Allstar Business Solutions,Derv,2014803,201910
Rother District Council,30/11/2019,091HOUSING,Housing and Community Services,20145,Maintenance Services,C1104,Derv,76.67,Allstar Business Solutions,Derv,2014803,201910
Rother District Council,30/11/2019,091HOUSING,Housing and Community Services,20107,Camber Beach & Foreshore,C1104,Derv,1.90,Allstar Business Solutions,Derv - Fuel Service fee payable on fuel cards,2014803,201910
Rother District Council,30/11/2019,041ENVIRON,Environmental Services,32136,EH Pest Control R + W Partnership,C1104,Derv,3.80,Allstar Business Solutions,Derv - Fuel Service fee payable on fuel cards,2014803,201910
Rother District Council,30/11/2019,091HOUSING,Housing and Community Services,20145,Maintenance Services,C1104,Derv,1.90,Allstar Business Solutions,Derv - Fuel Service fee payable on fuel cards,2014803,201910
Rother District Council,30/11/2019,101RESOURCES,Resources,20222,Accountancy,D2635,Computer Licences,"1,133.21",Integra Associates Ltd,Computer Licences - New Computer Software,2014312,201910
Rother District Council,01/12/2019,021CORP,Corporate Services & Human Resources,20166,Parliamentary Elections,B2312,Hire of premises (RDC),200.00,Ewhurst and  Staplecross Village Hall,Hire of premises (RDC),2014929,201910
Rother District Council,01/12/2019,041ENVIRON,Environmental Services,32133,EH Food Hyg / Idc / Water Purity R + W Partnership,D1203,Books And Publications,"2,389.00",Thomson Reuters Ltd,Books And Publications - EnvH Books+Public.(Health+Food Saf),2015606,201911
Rother District Council,02/12/2019,031RESOURCES,Executive Directors & Corporate Core,20156,Representing Local Interest,D2513,Hired and Contracted services,"3,165.00",De La Warr Pavilion (Enterprise) Ltd,Hired and contracted services - Hire of Meeting Room,2015451,201911
Rother District Council,02/12/2019,091HOUSING,Housing and Community Services,20145,Maintenance Services,D1201,Equipment & Materials,10.99,Graham,Equipment & Materials - Purchase of Tools,2014141,201910
Rother District Council,02/12/2019,021CORP,Corporate Services & Human Resources,20166,Parliamentary Elections,B2312,Hire of premises (RDC),240.00,Rye Partnership Ltd,Hire of premises (RDC),2015004,201910
Rother District Council,02/12/2019,091HOUSING,Housing and Community Services,20329,Rough Sleeping Initiative,D2514,Accommodation Costs,25.50,South Down Residential Ltd,Accommodation Costs,2014585,201910
Rother District Council,02/12/2019,091HOUSING,Housing and Community Services,20200,Housing Needs - HB (Housing Benefit),D2514,Accommodation Costs,364.00,South Down Residential Ltd,Accommodation Costs,2014585,201910
Rother District Council,02/12/2019,091HOUSING,Housing and Community Services,20200,Housing Needs - HB (Housing Benefit),D2514,Accommodation Costs,91.00,South Down Residential Ltd,Accommodation Costs,2014585,201910
Rother District Council,02/12/2019,091HOUSING,Housing and Community Services,20200,Housing Needs - HB (Housing Benefit),D2514,Accommodation Costs,296.80,South Down Residential Ltd,Accommodation Costs,2014585,201910
Rother District Council,02/12/2019,091HOUSING,Housing and Community Services,20200,Housing Needs - HB (Housing Benefit),D2514,Accommodation Costs,74.20,South Down Residential Ltd,Accommodation Costs,2014585,201910
Rother District Council,02/12/2019,091HOUSING,Housing and Community Services,20329,Rough Sleeping Initiative,D2514,Accommodation Costs,142.80,South Down Residential Ltd,Accommodation Costs,2014585,201910
Rother District Council,02/12/2019,091HOUSING,Housing and Community Services,20329,Rough Sleeping Initiative,D2514,Accommodation Costs,35.70,South Down Residential Ltd,Accommodation Costs,2014585,201910
Rother District Council,02/12/2019,091HOUSING,Housing and Community Services,20200,Housing Needs - HB (Housing Benefit),D2514,Accommodation Costs,413.00,South Down Residential Ltd,Accommodation Costs,2014585,201910
Rother District Council,02/12/2019,091HOUSING,Housing and Community Services,20329,Rough Sleeping Initiative,D2514,Accommodation Costs,142.80,South Down Residential Ltd,Accommodation Costs,2014585,201910
Rother District Council,02/12/2019,091HOUSING,Housing and Community Services,20329,Rough Sleeping Initiative,D2514,Accommodation Costs,35.70,South Down Residential Ltd,Accommodation Costs,2014585,201910
Rother District Council,02/12/2019,091HOUSING,Housing and Community Services,20200,Housing Needs - HB (Housing Benefit),D2514,Accommodation Costs,112.00,South Down Residential Ltd,Accommodation Costs,2014585,201910
Rother District Council,02/12/2019,091HOUSING,Housing and Community Services,20200,Housing Needs - HB (Housing Benefit),D2514,Accommodation Costs,28.00,South Down Residential Ltd,Accommodation Costs,2014585,201910
Rother District Council,02/12/2019,091HOUSING,Housing and Community Services,20200,Housing Needs - HB (Housing Benefit),D2514,Accommodation Costs,347.20,South Down Residential Ltd,Accommodation Costs,2014585,201910
Rother District Council,02/12/2019,091HOUSING,Housing and Community Services,20200,Housing Needs - HB (Housing Benefit),D2514,Accommodation Costs,86.80,South Down Residential Ltd,Accommodation Costs,2014585,201910
Rother District Council,02/12/2019,091HOUSING,Housing and Community Services,20329,Rough Sleeping Initiative,D2514,Accommodation Costs,61.20,South Down Residential Ltd,Accommodation Costs,2014585,201910
Rother District Council,02/12/2019,091HOUSING,Housing and Community Services,20329,Rough Sleeping Initiative,D2514,Accommodation Costs,15.30,South Down Residential Ltd,Accommodation Costs,2014585,201910
Rother District Council,02/12/2019,091HOUSING,Housing and Community Services,20329,Rough Sleeping Initiative,D2514,Accommodation Costs,81.60,South Down Residential Ltd,Accommodation Costs,2014585,201910
Rother District Council,02/12/2019,091HOUSING,Housing and Community Services,20329,Rough Sleeping Initiative,D2514,Accommodation Costs,20.40,South Down Residential Ltd,Accommodation Costs,2014585,201910
Rother District Council,02/12/2019,091HOUSING,Housing and Community Services,20329,Rough Sleeping Initiative,D2514,Accommodation Costs,76.50,South Down Residential Ltd,Accommodation Costs,2014585,201910
Rother District Council,02/12/2019,091HOUSING,Housing and Community Services,20200,Housing Needs - HB (Housing Benefit),D2514,Accommodation Costs,500.01,South Down Residential Ltd,Accommodation Costs,2014585,201910
Rother District Council,02/12/2019,091HOUSING,Housing and Community Services,20200,Housing Needs - HB (Housing Benefit),D2514,Accommodation Costs,268.80,South Down Residential Ltd,Accommodation Costs,2014585,201910
Rother District Council,02/12/2019,091HOUSING,Housing and Community Services,20200,Housing Needs - HB (Housing Benefit),D2514,Accommodation Costs,67.20,South Down Residential Ltd,Accommodation Costs,2014585,201910
Rother District Council,02/12/2019,091HOUSING,Housing and Community Services,20200,Housing Needs - HB (Housing Benefit),D2514,Accommodation Costs,268.80,South Down Residential Ltd,Accommodation Costs,2014585,201910
Rother District Council,02/12/2019,091HOUSING,Housing and Community Services,20200,Housing Needs - HB (Housing Benefit),D2514,Accommodation Costs,67.20,South Down Residential Ltd,Accommodation Costs,2014585,201910
Rother District Council,02/12/2019,091HOUSING,Housing and Community Services,20200,Housing Needs - HB (Housing Benefit),D2514,Accommodation Costs,296.80,South Down Residential Ltd,Accommodation Costs,2014585,201910
Rother District Council,02/12/2019,091HOUSING,Housing and Community Services,20200,Housing Needs - HB (Housing Benefit),D2514,Accommodation Costs,74.20,South Down Residential Ltd,Accommodation Costs,2014585,201910
Rother District Council,02/12/2019,091HOUSING,Housing and Community Services,20200,Housing Needs - HB (Housing Benefit),D2514,Accommodation Costs,316.40,South Down Residential Ltd,Accommodation Costs,2014585,201910
Rother District Council,02/12/2019,091HOUSING,Housing and Community Services,20200,Housing Needs - HB (Housing Benefit),D2514,Accommodation Costs,79.10,South Down Residential Ltd,Accommodation Costs,2014585,201910
Rother District Council,02/12/2019,091HOUSING,Housing and Community Services,20200,Housing Needs - HB (Housing Benefit),D2514,Accommodation Costs,330.40,South Down Residential Ltd,Accommodation Costs,2014585,201910
Rother District Council,02/12/2019,091HOUSING,Housing and Community Services,20200,Housing Needs - HB (Housing Benefit),D2514,Accommodation Costs,82.60,South Down Residential Ltd,Accommodation Costs,2014585,201910
Rother District Council,02/12/2019,091HOUSING,Housing and Community Services,20200,Housing Needs - HB (Housing Benefit),D2514,Accommodation Costs,330.40,South Down Residential Ltd,Accommodation Costs,2014585,201910
Rother District Council,02/12/2019,091HOUSING,Housing and Community Services,20200,Housing Needs - HB (Housing Benefit),D2514,Accommodation Costs,82.60,South Down Residential Ltd,Accommodation Costs,2014585,201910
Rother District Council,02/12/2019,091HOUSING,Housing and Community Services,20200,Housing Needs - HB (Housing Benefit),D2514,Accommodation Costs,296.80,South Down Residential Ltd,Accommodation Costs,2014585,201910
Rother District Council,02/12/2019,091HOUSING,Housing and Community Services,20200,Housing Needs - HB (Housing Benefit),D2514,Accommodation Costs,74.20,South Down Residential Ltd,Accommodation Costs,2014585,201910
Rother District Council,02/12/2019,091HOUSING,Housing and Community Services,20329,Rough Sleeping Initiative,D2514,Accommodation Costs,371.00,South Down Residential Ltd,Accommodation Costs,2014585,201910
Rother District Council,02/12/2019,091HOUSING,Housing and Community Services,20200,Housing Needs - HB (Housing Benefit),D2514,Accommodation Costs,240.03,South Down Residential Ltd,Accommodation Costs,2014585,201910
Rother District Council,02/12/2019,091HOUSING,Housing and Community Services,20200,Housing Needs - HB (Housing Benefit),D2514,Accommodation Costs,59.99,South Down Residential Ltd,Accommodation Costs,2014585,201910
Rother District Council,04/12/2019,091HOUSING,Housing and Community Services,20114,Bexhill Parks & Open Spaces,B2422,Sewerage,235.00,CountyClean Environmental Services Ltd,Sewerage Parks- Emptying of Cesspit,2014449,201910
Rother District Council,04/12/2019,091HOUSING,Housing and Community Services,20200,Housing Needs - HB (Housing Benefit),D2514,Accommodation Costs,"7,500.00",Paramount Independent Property Services LLP,Accommodation Costs,2015872,201912
Rother District Council,05/12/2019,081ACQUISIT,"Acquisitions, Transformation and Regeneration",20153,"Elva Business Centre, Bexhill",B1100,Repairs to Premises,131.60,J M Waste Management Limited,Contract cleaning - Office Cleaning,2015552,201911
Rother District Council,06/12/2019,091HOUSING,Housing and Community Services,20128,Public Conveniences,B1100,Repairs to Premises,110.00,B and G Environmental Services Limited,Repairs to Premises - Drainage Clearance,2014821,201910
Rother District Council,06/12/2019,091HOUSING,Housing and Community Services,20114,Bexhill Parks & Open Spaces,B1100,Repairs to Premises,450.00,B and G Environmental Services Limited,Repairs to Premises - Drainage Clearance,2015554,201911
Rother District Council,06/12/2019,041ENVIRON,Environmental Services,32134,EH Pollution R + W Partnership,D1201,Equipment & Materials,4.50,Gradko International Ltd,Equipment & Materials - Carriage/Handling Charge,2014606,201910
Rother District Council,06/12/2019,041ENVIRON,Environmental Services,32134,EH Pollution R + W Partnership,D1201,Equipment & Materials,115.60,Gradko International Ltd,Equipment & Materials - EnvH- Air Quality Maintenance Contr,2014606,201910
Rother District Council,06/12/2019,071STRAT,Strategy and Planning,20246,Planning Applications,D2519,Statutory Advertising,549.00,JPIMedia Publishing Ltd,Statutory Advertising - Planadv - Rye+Battle Observer,2014111,201910
Rother District Council,06/12/2019,041ENVIRON,Environmental Services,32144,EH Environmental Services Admin R + W Partnership,A2203,Training,800.00,Poppleston Allen Training,Training,2014375,201910
Rother District Council,09/12/2019,031RESOURCES,Executive Directors & Corporate Core,20173,Administrative Offices - Town Hall,D2513,Hired and Contracted services,"4,417.50",AXA ICAS Ltd,Hired and contracted services - Service fee paid,2014995,201910
Rother District Council,09/12/2019,081ACQUISIT,"Acquisitions, Transformation and Regeneration",20122,Economic Development,A2203,Training,230.00,Lloyds Bank,Training,2015585,201911
Rother District Council,09/12/2019,101RESOURCES,Resources,20222,Accountancy,C2335,Public transport,121.81,Lloyds Bank,Public Transport - Train tickets,2015584,201912
Rother District Council,09/12/2019,021CORP,Corporate Services & Human Resources,20166,Parliamentary Elections,D1201,Equipment & Materials,208.25,Lloyds Bank,Equipment & Materials - election only - equipment cost,2015584,201912
Rother District Council,09/12/2019,021CORP,Corporate Services & Human Resources,20166,Parliamentary Elections,D1201,Equipment & Materials,279.93,Lloyds Bank,Equipment & Materials - Purchase of Tools,2015585,201911
Rother District Council,09/12/2019,091HOUSING,Housing and Community Services,20236,Customer Services and Development,D1201,Equipment & Materials,202.64,Lloyds Bank,Equipment & Materials - Purchase of Tools,2015585,201911
Rother District Council,09/12/2019,031RESOURCES,Executive Directors & Corporate Core,20173,Administrative Offices - Town Hall,D1206,Furniture & Fittings,19.92,Lloyds Bank,Furniture & Fittings - Purchase of office equipment,2015585,201911
Rother District Council,09/12/2019,031RESOURCES,Executive Directors & Corporate Core,20156,Representing Local Interest,D2312,Refreshments,69.50,Lloyds Bank,Refreshments - Catering/Refreshments for Meetings,2015586,201911
Rother District Council,09/12/2019,031RESOURCES,Executive Directors & Corporate Core,20180,Emergency Planning,D2352,Clothing and Uniforms,499.96,Lloyds Bank,Clothing and Uniforms - Mens Protective-Other,2015586,201911
Rother District Council,09/12/2019,101RESOURCES,Resources,20209,Corporate management,D2513,Hired and Contracted services,90.58,Lloyds Bank,Bank Charges,2014649,201910
Rother District Council,09/12/2019,101RESOURCES,Resources,20209,Corporate management,D2513,Hired and Contracted services,233.00,Lloyds Bank,Bank Charges,2015567,201911
Rother District Council,09/12/2019,091HOUSING,Housing and Community Services,20206,Syrians,D2513,Hired and Contracted services,"1,277.36",Lloyds Bank,Hired and contracted services - Syrian Misc,2015583,201912
Rother District Council,09/12/2019,081ACQUISIT,"Acquisitions, Transformation and Regeneration",20144,Property Management,D2518,Advertising,37.50,Lloyds Bank,Advertising - Newspapers/Magazine,2015585,201911
Rother District Council,09/12/2019,081ACQUISIT,"Acquisitions, Transformation and Regeneration",20144,Property Management,D2518,Advertising,37.50,Lloyds Bank,Advertising - Newspapers/Magazine,2015585,201911
Rother District Council,09/12/2019,081ACQUISIT,"Acquisitions, Transformation and Regeneration",20144,Property Management,D2518,Advertising,37.50,Lloyds Bank,Advertising - Newspapers/Magazine,2015585,201911
Rother District Council,09/12/2019,101RESOURCES,Resources,20242,Communications-Phones,D2621,Telephones,67.50,TalkTalk Communications Ltd T/A TalkTalk Business,Telephones - Broadband Connection,2014651,201910
Rother District Council,09/12/2019,021CORP,Corporate Services & Human Resources,20166,Parliamentary Elections,B2312,Hire of premises (RDC),150.00,Winchelsea Beach Community Association,Hire of premises (RDC),2015010,201910
Rother District Council,10/12/2019,101RESOURCES,Resources,20209,Corporate management,D2513,Hired and Contracted services,178.78,Capita Business Services Ltd,Bank Charges,2014646,201910
Rother District Council,10/12/2019,101RESOURCES,Resources,20222,Accountancy,D1203,Books And Publications,190.00,CIPFA Business Ltd,Books and Publications - general,2015017,201910
Rother District Council,10/12/2019,041ENVIRON,Environmental Services,32143,EH Licenses and Registration R + W Partnership,D2513,Hired and Contracted services,286.44,Fairfield House Veterinary Surgery,Hired and Contracted services,2014499,201910
Rother District Council,10/12/2019,101RESOURCES,Resources,20209,Corporate management,D2513,Hired and Contracted services,269.55,Lloyds Bank,Bank Charges,2014650,201910
Rother District Council,10/12/2019,101RESOURCES,Resources,20239,Computer Services,D2418,Photocopying Charges,133.18,Ricoh UK Limited,Operational Leases - Copier Rental and Service,2014146,201910
Rother District Council,10/12/2019,091HOUSING,Housing and Community Services,20145,Maintenance Services,D1201,Equipment & Materials,12.71,Saint-Gobain Building Distribution Ltd t/a Jewson,Equipment & Materials - Purchase of Tools,2014320,201910
Rother District Council,11/12/2019,031RESOURCES,Executive Directors & Corporate Core,20173,Administrative Offices - Town Hall,B1100,Repairs to Premises,45.00,Alfa Electric Ltd,Repairs to Premises - Repairs Doors,2014311,201910
Rother District Council,11/12/2019,999NOREPORT,Not included in reporting,70727,Capital - Joint  Waste Equipment,N1008,Equipment,200.00,Biffa Municipal Limited,Capital - Purchase of Equipment,2014655,201910
Rother District Council,11/12/2019,041ENVIRON,Environmental Services,32143,EH Licenses and Registration R + W Partnership,D2513,Hired and Contracted services,286.44,Fairfield House Veterinary Surgery,Hired and Contracted services,2014500,201910
Rother District Council,11/12/2019,071STRAT,Strategy and Planning,20258,BC Dangerous Structures H+R Partnership,D2513,Hired and Contracted services,15.00,H M Land Registry,Hired and contracted services - Env H-Land Registry,2014776,201910
Rother District Council,11/12/2019,091HOUSING,Housing and Community Services,20200,Housing Needs - HB (Housing Benefit),D2513,Hired and Contracted services,3.00,H M Land Registry,Hired and contracted services - Housing-Land Registry,2014776,201910
Rother District Council,11/12/2019,101RESOURCES,Resources,20216,Cost Of Collection,D2513,Hired and Contracted services,30.00,H M Land Registry,Hired and contracted services - Council Tax-Land Registry Enquiries,2014776,201910
Rother District Council,11/12/2019,081ACQUISIT,"Acquisitions, Transformation and Regeneration",20144,Property Management,D2513,Hired and Contracted services,9.00,H M Land Registry,Hired and contracted services - Land Registry-Property Management,2014776,201910
Rother District Council,11/12/2019,071STRAT,Strategy and Planning,20246,Planning Applications,D2513,Hired and Contracted services,12.00,H M Land Registry,Hired and contracted services - Land Registry-Planning,2014776,201910
Rother District Council,11/12/2019,091HOUSING,Housing and Community Services,20114,Bexhill Parks & Open Spaces,B1100,Repairs to Premises,33.15,Howden Joinery Ltd,Repairs to Premises - Specified Repairs and Works listed,2014191,201910
Rother District Council,11/12/2019,091HOUSING,Housing and Community Services,20114,Bexhill Parks & Open Spaces,B1100,Repairs to Premises,-7.25,Howden Joinery Ltd,Repairs to Premises - Specified Repairs and Works listed,2014192,201910
Rother District Council,11/12/2019,031RESOURCES,Executive Directors & Corporate Core,20171,Human Resources,A2203,Training,500.00,HQN Ltd,Training,2015425,201911
Rother District Council,11/12/2019,101RESOURCES,Resources,20241,Stationery,D2420,General office supplies (Stationery purchased from ext suppliers),12.36,Office Depot UK Ltd,General office supplies - Stationery (Stationery Services to buy ONLY),2015549,201911
Rother District Council,11/12/2019,091HOUSING,Housing and Community Services,20132,Street & Beach Cleansing,E2302,Third party payment private contractors,14.66,Trade Paints Ltd,Third party payment private contractors - Payments to Contractor,2014549,201910
Rother District Council,12/12/2019,041ENVIRON,Environmental Services,32135,EH Dog Control R + W Partnership,D2513,Hired and Contracted services,"2,950.00",Animal Wardens Ltd,Hired and contracted services - Rother Collection of Dogs EnvH,2014152,201910
Rother District Council,12/12/2019,041ENVIRON,Environmental Services,32135,EH Dog Control R + W Partnership,D2513,Hired and Contracted services,"3,369.00",Animal Wardens Ltd,Hired and contracted services - Rother Collection of Dogs EnvH,2014153,201910
Rother District Council,12/12/2019,021CORP,Corporate Services & Human Resources,20166,Parliamentary Elections,B2312,Hire of premises (RDC),225.00,Beatrice Drewe Trust,Hire of premises (RDC),2014882,201910
Rother District Council,12/12/2019,021CORP,Corporate Services & Human Resources,20166,Parliamentary Elections,B2312,Hire of premises (RDC),165.00,Brede Village Hall,Hire of premises (RDC),2014997,201910
Rother District Council,12/12/2019,021CORP,Corporate Services & Human Resources,20166,Parliamentary Elections,B2312,Hire of premises (RDC),160.00,Christchurch Methodist Church,Hire of premises (RDC),2014900,201910
Rother District Council,12/12/2019,091HOUSING,Housing and Community Services,20108,Bexhill Promenade & Foreshore,B1100,Repairs to Premises,64.50,Hampshire Flag Company Ltd,Repairs to Premises - Beach maintenance,2015452,201911
Rother District Council,12/12/2019,021CORP,Corporate Services & Human Resources,20166,Parliamentary Elections,B2312,Hire of premises (RDC),220.00,Icklesham Memorial Hall Trust,Hire of premises (RDC),2014996,201910
Rother District Council,12/12/2019,021CORP,Corporate Services & Human Resources,20166,Parliamentary Elections,B2312,Hire of premises (RDC),232.50,Iden Village Hall,Hire of premises (RDC),2015002,201910
Rother District Council,12/12/2019,091HOUSING,Housing and Community Services,20114,Bexhill Parks & Open Spaces,B1100,Repairs to Premises,9.73,Independent Roofing Supplies Ltd,Repairs to Premises - Parks - Carpentry Repairs,2014189,201910
Rother District Council,12/12/2019,021CORP,Corporate Services & Human Resources,20166,Parliamentary Elections,B2312,Hire of premises (RDC),150.00,Netherfield C E Primary School,Hire of premises (RDC),2014918,201910
Rother District Council,12/12/2019,021CORP,Corporate Services & Human Resources,20166,Parliamentary Elections,B2312,Hire of premises (RDC),350.00,Pebsham Community Association,Hire of premises (RDC),2015032,201911
Rother District Council,12/12/2019,021CORP,Corporate Services & Human Resources,20166,Parliamentary Elections,B2312,Hire of premises (RDC),250.00,Pett Village Hall,Hire of premises (RDC),2015003,201910
Rother District Council,12/12/2019,021CORP,Corporate Services & Human Resources,20166,Parliamentary Elections,B2312,Hire of premises (RDC),155.00,Rye Harbour Village Hall,Hire of premises (RDC),2015006,201910
Rother District Council,12/12/2019,021CORP,Corporate Services & Human Resources,20166,Parliamentary Elections,B2312,Hire of premises (RDC),290.00,St Mary�s Community Hall Management Committee,Hire of premises (RDC),2015008,201910
Rother District Council,12/12/2019,021CORP,Corporate Services & Human Resources,20166,Parliamentary Elections,B2312,Hire of premises (RDC),236.25,St Michael�s Community Centre,Hire of premises (RDC),2014901,201910
Rother District Council,12/12/2019,021CORP,Corporate Services & Human Resources,20166,Parliamentary Elections,B2312,Hire of premises (RDC),160.00,The Herdman Association,Hire of premises (RDC),2014932,201910
Rother District Council,12/12/2019,021CORP,Corporate Services & Human Resources,20166,Parliamentary Elections,B2312,Hire of premises (RDC),85.00,Three Oaks Village Hall,Hire of premises (RDC),2015007,201910
Rother District Council,12/12/2019,091HOUSING,Housing and Community Services,20132,Street & Beach Cleansing,D1201,Equipment & Materials,54.11,Trade Paints Ltd,Equipment & materials - Miscellaneous,2014550,201910
Rother District Council,12/12/2019,021CORP,Corporate Services & Human Resources,20166,Parliamentary Elections,B2312,Hire of premises (RDC),132.00,Westfield Church Hall,Hire of premises (RDC),2015033,201911
Rother District Council,12/12/2019,021CORP,Corporate Services & Human Resources,20166,Parliamentary Elections,B2312,Hire of premises (RDC),208.00,Winchelsea New Hall Management Committee,Hire of premises (RDC),2015009,201910
Rother District Council,13/12/2019,091HOUSING,Housing and Community Services,20200,Housing Needs - HB (Housing Benefit),D2513,Hired and Contracted services,3.00,H M Land Registry,Hired and contracted services - Housing-Land Registry,2014754,201910
Rother District Council,13/12/2019,101RESOURCES,Resources,20216,Cost Of Collection,D2513,Hired and Contracted services,18.00,H M Land Registry,Hired and contracted services - Council Tax-Land Registry Enquiries,2014754,201910
Rother District Council,13/12/2019,071STRAT,Strategy and Planning,20246,Planning Applications,D2513,Hired and Contracted services,24.00,H M Land Registry,Hired and contracted services - Land Registry-Planning,2014754,201910
Rother District Council,13/12/2019,071STRAT,Strategy and Planning,20246,Planning Applications,D2519,Statutory Advertising,549.00,JPIMedia Publishing Ltd,Statutory Advertising - Planadv - Rye+Battle Observer,2014301,201910
Rother District Council,13/12/2019,081ACQUISIT,"Acquisitions, Transformation and Regeneration",20121,Programme and Policy Office,D2622,Mobile Phones,10.00,O2 (UK) Ltd,Mobile Phones,2014764,201910
Rother District Council,13/12/2019,081ACQUISIT,"Acquisitions, Transformation and Regeneration",20243,Business Improvement,D2622,Mobile Phones,10.00,O2 (UK) Ltd,Mobile Phones,2014764,201910
Rother District Council,13/12/2019,091HOUSING,Housing and Community Services,20120,Neighbourhood Services,D2622,Mobile Phones,10.00,O2 (UK) Ltd,Mobile Phones,2014761,201910
Rother District Council,13/12/2019,101RESOURCES,Resources,20215,Revenue and Benefits,D2622,Mobile Phones,10.00,O2 (UK) Ltd,Mobile Phones,2014760,201910
Rother District Council,13/12/2019,081ACQUISIT,"Acquisitions, Transformation and Regeneration",20122,Economic Development,D2622,Mobile Phones,10.00,O2 (UK) Ltd,Mobile Phones,2014764,201910
Rother District Council,13/12/2019,101RESOURCES,Resources,20239,Computer Services,D2622,Mobile Phones,10.00,O2 (UK) Ltd,Mobile Phones,2014760,201910
Rother District Council,13/12/2019,041ENVIRON,Environmental Services,20199,Food and Safety Team,D2622,Mobile Phones,10.00,O2 (UK) Ltd,Mobile Phones,2014762,201910
Rother District Council,13/12/2019,091HOUSING,Housing and Community Services,20120,Neighbourhood Services,D2622,Mobile Phones,26.25,O2 (UK) Ltd,Mobile Phones,2014761,201910
Rother District Council,13/12/2019,081ACQUISIT,"Acquisitions, Transformation and Regeneration",20263,"Head of Service Acquisitions, Transformation and Regeneration",D2622,Mobile Phones,10.00,O2 (UK) Ltd,Mobile Phones,2014764,201910
Rother District Council,13/12/2019,041ENVIRON,Environmental Services,20265,Pollution Team,D2622,Mobile Phones,10.00,O2 (UK) Ltd,Mobile Phones,2014762,201910
Rother District Council,13/12/2019,041ENVIRON,Environmental Services,20199,Food and Safety Team,D2622,Mobile Phones,10.00,O2 (UK) Ltd,Mobile Phones,2014762,201910
Rother District Council,13/12/2019,041ENVIRON,Environmental Services,20198,Licensing Team,D2622,Mobile Phones,10.00,O2 (UK) Ltd,Mobile Phones,2014762,201910
Rother District Council,13/12/2019,041ENVIRON,Environmental Services,20198,Licensing Team,D2622,Mobile Phones,10.00,O2 (UK) Ltd,Mobile Phones,2014762,201910
Rother District Council,13/12/2019,101RESOURCES,Resources,20222,Accountancy,D2622,Mobile Phones,10.00,O2 (UK) Ltd,Mobile Phones,2014760,201910
Rother District Council,13/12/2019,091HOUSING,Housing and Community Services,20264,Property Maintenance Team,D2622,Mobile Phones,10.00,O2 (UK) Ltd,Mobile Phones,2014761,201910
Rother District Council,13/12/2019,041ENVIRON,Environmental Services,20198,Licensing Team,D2622,Mobile Phones,10.00,O2 (UK) Ltd,Mobile Phones,2014762,201910
Rother District Council,13/12/2019,091HOUSING,Housing and Community Services,20204,Housing Administration Account,D2622,Mobile Phones,10.00,O2 (UK) Ltd,Mobile Phones,2014761,201910
Rother District Council,13/12/2019,041ENVIRON,Environmental Services,20265,Pollution Team,D2622,Mobile Phones,10.00,O2 (UK) Ltd,Mobile Phones,2014762,201910
Rother District Council,13/12/2019,041ENVIRON,Environmental Services,20265,Pollution Team,D2622,Mobile Phones,10.00,O2 (UK) Ltd,Mobile Phones,2014762,201910
Rother District Council,13/12/2019,041ENVIRON,Environmental Services,20265,Pollution Team,D2622,Mobile Phones,10.00,O2 (UK) Ltd,Mobile Phones,2014762,201910
Rother District Council,13/12/2019,101RESOURCES,Resources,20215,Revenue and Benefits,D2622,Mobile Phones,10.14,O2 (UK) Ltd,Mobile Phones,2014760,201910
Rother District Council,13/12/2019,101RESOURCES,Resources,20215,Revenue and Benefits,D2622,Mobile Phones,10.00,O2 (UK) Ltd,Mobile Phones,2014760,201910
Rother District Council,13/12/2019,091HOUSING,Housing and Community Services,20120,Neighbourhood Services,D2622,Mobile Phones,10.00,O2 (UK) Ltd,Mobile Phones,2014761,201910
Rother District Council,13/12/2019,091HOUSING,Housing and Community Services,20120,Neighbourhood Services,D2622,Mobile Phones,10.00,O2 (UK) Ltd,Mobile Phones,2014761,201910
Rother District Council,13/12/2019,091HOUSING,Housing and Community Services,20120,Neighbourhood Services,D2622,Mobile Phones,10.00,O2 (UK) Ltd,Mobile Phones,2014761,201910
Rother District Council,13/12/2019,091HOUSING,Housing and Community Services,20120,Neighbourhood Services,D2622,Mobile Phones,10.00,O2 (UK) Ltd,Mobile Phones,2014761,201910
Rother District Council,13/12/2019,091HOUSING,Housing and Community Services,20120,Neighbourhood Services,D2622,Mobile Phones,10.00,O2 (UK) Ltd,Mobile Phones,2014761,201910
Rother District Council,13/12/2019,091HOUSING,Housing and Community Services,20120,Neighbourhood Services,D2622,Mobile Phones,10.00,O2 (UK) Ltd,Mobile Phones,2014761,201910
Rother District Council,13/12/2019,091HOUSING,Housing and Community Services,20120,Neighbourhood Services,D2622,Mobile Phones,10.00,O2 (UK) Ltd,Mobile Phones,2014761,201910
Rother District Council,13/12/2019,091HOUSING,Housing and Community Services,20120,Neighbourhood Services,D2622,Mobile Phones,10.00,O2 (UK) Ltd,Mobile Phones,2014761,201910
Rother District Council,13/12/2019,091HOUSING,Housing and Community Services,20120,Neighbourhood Services,D2622,Mobile Phones,10.00,O2 (UK) Ltd,Mobile Phones,2014761,201910
Rother District Council,13/12/2019,091HOUSING,Housing and Community Services,20236,Customer Services and Development,D2622,Mobile Phones,15.00,O2 (UK) Ltd,Mobile Phones,2014761,201910
Rother District Council,13/12/2019,071STRAT,Strategy and Planning,20248,"Complaints,Compliance,Enforce",D2622,Mobile Phones,10.00,O2 (UK) Ltd,Mobile Phones,2014759,201910
Rother District Council,13/12/2019,041ENVIRON,Environmental Services,20265,Pollution Team,D2622,Mobile Phones,10.00,O2 (UK) Ltd,Mobile Phones,2014762,201910
Rother District Council,13/12/2019,091HOUSING,Housing and Community Services,20120,Neighbourhood Services,D2622,Mobile Phones,10.00,O2 (UK) Ltd,Mobile Phones,2014761,201910
Rother District Council,13/12/2019,081ACQUISIT,"Acquisitions, Transformation and Regeneration",20122,Economic Development,D2622,Mobile Phones,10.00,O2 (UK) Ltd,Mobile Phones,2014764,201910
Rother District Council,13/12/2019,091HOUSING,Housing and Community Services,20120,Neighbourhood Services,D2622,Mobile Phones,10.00,O2 (UK) Ltd,Mobile Phones,2014761,201910
Rother District Council,13/12/2019,091HOUSING,Housing and Community Services,20204,Housing Administration Account,D2622,Mobile Phones,10.00,O2 (UK) Ltd,Mobile Phones,2014761,201910
Rother District Council,13/12/2019,031RESOURCES,Executive Directors & Corporate Core,20171,Human Resources,D2622,Mobile Phones,10.00,O2 (UK) Ltd,Mobile Phones,2014763,201910
Rother District Council,13/12/2019,091HOUSING,Housing and Community Services,20204,Housing Administration Account,D2622,Mobile Phones,10.00,O2 (UK) Ltd,Mobile Phones,2014761,201910
Rother District Council,13/12/2019,041ENVIRON,Environmental Services,20198,Licensing Team,D2622,Mobile Phones,10.08,O2 (UK) Ltd,Mobile Phones,2014762,201910
Rother District Council,13/12/2019,091HOUSING,Housing and Community Services,20204,Housing Administration Account,D2622,Mobile Phones,10.00,O2 (UK) Ltd,Mobile Phones,2014761,201910
Rother District Council,13/12/2019,091HOUSING,Housing and Community Services,20204,Housing Administration Account,D2622,Mobile Phones,10.00,O2 (UK) Ltd,Mobile Phones,2014761,201910
Rother District Council,13/12/2019,091HOUSING,Housing and Community Services,20204,Housing Administration Account,D2622,Mobile Phones,14.88,O2 (UK) Ltd,Mobile Phones,2014761,201910
Rother District Council,13/12/2019,041ENVIRON,Environmental Services,20265,Pollution Team,D2622,Mobile Phones,10.00,O2 (UK) Ltd,Mobile Phones,2014762,201910
Rother District Council,13/12/2019,081ACQUISIT,"Acquisitions, Transformation and Regeneration",20122,Economic Development,D2622,Mobile Phones,10.00,O2 (UK) Ltd,Mobile Phones,2014764,201910
Rother District Council,13/12/2019,081ACQUISIT,"Acquisitions, Transformation and Regeneration",20122,Economic Development,D2622,Mobile Phones,10.00,O2 (UK) Ltd,Mobile Phones,2014764,201910
Rother District Council,13/12/2019,101RESOURCES,Resources,20239,Computer Services,D2622,Mobile Phones,10.00,O2 (UK) Ltd,Mobile Phones,2014760,201910
Rother District Council,13/12/2019,041ENVIRON,Environmental Services,20199,Food and Safety Team,D2622,Mobile Phones,10.00,O2 (UK) Ltd,Mobile Phones,2014762,201910
Rother District Council,13/12/2019,101RESOURCES,Resources,20239,Computer Services,D2622,Mobile Phones,10.00,O2 (UK) Ltd,Mobile Phones,2014760,201910
Rother District Council,13/12/2019,041ENVIRON,Environmental Services,20265,Pollution Team,D2622,Mobile Phones,10.00,O2 (UK) Ltd,Mobile Phones,2014762,201910
Rother District Council,13/12/2019,081ACQUISIT,"Acquisitions, Transformation and Regeneration",20243,Business Improvement,D2622,Mobile Phones,10.00,O2 (UK) Ltd,Mobile Phones,2014764,201910
Rother District Council,13/12/2019,091HOUSING,Housing and Community Services,20204,Housing Administration Account,D2622,Mobile Phones,10.00,O2 (UK) Ltd,Mobile Phones,2014761,201910
Rother District Council,13/12/2019,031RESOURCES,Executive Directors & Corporate Core,20179,Communications,D2622,Mobile Phones,10.00,O2 (UK) Ltd,Mobile Phones,2014763,201910
Rother District Council,13/12/2019,091HOUSING,Housing and Community Services,20204,Housing Administration Account,D2622,Mobile Phones,10.00,O2 (UK) Ltd,Mobile Phones,2014761,201910
Rother District Council,13/12/2019,091HOUSING,Housing and Community Services,20204,Housing Administration Account,D2622,Mobile Phones,10.00,O2 (UK) Ltd,Mobile Phones,2014761,201910
Rother District Council,13/12/2019,091HOUSING,Housing and Community Services,20264,Property Maintenance Team,D2622,Mobile Phones,10.00,O2 (UK) Ltd,Mobile Phones,2014761,201910
Rother District Council,13/12/2019,091HOUSING,Housing and Community Services,20204,Housing Administration Account,D2622,Mobile Phones,10.00,O2 (UK) Ltd,Mobile Phones,2014761,201910
Rother District Council,13/12/2019,091HOUSING,Housing and Community Services,20204,Housing Administration Account,D2622,Mobile Phones,10.00,O2 (UK) Ltd,Mobile Phones,2014761,201910
Rother District Council,13/12/2019,041ENVIRON,Environmental Services,20265,Pollution Team,D2622,Mobile Phones,10.00,O2 (UK) Ltd,Mobile Phones,2014762,201910
Rother District Council,13/12/2019,091HOUSING,Housing and Community Services,20120,Neighbourhood Services,D2622,Mobile Phones,10.00,O2 (UK) Ltd,Mobile Phones,2014761,201910
Rother District Council,13/12/2019,041ENVIRON,Environmental Services,20199,Food and Safety Team,D2622,Mobile Phones,10.00,O2 (UK) Ltd,Mobile Phones,2014762,201910
Rother District Council,13/12/2019,091HOUSING,Housing and Community Services,20262,Head of Service Housing and Community Services,D2622,Mobile Phones,108.41,O2 (UK) Ltd,Mobile Phones,2014761,201910
Rother District Council,13/12/2019,091HOUSING,Housing and Community Services,20120,Neighbourhood Services,D2622,Mobile Phones,10.00,O2 (UK) Ltd,Mobile Phones,2014761,201910
Rother District Council,13/12/2019,101RESOURCES,Resources,20215,Revenue and Benefits,D2622,Mobile Phones,10.00,O2 (UK) Ltd,Mobile Phones,2014760,201910
Rother District Council,13/12/2019,091HOUSING,Housing and Community Services,20204,Housing Administration Account,D2622,Mobile Phones,10.00,O2 (UK) Ltd,Mobile Phones,2014761,201910
Rother District Council,13/12/2019,091HOUSING,Housing and Community Services,20264,Property Maintenance Team,D2622,Mobile Phones,10.00,O2 (UK) Ltd,Mobile Phones,2014761,201910
Rother District Council,13/12/2019,101RESOURCES,Resources,20222,Accountancy,D2622,Mobile Phones,10.00,O2 (UK) Ltd,Mobile Phones,2014760,201910
Rother District Council,13/12/2019,031RESOURCES,Executive Directors & Corporate Core,20158,Committee Service General Exp,D2622,Mobile Phones,10.00,O2 (UK) Ltd,Mobile Phones,2014763,201910
Rother District Council,13/12/2019,041ENVIRON,Environmental Services,20265,Pollution Team,D2622,Mobile Phones,10.00,O2 (UK) Ltd,Mobile Phones,2014762,201910
Rother District Council,13/12/2019,091HOUSING,Housing and Community Services,20120,Neighbourhood Services,D2622,Mobile Phones,10.00,O2 (UK) Ltd,Mobile Phones,2014761,201910
Rother District Council,13/12/2019,101RESOURCES,Resources,20226,Service Manager Finance and Welfare,D2622,Mobile Phones,10.00,O2 (UK) Ltd,Mobile Phones,2014763,201910
Rother District Council,13/12/2019,031RESOURCES,Executive Directors & Corporate Core,20171,Human Resources,D2622,Mobile Phones,10.00,O2 (UK) Ltd,Mobile Phones,2014763,201910
Rother District Council,13/12/2019,091HOUSING,Housing and Community Services,20264,Property Maintenance Team,D2622,Mobile Phones,20.00,O2 (UK) Ltd,Mobile Phones,2014761,201910
Rother District Council,13/12/2019,071STRAT,Strategy and Planning,20248,"Complaints,Compliance,Enforce",D2622,Mobile Phones,10.00,O2 (UK) Ltd,Mobile Phones,2014759,201910
Rother District Council,13/12/2019,091HOUSING,Housing and Community Services,20204,Housing Administration Account,D2622,Mobile Phones,10.00,O2 (UK) Ltd,Mobile Phones,2014761,201910
Rother District Council,13/12/2019,091HOUSING,Housing and Community Services,20264,Property Maintenance Team,D2622,Mobile Phones,10.19,O2 (UK) Ltd,Mobile Phones,2014761,201910
Rother District Council,13/12/2019,101RESOURCES,Resources,20226,Service Manager Finance and Welfare,D2622,Mobile Phones,10.00,O2 (UK) Ltd,Mobile Phones,2014763,201910
Rother District Council,13/12/2019,091HOUSING,Housing and Community Services,20120,Neighbourhood Services,D2622,Mobile Phones,10.91,O2 (UK) Ltd,Mobile Phones,2014761,201910
Rother District Council,13/12/2019,031RESOURCES,Executive Directors & Corporate Core,20183,Executive Directors,D2622,Mobile Phones,30.00,O2 (UK) Ltd,Mobile Phones,2014763,201910
Rother District Council,13/12/2019,031RESOURCES,Executive Directors & Corporate Core,20183,Executive Directors,D2622,Mobile Phones,10.00,O2 (UK) Ltd,Mobile Phones,2014763,201910
Rother District Council,13/12/2019,041ENVIRON,Environmental Services,20199,Food and Safety Team,D2622,Mobile Phones,10.00,O2 (UK) Ltd,Mobile Phones,2014762,201910
Rother District Council,13/12/2019,091HOUSING,Housing and Community Services,20204,Housing Administration Account,D2622,Mobile Phones,10.00,O2 (UK) Ltd,Mobile Phones,2014761,201910
Rother District Council,13/12/2019,081ACQUISIT,"Acquisitions, Transformation and Regeneration",20122,Economic Development,D2622,Mobile Phones,10.00,O2 (UK) Ltd,Mobile Phones,2014764,201910
Rother District Council,13/12/2019,041ENVIRON,Environmental Services,20198,Licensing Team,D2622,Mobile Phones,10.00,O2 (UK) Ltd,Mobile Phones,2014762,201910
Rother District Council,13/12/2019,041ENVIRON,Environmental Services,20198,Licensing Team,D2622,Mobile Phones,10.00,O2 (UK) Ltd,Mobile Phones,2014762,201910
Rother District Council,13/12/2019,041ENVIRON,Environmental Services,20199,Food and Safety Team,D2622,Mobile Phones,10.00,O2 (UK) Ltd,Mobile Phones,2014762,201910
Rother District Council,13/12/2019,041ENVIRON,Environmental Services,20265,Pollution Team,D2622,Mobile Phones,10.00,O2 (UK) Ltd,Mobile Phones,2014762,201910
Rother District Council,13/12/2019,081ACQUISIT,"Acquisitions, Transformation and Regeneration",20122,Economic Development,D2622,Mobile Phones,10.00,O2 (UK) Ltd,Mobile Phones,2014764,201910
Rother District Council,13/12/2019,041ENVIRON,Environmental Services,20198,Licensing Team,D2622,Mobile Phones,10.00,O2 (UK) Ltd,Mobile Phones,2014762,201910
Rother District Council,13/12/2019,031RESOURCES,Executive Directors & Corporate Core,20180,Emergency Planning,D2622,Mobile Phones,10.00,O2 (UK) Ltd,Mobile Phones,2014763,201910
Rother District Council,13/12/2019,091HOUSING,Housing and Community Services,20264,Property Maintenance Team,D2622,Mobile Phones,10.00,O2 (UK) Ltd,Mobile Phones,2014761,201910
Rother District Council,13/12/2019,071STRAT,Strategy and Planning,20248,"Complaints,Compliance,Enforce",D2622,Mobile Phones,10.00,O2 (UK) Ltd,Mobile Phones,2014759,201910
Rother District Council,13/12/2019,091HOUSING,Housing and Community Services,20204,Housing Administration Account,D2622,Mobile Phones,10.00,O2 (UK) Ltd,Mobile Phones,2014761,201910
Rother District Council,13/12/2019,091HOUSING,Housing and Community Services,20264,Property Maintenance Team,D2622,Mobile Phones,-9.54,O2 (UK) Ltd,Mobile Phones,2014761,201910
Rother District Council,13/12/2019,041ENVIRON,Environmental Services,20199,Food and Safety Team,D2622,Mobile Phones,10.00,O2 (UK) Ltd,Mobile Phones,2014762,201910
Rother District Council,13/12/2019,041ENVIRON,Environmental Services,20265,Pollution Team,D2622,Mobile Phones,10.00,O2 (UK) Ltd,Mobile Phones,2014762,201910
Rother District Council,13/12/2019,091HOUSING,Housing and Community Services,20120,Neighbourhood Services,D2622,Mobile Phones,10.00,O2 (UK) Ltd,Mobile Phones,2014761,201910
Rother District Council,13/12/2019,071STRAT,Strategy and Planning,20246,Planning Applications,D2622,Mobile Phones,10.00,O2 (UK) Ltd,Mobile Phones,2014759,201910
Rother District Council,13/12/2019,031RESOURCES,Executive Directors & Corporate Core,20162,Electoral Registration,D2622,Mobile Phones,10.00,O2 (UK) Ltd,Mobile Phones,2014763,201910
Rother District Council,13/12/2019,101RESOURCES,Resources,20215,Revenue and Benefits,D2622,Mobile Phones,10.00,O2 (UK) Ltd,Mobile Phones,2014760,201910
Rother District Council,13/12/2019,091HOUSING,Housing and Community Services,20120,Neighbourhood Services,D2622,Mobile Phones,10.00,O2 (UK) Ltd,Mobile Phones,2014761,201910
Rother District Council,13/12/2019,071STRAT,Strategy and Planning,20246,Planning Applications,D2622,Mobile Phones,10.00,O2 (UK) Ltd,Mobile Phones,2014759,201910
Rother District Council,13/12/2019,091HOUSING,Housing and Community Services,20120,Neighbourhood Services,D2622,Mobile Phones,10.00,O2 (UK) Ltd,Mobile Phones,2014761,201910
Rother District Council,13/12/2019,091HOUSING,Housing and Community Services,20264,Property Maintenance Team,D2622,Mobile Phones,10.00,O2 (UK) Ltd,Mobile Phones,2014761,201910
Rother District Council,13/12/2019,041ENVIRON,Environmental Services,20199,Food and Safety Team,D2622,Mobile Phones,10.00,O2 (UK) Ltd,Mobile Phones,2014762,201910
Rother District Council,13/12/2019,091HOUSING,Housing and Community Services,20120,Neighbourhood Services,D2622,Mobile Phones,10.00,O2 (UK) Ltd,Mobile Phones,2014761,201910
Rother District Council,13/12/2019,041ENVIRON,Environmental Services,20197,Service Manager Env Serv,D2622,Mobile Phones,10.00,O2 (UK) Ltd,Mobile Phones,2014762,201910
Rother District Council,13/12/2019,041ENVIRON,Environmental Services,20199,Food and Safety Team,D2622,Mobile Phones,10.00,O2 (UK) Ltd,Mobile Phones,2014762,201910
Rother District Council,13/12/2019,091HOUSING,Housing and Community Services,20120,Neighbourhood Services,D2622,Mobile Phones,10.00,O2 (UK) Ltd,Mobile Phones,2014761,201910
Rother District Council,13/12/2019,041ENVIRON,Environmental Services,20199,Food and Safety Team,D2622,Mobile Phones,10.00,O2 (UK) Ltd,Mobile Phones,2014762,201910
Rother District Council,13/12/2019,101RESOURCES,Resources,20226,Service Manager Finance and Welfare,D2622,Mobile Phones,10.00,O2 (UK) Ltd,Mobile Phones,2014763,201910
Rother District Council,13/12/2019,031RESOURCES,Executive Directors & Corporate Core,20180,Emergency Planning,D2622,Mobile Phones,10.00,O2 (UK) Ltd,Mobile Phones,2014763,201910
Rother District Council,13/12/2019,031RESOURCES,Executive Directors & Corporate Core,20180,Emergency Planning,D2622,Mobile Phones,4.50,O2 (UK) Ltd,Mobile Phones,2014763,201910
Rother District Council,13/12/2019,091HOUSING,Housing and Community Services,20264,Property Maintenance Team,D2622,Mobile Phones,10.00,O2 (UK) Ltd,Mobile Phones,2014761,201910
Rother District Council,13/12/2019,041ENVIRON,Environmental Services,20265,Pollution Team,D2622,Mobile Phones,10.00,O2 (UK) Ltd,Mobile Phones,2014762,201910
Rother District Council,13/12/2019,091HOUSING,Housing and Community Services,20204,Housing Administration Account,D2622,Mobile Phones,10.00,O2 (UK) Ltd,Mobile Phones,2014761,201910
Rother District Council,13/12/2019,041ENVIRON,Environmental Services,20265,Pollution Team,D2622,Mobile Phones,10.00,O2 (UK) Ltd,Mobile Phones,2014762,201910
Rother District Council,13/12/2019,091HOUSING,Housing and Community Services,20120,Neighbourhood Services,D2622,Mobile Phones,10.00,O2 (UK) Ltd,Mobile Phones,2014761,201910
Rother District Council,13/12/2019,091HOUSING,Housing and Community Services,20120,Neighbourhood Services,D2622,Mobile Phones,10.00,O2 (UK) Ltd,Mobile Phones,2014761,201910
Rother District Council,13/12/2019,081ACQUISIT,"Acquisitions, Transformation and Regeneration",20272,Major Projects unit,D2622,Mobile Phones,10.00,O2 (UK) Ltd,Mobile Phones,2014764,201910
Rother District Council,13/12/2019,101RESOURCES,Resources,20226,Service Manager Finance and Welfare,D2622,Mobile Phones,-8.22,O2 (UK) Ltd,Mobile Phones,2014763,201910
Rother District Council,13/12/2019,041ENVIRON,Environmental Services,20199,Food and Safety Team,D2622,Mobile Phones,10.12,O2 (UK) Ltd,Mobile Phones,2014762,201910
Rother District Council,13/12/2019,091HOUSING,Housing and Community Services,20109,Sports Development,D2622,Mobile Phones,10.00,O2 (UK) Ltd,Mobile Phones,2014761,201910
Rother District Council,13/12/2019,041ENVIRON,Environmental Services,20199,Food and Safety Team,D2622,Mobile Phones,10.00,O2 (UK) Ltd,Mobile Phones,2014762,201910
Rother District Council,13/12/2019,041ENVIRON,Environmental Services,20265,Pollution Team,D2622,Mobile Phones,10.00,O2 (UK) Ltd,Mobile Phones,2014762,201910
Rother District Council,13/12/2019,091HOUSING,Housing and Community Services,20120,Neighbourhood Services,D2622,Mobile Phones,10.00,O2 (UK) Ltd,Mobile Phones,2014761,201910
Rother District Council,13/12/2019,091HOUSING,Housing and Community Services,20120,Neighbourhood Services,D2622,Mobile Phones,10.00,O2 (UK) Ltd,Mobile Phones,2014761,201910
Rother District Council,13/12/2019,091HOUSING,Housing and Community Services,20120,Neighbourhood Services,D2622,Mobile Phones,10.00,O2 (UK) Ltd,Mobile Phones,2014761,201910
Rother District Council,13/12/2019,091HOUSING,Housing and Community Services,20204,Housing Administration Account,D2622,Mobile Phones,10.00,O2 (UK) Ltd,Mobile Phones,2014761,201910
Rother District Council,13/12/2019,071STRAT,Strategy and Planning,20247,Service Manager Strategy and Planning,D2622,Mobile Phones,10.00,O2 (UK) Ltd,Mobile Phones,2014759,201910
Rother District Council,13/12/2019,031RESOURCES,Executive Directors & Corporate Core,20183,Executive Directors,D2622,Mobile Phones,10.10,O2 (UK) Ltd,Mobile Phones,2014763,201910
Rother District Council,13/12/2019,101RESOURCES,Resources,20215,Revenue and Benefits,D2622,Mobile Phones,10.00,O2 (UK) Ltd,Mobile Phones,2014760,201910
Rother District Council,13/12/2019,101RESOURCES,Resources,20239,Computer Services,D2622,Mobile Phones,10.00,O2 (UK) Ltd,Mobile Phones,2014760,201910
Rother District Council,13/12/2019,041ENVIRON,Environmental Services,20199,Food and Safety Team,D2622,Mobile Phones,10.00,O2 (UK) Ltd,Mobile Phones,2014762,201910
Rother District Council,13/12/2019,091HOUSING,Housing and Community Services,20120,Neighbourhood Services,D2622,Mobile Phones,10.00,O2 (UK) Ltd,Mobile Phones,2014761,201910
Rother District Council,13/12/2019,091HOUSING,Housing and Community Services,20120,Neighbourhood Services,D2622,Mobile Phones,10.00,O2 (UK) Ltd,Mobile Phones,2014761,201910
Rother District Council,13/12/2019,091HOUSING,Housing and Community Services,20120,Neighbourhood Services,D2622,Mobile Phones,10.00,O2 (UK) Ltd,Mobile Phones,2014761,201910
Rother District Council,13/12/2019,101RESOURCES,Resources,20239,Computer Services,D2622,Mobile Phones,10.00,O2 (UK) Ltd,Mobile Phones,2014760,201910
Rother District Council,13/12/2019,101RESOURCES,Resources,20239,Computer Services,D2622,Mobile Phones,10.00,O2 (UK) Ltd,Mobile Phones,2014760,201910
Rother District Council,13/12/2019,091HOUSING,Housing and Community Services,20132,Street & Beach Cleansing,D1201,Equipment & Materials,46.78,Trade Paints Ltd,Equipment & materials - Miscellaneous,2014551,201910
Rother District Council,13/12/2019,091HOUSING,Housing and Community Services,20145,Maintenance Services,D1201,Equipment & Materials,20.82,Trade UK Account (Screwfix),Repairs to Premises - Repairs/Maintenance - various,2014167,201910
Rother District Council,15/12/2019,031RESOURCES,Executive Directors & Corporate Core,20170,Communications-Postages,C1103,Petrol,33.33,Allstar Business Solutions,Petrol,2014775,201910
Rother District Council,15/12/2019,041ENVIRON,Environmental Services,32136,EH Pest Control R + W Partnership,C1104,Derv,47.50,Allstar Business Solutions,Derv,2014775,201910
Rother District Council,15/12/2019,041ENVIRON,Environmental Services,32136,EH Pest Control R + W Partnership,C1104,Derv,48.33,Allstar Business Solutions,Derv,2014775,201910
Rother District Council,15/12/2019,091HOUSING,Housing and Community Services,20145,Maintenance Services,C1104,Derv,67.88,Allstar Business Solutions,Derv,2014775,201910
Rother District Council,15/12/2019,091HOUSING,Housing and Community Services,20145,Maintenance Services,C1104,Derv,39.17,Allstar Business Solutions,Derv,2014775,201910
Rother District Council,15/12/2019,091HOUSING,Housing and Community Services,20145,Maintenance Services,C1104,Derv,52.50,Allstar Business Solutions,Derv,2014775,201910
Rother District Council,15/12/2019,091HOUSING,Housing and Community Services,20107,Camber Beach & Foreshore,C1104,Derv,33.23,Allstar Business Solutions,Derv,2014775,201910
Rother District Council,15/12/2019,091HOUSING,Housing and Community Services,20107,Camber Beach & Foreshore,C1104,Derv,1.90,Allstar Business Solutions,Derv - Fuel Service fee payable on fuel cards,2014775,201910
Rother District Council,15/12/2019,041ENVIRON,Environmental Services,32136,EH Pest Control R + W Partnership,C1104,Derv,3.80,Allstar Business Solutions,Derv - Fuel Service fee payable on fuel cards,2014775,201910
Rother District Council,15/12/2019,091HOUSING,Housing and Community Services,20145,Maintenance Services,C1104,Derv,1.90,Allstar Business Solutions,Derv - Fuel Service fee payable on fuel cards,2014775,201910
Rother District Council,15/12/2019,041ENVIRON,Environmental Services,32134,EH Pollution R + W Partnership,D2513,Hired and Contracted services,"2,600.00",Hastings and Rother Mediation Service,Hired and Contracted services,2014132,201910
Rother District Council,16/12/2019,999NOREPORT,Not included in reporting,70725,Capital - Blackfriars,D2513,Hired and Contracted services,100.00,Bevan Brittan LLP,Hired and contracted services - Fees for services - provided by Not For Profit Organisations,2014688,201910
Rother District Council,16/12/2019,021CORP,Corporate Services & Human Resources,20166,Parliamentary Elections,B2312,Hire of premises (RDC),"10,304.17",De La Warr Pavilion (Enterprise) Ltd,Hire of Premises (RDC) - Elections Meeting room hire De La Warr Pavilion,2015443,201911
Rother District Council,16/12/2019,081ACQUISIT,"Acquisitions, Transformation and Regeneration",20101,Cultural Development,D2926,District Events- Concessionary Use,"1,500.00",De La Warr Pavilion Charitable Trust,District Events-Concessionary - Use DLWP Community Concessionary Grant,2015915,201912
Rother District Council,16/12/2019,999NOREPORT,Not included in reporting,70735,Capital - Wainwright Road Development,N1002,Land & Property fees,"16,641.40",Dorton Demolition Excavation Ltd,Land & Property fees,2014326,201910
Rother District Council,16/12/2019,041ENVIRON,Environmental Services,32143,EH Licenses and Registration R + W Partnership,D2513,Hired and Contracted services,368.28,Fairfield House Veterinary Surgery,Hired and Contracted services,2014749,201910
Rother District Council,16/12/2019,041ENVIRON,Environmental Services,32134,EH Pollution R + W Partnership,D1201,Equipment & Materials,4.50,Gradko International Ltd,Equipment & Materials - Carriage/Handling Charge,2015903,201912
Rother District Council,16/12/2019,041ENVIRON,Environmental Services,32134,EH Pollution R + W Partnership,D1201,Equipment & Materials,4.50,Gradko International Ltd,Equipment & Materials - Carriage/Handling Charge,2015011,201910
Rother District Council,16/12/2019,041ENVIRON,Environmental Services,32134,EH Pollution R + W Partnership,D1201,Equipment & Materials,5.16,Gradko International Ltd,Equipment & Materials - EnvH- Air Quality Maintenance Contr,2015903,201912
Rother District Council,16/12/2019,041ENVIRON,Environmental Services,32134,EH Pollution R + W Partnership,D1201,Equipment & Materials,5.16,Gradko International Ltd,Equipment & Materials - EnvH- Air Quality Maintenance Contr,2015011,201910
Rother District Council,16/12/2019,091HOUSING,Housing and Community Services,20123,Cemeteries,B1100,Repairs to Premises,"2,853.26",Hailsham Roadway Construction Ltd,Repairs to Premises - Specified Repairs and Works listed,2014170,201910
Rother District Council,16/12/2019,031RESOURCES,Executive Directors & Corporate Core,20162,Electoral Registration,D2626,Postages,421.69,Royal Mail Group Ltd,Postages,2014305,201910
Rother District Council,16/12/2019,091HOUSING,Housing and Community Services,20200,Housing Needs - HB (Housing Benefit),D2514,Accommodation Costs,364.00,South Down Residential Ltd,Accommodation Costs,2014371,201910
Rother District Council,16/12/2019,091HOUSING,Housing and Community Services,20200,Housing Needs - HB (Housing Benefit),D2514,Accommodation Costs,91.00,South Down Residential Ltd,Accommodation Costs,2014371,201910
Rother District Council,16/12/2019,091HOUSING,Housing and Community Services,20329,Rough Sleeping Initiative,D2514,Accommodation Costs,142.80,South Down Residential Ltd,Accommodation Costs,2014371,201910
Rother District Council,16/12/2019,091HOUSING,Housing and Community Services,20329,Rough Sleeping Initiative,D2514,Accommodation Costs,35.70,South Down Residential Ltd,Accommodation Costs,2014371,201910
Rother District Council,16/12/2019,091HOUSING,Housing and Community Services,20329,Rough Sleeping Initiative,D2514,Accommodation Costs,142.80,South Down Residential Ltd,Accommodation Costs,2014371,201910
Rother District Council,16/12/2019,091HOUSING,Housing and Community Services,20329,Rough Sleeping Initiative,D2514,Accommodation Costs,35.70,South Down Residential Ltd,Accommodation Costs,2014371,201910
Rother District Council,16/12/2019,091HOUSING,Housing and Community Services,20329,Rough Sleeping Initiative,D2514,Accommodation Costs,10.00,South Down Residential Ltd,Accommodation Costs,2014371,201910
Rother District Council,16/12/2019,091HOUSING,Housing and Community Services,20329,Rough Sleeping Initiative,D2514,Accommodation Costs,76.50,South Down Residential Ltd,Accommodation Costs,2014371,201910
Rother District Council,16/12/2019,091HOUSING,Housing and Community Services,20329,Rough Sleeping Initiative,D2514,Accommodation Costs,10.00,South Down Residential Ltd,Accommodation Costs,2014371,201910
Rother District Council,16/12/2019,091HOUSING,Housing and Community Services,20200,Housing Needs - HB (Housing Benefit),D2514,Accommodation Costs,16.00,South Down Residential Ltd,Accommodation Costs,2014371,201910
Rother District Council,16/12/2019,091HOUSING,Housing and Community Services,20200,Housing Needs - HB (Housing Benefit),D2514,Accommodation Costs,4.00,South Down Residential Ltd,Accommodation Costs,2014371,201910
Rother District Council,16/12/2019,091HOUSING,Housing and Community Services,20200,Housing Needs - HB (Housing Benefit),D2514,Accommodation Costs,148.80,South Down Residential Ltd,Accommodation Costs,2014371,201910
Rother District Council,16/12/2019,091HOUSING,Housing and Community Services,20200,Housing Needs - HB (Housing Benefit),D2514,Accommodation Costs,37.20,South Down Residential Ltd,Accommodation Costs,2014371,201910
Rother District Council,16/12/2019,091HOUSING,Housing and Community Services,20329,Rough Sleeping Initiative,D2514,Accommodation Costs,142.80,South Down Residential Ltd,Accommodation Costs,2014371,201910
Rother District Council,16/12/2019,091HOUSING,Housing and Community Services,20329,Rough Sleeping Initiative,D2514,Accommodation Costs,35.70,South Down Residential Ltd,Accommodation Costs,2014371,201910
Rother District Council,16/12/2019,091HOUSING,Housing and Community Services,20200,Housing Needs - HB (Housing Benefit),D2514,Accommodation Costs,399.98,South Down Residential Ltd,Accommodation Costs,2014371,201910
Rother District Council,16/12/2019,091HOUSING,Housing and Community Services,20200,Housing Needs - HB (Housing Benefit),D2514,Accommodation Costs,100.03,South Down Residential Ltd,Accommodation Costs,2014371,201910
Rother District Council,16/12/2019,091HOUSING,Housing and Community Services,20200,Housing Needs - HB (Housing Benefit),D2514,Accommodation Costs,268.80,South Down Residential Ltd,Accommodation Costs,2014371,201910
Rother District Council,16/12/2019,091HOUSING,Housing and Community Services,20200,Housing Needs - HB (Housing Benefit),D2514,Accommodation Costs,67.20,South Down Residential Ltd,Accommodation Costs,2014371,201910
Rother District Council,16/12/2019,091HOUSING,Housing and Community Services,20200,Housing Needs - HB (Housing Benefit),D2514,Accommodation Costs,268.80,South Down Residential Ltd,Accommodation Costs,2014371,201910
Rother District Council,16/12/2019,091HOUSING,Housing and Community Services,20200,Housing Needs - HB (Housing Benefit),D2514,Accommodation Costs,67.20,South Down Residential Ltd,Accommodation Costs,2014371,201910
Rother District Council,16/12/2019,091HOUSING,Housing and Community Services,20200,Housing Needs - HB (Housing Benefit),D2514,Accommodation Costs,316.40,South Down Residential Ltd,Accommodation Costs,2014371,201910
Rother District Council,16/12/2019,091HOUSING,Housing and Community Services,20200,Housing Needs - HB (Housing Benefit),D2514,Accommodation Costs,79.10,South Down Residential Ltd,Accommodation Costs,2014371,201910
Rother District Council,16/12/2019,091HOUSING,Housing and Community Services,20200,Housing Needs - HB (Housing Benefit),D2514,Accommodation Costs,330.40,South Down Residential Ltd,Accommodation Costs,2014371,201910
Rother District Council,16/12/2019,091HOUSING,Housing and Community Services,20200,Housing Needs - HB (Housing Benefit),D2514,Accommodation Costs,82.60,South Down Residential Ltd,Accommodation Costs,2014371,201910
Rother District Council,16/12/2019,091HOUSING,Housing and Community Services,20200,Housing Needs - HB (Housing Benefit),D2514,Accommodation Costs,141.60,South Down Residential Ltd,Accommodation Costs,2014371,201910
Rother District Council,16/12/2019,091HOUSING,Housing and Community Services,20200,Housing Needs - HB (Housing Benefit),D2514,Accommodation Costs,35.40,South Down Residential Ltd,Accommodation Costs,2014371,201910
Rother District Council,16/12/2019,091HOUSING,Housing and Community Services,20200,Housing Needs - HB (Housing Benefit),D2514,Accommodation Costs,188.80,South Down Residential Ltd,Accommodation Costs,2014371,201910
Rother District Council,16/12/2019,091HOUSING,Housing and Community Services,20200,Housing Needs - HB (Housing Benefit),D2514,Accommodation Costs,47.20,South Down Residential Ltd,Accommodation Costs,2014371,201910
Rother District Council,16/12/2019,091HOUSING,Housing and Community Services,20200,Housing Needs - HB (Housing Benefit),D2514,Accommodation Costs,296.80,South Down Residential Ltd,Accommodation Costs,2014371,201910
Rother District Council,16/12/2019,091HOUSING,Housing and Community Services,20200,Housing Needs - HB (Housing Benefit),D2514,Accommodation Costs,74.20,South Down Residential Ltd,Accommodation Costs,2014371,201910
Rother District Council,16/12/2019,091HOUSING,Housing and Community Services,20329,Rough Sleeping Initiative,D2514,Accommodation Costs,53.00,South Down Residential Ltd,Accommodation Costs,2014371,201910
Rother District Council,16/12/2019,091HOUSING,Housing and Community Services,20329,Rough Sleeping Initiative,D2514,Accommodation Costs,254.40,South Down Residential Ltd,Accommodation Costs,2014371,201910
Rother District Council,16/12/2019,091HOUSING,Housing and Community Services,20329,Rough Sleeping Initiative,D2514,Accommodation Costs,63.60,South Down Residential Ltd,Accommodation Costs,2014371,201910
Rother District Council,16/12/2019,091HOUSING,Housing and Community Services,20200,Housing Needs - HB (Housing Benefit),D2514,Accommodation Costs,240.03,South Down Residential Ltd,Accommodation Costs,2014371,201910
Rother District Council,16/12/2019,091HOUSING,Housing and Community Services,20200,Housing Needs - HB (Housing Benefit),D2514,Accommodation Costs,59.99,South Down Residential Ltd,Accommodation Costs,2014371,201910
Rother District Council,16/12/2019,091HOUSING,Housing and Community Services,20132,Street & Beach Cleansing,D1201,Equipment & Materials,7.86,Trade Paints Ltd,Equipment & materials - Miscellaneous,2014552,201910
Rother District Council,17/12/2019,041ENVIRON,Environmental Services,20130,Crime and Disorder Initiatives,D1201,Equipment & Materials,595.00,Besure Security Systems,Equipment & Materials - Safer Rother Partnership,2014578,201910
Rother District Council,17/12/2019,021CORP,Corporate Services & Human Resources,20166,Parliamentary Elections,B2312,Hire of premises (RDC),300.00,Beulah Baptist Church,Hire of premises (RDC),2014894,201910
Rother District Council,17/12/2019,021CORP,Corporate Services & Human Resources,20166,Parliamentary Elections,B2312,Hire of premises (RDC),200.00,Camber Memorial Hall,Hire of premises (RDC),2014998,201910
Rother District Council,17/12/2019,091HOUSING,Housing and Community Services,20111,Rye Sports Centre & Pool,B1100,Repairs to Premises,320.00,Colin A May,Repairs to Premises - Repairs Refurbishment of premises,2015216,201911
Rother District Council,17/12/2019,081ACQUISIT,"Acquisitions, Transformation and Regeneration",20146,West Trading Estate,D2513,Hired and Contracted services,"3,664.75",Coppard Giles,Hired and contracted services - Cost of Survey,2014712,201910
Rother District Council,17/12/2019,041ENVIRON,Environmental Services,32143,EH Licenses and Registration R + W Partnership,D2513,Hired and Contracted services,343.73,Fairfield House Veterinary Surgery,Hired and contracted services - EnvH-Veterinary Services for Licens,2014677,201911
Rother District Council,17/12/2019,101RESOURCES,Resources,20239,Computer Services,D2635,Computer Licences,"7,475.00",Firmstep Ltd,Computer Licences - Domain Name Renewal,2014587,201910
Rother District Council,17/12/2019,021CORP,Corporate Services & Human Resources,20166,Parliamentary Elections,B2312,Hire of premises (RDC),85.00,Flimwell Playing Field Association,Hire of premises (RDC),2014884,201910
Rother District Council,17/12/2019,091HOUSING,Housing and Community Services,20108,Bexhill Promenade & Foreshore,B1100,Repairs to Premises,4.42,Saint-Gobain Building Distribution Ltd t/a Jewson,Repairs to Premises - Repairs/Maintenance - various,2014367,201910
Rother District Council,17/12/2019,091HOUSING,Housing and Community Services,20206,Syrians,D2513,Hired and Contracted services,585.00,Susanne Evershed,Hired and contracted services - Syrian-Education-Exempt VAT,2014583,201910
Rother District Council,17/12/2019,091HOUSING,Housing and Community Services,20108,Bexhill Promenade & Foreshore,B1100,Repairs to Premises,128.04,Sussex Turnery and Moulding Co Ltd,Repairs to Premises - Specified Repairs and Works listed,2014231,201910
Rother District Council,17/12/2019,081ACQUISIT,"Acquisitions, Transformation and Regeneration",20101,Cultural Development,D2923,Grants made,"1,000.00",The Eggtooth Project,Grants made - Arts Development Projects,2014363,201910
Rother District Council,17/12/2019,091HOUSING,Housing and Community Services,20109,Sports Development,D2923,Grants made,450.00,Westfield Cricket Club,Grants made - Sports Development Projects,2014450,201910
Rother District Council,18/12/2019,081ACQUISIT,"Acquisitions, Transformation and Regeneration",20155,Investment properties,D2513,Hired and Contracted services,"30,750.00",ADS RE Ltd,Hired and contracted services - Fees for services - provided by Not For Profit Organisations,2015049,201911
Rother District Council,18/12/2019,091HOUSING,Housing and Community Services,20109,Sports Development,D2923,Grants made,500.00,Bexhill Breathers,Grants made - Active Sussex Project workforce dev.,2014249,201910
Rother District Council,18/12/2019,071STRAT,Strategy and Planning,20246,Planning Applications,D2509,Consultants and Other Services,"2,076.33",Carrington West Ltd,Consultants and other services - Consultants Fees,2014313,201910
Rother District Council,18/12/2019,999NOREPORT,Not included in reporting,70736,Capital - 18-40 Beeching Close Refurbishment,N1004,Architects & Consultant Fees,"3,563.65",Counterculture Partnership LLP,Architects & Consultant Fees Capital-Architect and Conslt Fees,2014600,201910
Rother District Council,18/12/2019,101RESOURCES,Resources,20216,Cost Of Collection,D2626,Postages,351.52,DSI Billing Services Ltd,Postages - DSI Billing,2014554,201910
Rother District Council,18/12/2019,091HOUSING,Housing and Community Services,20109,Sports Development,D2923,Grants made,240.00,Miss Kerna Williams,Grants made - Active Sussex Project workforce dev.,2014267,201910
Rother District Council,18/12/2019,081ACQUISIT,"Acquisitions, Transformation and Regeneration",20153,"Elva Business Centre, Bexhill",B2201,Electricity,83.35,Opus Energy Ltd,Electricity - Electricity Charges,2014602,201910
Rother District Council,18/12/2019,091HOUSING,Housing and Community Services,20138,Residual Highway Services,B1100,Repairs to Premises,26.16,Saint-Gobain Building Distribution Ltd t/a Jewson,Repairs to Premises - Purchase of Materials - Build Maint,2014368,201910
Rother District Council,18/12/2019,091HOUSING,Housing and Community Services,20128,Public Conveniences,B2422,Sewerage,221.10,Scottish Water Business Stream Limited,Sewerage - Sewerage Charges,2014317,201910
Rother District Council,18/12/2019,091HOUSING,Housing and Community Services,20109,Sports Development,D2923,Grants made,500.00,Skiltek Ltd,Grants made - Active Sussex Project workforce dev.,2014251,201910
Rother District Council,18/12/2019,091HOUSING,Housing and Community Services,20109,Sports Development,D2923,Grants made,500.00,Skiltek Ltd,Grants made - Active Sussex Project workforce dev.,2014252,201910
Rother District Council,18/12/2019,071STRAT,Strategy and Planning,20255,Local Development Framework,D2513,Hired and Contracted services,"47,721.69",The Planning Inspectorate,Hired and contracted services - LDF Consultancy,2014269,201910
Rother District Council,19/12/2019,091HOUSING,Housing and Community Services,20137,Car Parks,B1100,Repairs to Premises,"1,189.88",Alfa Electric Ltd,Repairs to Premises - Car Park Maintenance,2014388,201910
Rother District Council,19/12/2019,091HOUSING,Housing and Community Services,20137,Car Parks,B1100,Repairs to Premises,379.16,Alfa Electric Ltd,Repairs to Premises - Car Park Maintenance,2014562,201910
Rother District Council,19/12/2019,091HOUSING,Housing and Community Services,20137,Car Parks,B1100,Repairs to Premises,"1,080.68",Alfa Electric Ltd,Repairs to Premises - Car Park Maintenance,2014387,201910
Rother District Council,19/12/2019,091HOUSING,Housing and Community Services,20108,Bexhill Promenade & Foreshore,B1100,Repairs to Premises,119.64,Alfa Electric Ltd,Repairs to Premises - Repairs - Electrical Works,2014329,201910
Rother District Council,19/12/2019,091HOUSING,Housing and Community Services,20108,Bexhill Promenade & Foreshore,B1100,Repairs to Premises,"1,992.83",Alfa Electric Ltd,Repairs to Premises - Specified Repairs and Works listed,2014561,201910
Rother District Council,19/12/2019,081ACQUISIT,"Acquisitions, Transformation and Regeneration",20266,Property Investment Strategy,D2520,Insurance,364.15,Arthur J. Gallagher Insurance Brokers Ltd,Insurance - Property building Insurance,2014327,201910
Rother District Council,19/12/2019,021CORP,Corporate Services & Human Resources,20166,Parliamentary Elections,B2312,Hire of premises (RDC),430.00,Bexhill Amateur Athletic Community Association,Hire of premises (RDC),2014897,201910
Rother District Council,19/12/2019,999NOREPORT,Not included in reporting,70727,Capital - Joint  Waste Equipment,N1008,Equipment,"22,140.00",Biffa Municipal Limited,Capital - Purchase of Equipment,2014656,201910
Rother District Council,19/12/2019,031RESOURCES,Executive Directors & Corporate Core,20175,Administrative Offices - T.H. Annex (NOT CHP),B1100,Repairs to Premises,600.00,Booker and Best Ltd,Repairs to Premises - Heating Maintenance,2014303,201910
Rother District Council,19/12/2019,999NOREPORT,Not included in reporting,70705,Capital - Fairlight Coastal Protection Scheme (Preservational Trust),N1007,Plant & Machinery,"1,320.00",Booker and Best Ltd,Capital - Plant and Property,2014304,201910
Rother District Council,19/12/2019,041ENVIRON,Environmental Services,32142,EH Taxi and Private Hire Licenses R + W Partnership,D2513,Hired and Contracted services,68.80,Edwards Cars and Minibuses,Hired and contracted services - Service fee paid,2014341,201910
Rother District Council,19/12/2019,101RESOURCES,Resources,20209,Corporate management,D2516,Audit fees,"7,900.00",Grant Thornton UK LLP,Audit Fees - External Audit,2014322,201910
Rother District Council,19/12/2019,021CORP,Corporate Services & Human Resources,20166,Parliamentary Elections,D2513,Hired and Contracted services,"2,852.00",Idox Software Ltd,Hired and contracted services - election misc payment-net,2014315,201910
Rother District Council,19/12/2019,081ACQUISIT,"Acquisitions, Transformation and Regeneration",20155,Investment properties,B2201,Electricity,36.23,Laser Energy Buying Group (Kent County Council Commercial Services),Electricity - Electricity Charges,2015463,201911
Rother District Council,19/12/2019,031RESOURCES,Executive Directors & Corporate Core,20176,Administrative Offices - Print Room,B2201,Electricity,-165.68,Laser Energy Buying Group (Kent County Council Commercial Services),Electricity - Electricity Charges,2015463,201911
Rother District Council,19/12/2019,091HOUSING,Housing and Community Services,20125,Coast Protection,B2201,Electricity,703.90,Laser Energy Buying Group (Kent County Council Commercial Services),Electricity - Electricity Charges,2015463,201911
Rother District Council,19/12/2019,081ACQUISIT,"Acquisitions, Transformation and Regeneration",20154,Committee Property Account,B2201,Electricity,37.06,Laser Energy Buying Group (Kent County Council Commercial Services),Electricity - Electricity Charges,2015463,201911
Rother District Council,19/12/2019,081ACQUISIT,"Acquisitions, Transformation and Regeneration",20154,Committee Property Account,B2201,Electricity,37.06,Laser Energy Buying Group (Kent County Council Commercial Services),Electricity - Electricity Charges,2015463,201911
Rother District Council,19/12/2019,081ACQUISIT,"Acquisitions, Transformation and Regeneration",20154,Committee Property Account,B2201,Electricity,37.07,Laser Energy Buying Group (Kent County Council Commercial Services),Electricity - Electricity Charges,2015463,201911
Rother District Council,19/12/2019,091HOUSING,Housing and Community Services,20108,Bexhill Promenade & Foreshore,B2201,Electricity,37.07,Laser Energy Buying Group (Kent County Council Commercial Services),Electricity - Electricity Charges,2015463,201911
Rother District Council,19/12/2019,081ACQUISIT,"Acquisitions, Transformation and Regeneration",20153,"Elva Business Centre, Bexhill",B2201,Electricity,"1,063.92",Laser Energy Buying Group (Kent County Council Commercial Services),Electricity - Electricity Charges,2015463,201911
Rother District Council,19/12/2019,091HOUSING,Housing and Community Services,20128,Public Conveniences,B2201,Electricity,20.87,Laser Energy Buying Group (Kent County Council Commercial Services),Electricity - Electricity Charges,2015463,201911
Rother District Council,19/12/2019,091HOUSING,Housing and Community Services,20128,Public Conveniences,B2201,Electricity,85.74,Laser Energy Buying Group (Kent County Council Commercial Services),Electricity - Electricity Charges,2015463,201911
Rother District Council,19/12/2019,031RESOURCES,Executive Directors & Corporate Core,20176,Administrative Offices - Print Room,B2201,Electricity,226.34,Laser Energy Buying Group (Kent County Council Commercial Services),Electricity - Electricity Charges,2015463,201911
Rother District Council,19/12/2019,031RESOURCES,Executive Directors & Corporate Core,20176,Administrative Offices - Print Room,B2201,Electricity,168.70,Laser Energy Buying Group (Kent County Council Commercial Services),Electricity - Electricity Charges,2015463,201911
Rother District Council,19/12/2019,031RESOURCES,Executive Directors & Corporate Core,20173,Administrative Offices - Town Hall,B2201,Electricity,"4,049.22",Laser Energy Buying Group (Kent County Council Commercial Services),Electricity - Electricity Charges,2015463,201911
Rother District Council,19/12/2019,031RESOURCES,Executive Directors & Corporate Core,20175,Administrative Offices - T.H. Annex (NOT CHP),B2201,Electricity,"1,177.20",Laser Energy Buying Group (Kent County Council Commercial Services),Electricity - Electricity Charges,2015463,201911
Rother District Council,19/12/2019,081ACQUISIT,"Acquisitions, Transformation and Regeneration",20154,Committee Property Account,B2202,Gas,9.90,Laser Energy Buying Group (Kent County Council Commercial Services),Gas - Gas Charges,2015464,201911
Rother District Council,19/12/2019,081ACQUISIT,"Acquisitions, Transformation and Regeneration",20155,Investment properties,B2202,Gas,8.99,Laser Energy Buying Group (Kent County Council Commercial Services),Gas - Gas Charges,2015464,201911
Rother District Council,19/12/2019,081ACQUISIT,"Acquisitions, Transformation and Regeneration",20155,Investment properties,B2202,Gas,8.70,Laser Energy Buying Group (Kent County Council Commercial Services),Gas - Gas Charges,2015464,201911
Rother District Council,19/12/2019,031RESOURCES,Executive Directors & Corporate Core,20175,Administrative Offices - T.H. Annex (NOT CHP),B2202,Gas,-125.06,Laser Energy Buying Group (Kent County Council Commercial Services),Gas - Gas Charges,2015464,201911
Rother District Council,19/12/2019,031RESOURCES,Executive Directors & Corporate Core,20175,Administrative Offices - T.H. Annex (NOT CHP),B2202,Gas,-225.38,Laser Energy Buying Group (Kent County Council Commercial Services),Gas - Gas Charges,2015464,201911
Rother District Council,19/12/2019,031RESOURCES,Executive Directors & Corporate Core,20176,Administrative Offices - Print Room,B2202,Gas,33.40,Laser Energy Buying Group (Kent County Council Commercial Services),Gas - Gas Charges,2015464,201911
Rother District Council,19/12/2019,031RESOURCES,Executive Directors & Corporate Core,20176,Administrative Offices - Print Room,B2202,Gas,82.78,Laser Energy Buying Group (Kent County Council Commercial Services),Gas - Gas Charges,2015464,201911
Rother District Council,19/12/2019,031RESOURCES,Executive Directors & Corporate Core,20173,Administrative Offices - Town Hall,B2202,Gas,598.66,Laser Energy Buying Group (Kent County Council Commercial Services),Gas - Gas Charges,2015464,201911
Rother District Council,19/12/2019,031RESOURCES,Executive Directors & Corporate Core,20173,Administrative Offices - Town Hall,B2202,Gas,729.68,Laser Energy Buying Group (Kent County Council Commercial Services),Gas - Gas Charges,2015464,201911
Rother District Council,19/12/2019,031RESOURCES,Executive Directors & Corporate Core,20175,Administrative Offices - T.H. Annex (NOT CHP),B2202,Gas,214.37,Laser Energy Buying Group (Kent County Council Commercial Services),Gas - Gas Charges,2015464,201911
Rother District Council,19/12/2019,031RESOURCES,Executive Directors & Corporate Core,20175,Administrative Offices - T.H. Annex (NOT CHP),B2202,Gas,122.18,Laser Energy Buying Group (Kent County Council Commercial Services),Gas - Gas Charges,2015464,201911
Rother District Council,19/12/2019,031RESOURCES,Executive Directors & Corporate Core,20175,Administrative Offices - T.H. Annex (NOT CHP),B2202,Gas,99.90,Laser Energy Buying Group (Kent County Council Commercial Services),Gas - Gas Charges,2015464,201911
Rother District Council,19/12/2019,031RESOURCES,Executive Directors & Corporate Core,20175,Administrative Offices - T.H. Annex (NOT CHP),B2202,Gas,443.72,Laser Energy Buying Group (Kent County Council Commercial Services),Gas - Gas Charges,2015464,201911
Rother District Council,19/12/2019,091HOUSING,Housing and Community Services,20112,Bexhill Leisure Centre,B1100,Repairs to Premises,620.00,MC Glass (East Sussex) Ltd,Third party payment private contractors - Payments to Contractor,2014295,201910
Rother District Council,19/12/2019,081ACQUISIT,"Acquisitions, Transformation and Regeneration",20146,West Trading Estate,D2513,Hired and Contracted services,"2,280.00",Meridian Surveyors,Hired and contracted services - Cost of Survey,2014793,201910
Rother District Council,19/12/2019,101RESOURCES,Resources,20241,Stationery,D2420,General office supplies (Stationery purchased from ext suppliers),30.58,Office Depot UK Ltd,General office supplies - Stationery (Stationery Services to buy ONLY),2015550,201911
Rother District Council,19/12/2019,091HOUSING,Housing and Community Services,20137,Car Parks,B1100,Repairs to Premises,682.00,William G Fuller Co Ltd T/A Fullers Engineering,Repairs to Premises - Car Park Maintenance,2014383,201910
Rother District Council,20/12/2019,101RESOURCES,Resources,20239,Computer Services,D2633,Computer Equipment,685.00,Arcool Ltd,Computer Equip Maintenance - IT EQUIP MAINT-Air Conditioning,2014319,201911
Rother District Council,20/12/2019,101RESOURCES,Resources,20240,Printing Services,D2417,Photocopy Paper by external suppliers,458.00,Canon (UK) Ltd,Photocopy Paper by external suppliers - White,2014356,201910
Rother District Council,20/12/2019,031RESOURCES,Executive Directors & Corporate Core,20171,Human Resources,D2513,Hired and Contracted services,552.00,DMH Stallard,Hired and contracted services - Legal Advice,2014386,201910
Rother District Council,20/12/2019,031RESOURCES,Executive Directors & Corporate Core,20173,Administrative Offices - Town Hall,B1100,Repairs to Premises,77.82,Graham,Repairs to Premises - Purchase of Materials - Build Maint,2014358,201910
Rother District Council,20/12/2019,041ENVIRON,Environmental Services,32144,EH Environmental Services Admin R + W Partnership,D2513,Hired and Contracted services,12.00,H M Land Registry,Hired and contracted services - Env H-Land Registry,2014755,201910
Rother District Council,20/12/2019,071STRAT,Strategy and Planning,20258,BC Dangerous Structures H+R Partnership,D2513,Hired and Contracted services,9.00,H M Land Registry,Hired and contracted services - Env H-Land Registry,2014755,201910
Rother District Council,20/12/2019,101RESOURCES,Resources,20216,Cost Of Collection,D2513,Hired and Contracted services,18.00,H M Land Registry,Hired and contracted services - Council Tax-Land Registry Enquiries,2014755,201910
Rother District Council,20/12/2019,071STRAT,Strategy and Planning,20246,Planning Applications,D2513,Hired and Contracted services,24.00,H M Land Registry,Hired and contracted services - Land Registry-Planning,2014755,201910
Rother District Council,20/12/2019,071STRAT,Strategy and Planning,20246,Planning Applications,A1110,Agency Staff,"1,766.77",Hays Specialist Recruitment Ltd,Consultants and other services - Consultants Fees,2014343,201910
Rother District Council,20/12/2019,071STRAT,Strategy and Planning,20246,Planning Applications,A1110,Agency Staff,"1,766.77",Hays Specialist Recruitment Ltd,Consultants and other services - Consultants Fees,2014344,201910
Rother District Council,20/12/2019,041ENVIRON,Environmental Services,32133,EH Food Hyg / Idc / Water Purity R + W Partnership,D1201,Equipment & Materials,13.99,MWUK Ltd T/A Alexandra,Equipment & Materials - EnvH - Food Samples,2014357,201910
Rother District Council,20/12/2019,091HOUSING,Housing and Community Services,20114,Bexhill Parks & Open Spaces,B1100,Repairs to Premises,90.12,Parker Building Supplies Ltd,Repairs to Premises - Parks - Carpentry Repairs,2014372,201910
Rother District Council,20/12/2019,091HOUSING,Housing and Community Services,20109,Sports Development,D2923,Grants made,420.00,Running Forever Ltd,Grants made - Active Sussex Project workforce dev.,2014339,201910
Rother District Council,20/12/2019,101RESOURCES,Resources,20240,Printing Services,D2626,Postages,7.08,SBS Consumables,General office supplies - Stationery (Stationery Services to buy ONLY),2014683,201910
Rother District Council,20/12/2019,091HOUSING,Housing and Community Services,20109,Sports Development,D2923,Grants made,500.00,Sidley Medical Practice,Grants made - Active Sussex Project workforce dev.,2014310,201910
Rother District Council,20/12/2019,091HOUSING,Housing and Community Services,20145,Maintenance Services,D1201,Equipment & Materials,22.48,Trade UK Account (Screwfix),Equipment & Materials - Purchase of Tools,2014374,201910
Rother District Council,20/12/2019,091HOUSING,Housing and Community Services,20145,Maintenance Services,D1201,Equipment & Materials,48.32,Trade UK Account (Screwfix),Equipment & Materials - Purchase of Tools,2014373,201910
Rother District Council,20/12/2019,041ENVIRON,Environmental Services,32142,EH Taxi and Private Hire Licenses R + W Partnership,D2513,Hired and Contracted services,40.00,uCheck,Hired and contracted services - Service fee paid,2014643,201910
Rother District Council,20/12/2019,041ENVIRON,Environmental Services,32142,EH Taxi and Private Hire Licenses R + W Partnership,D2513,Hired and Contracted services,8.67,uCheck,Hired and contracted services - Service fee paid,2014643,201910
Rother District Council,21/12/2019,031RESOURCES,Executive Directors & Corporate Core,20171,Human Resources,D1201,Equipment & Materials,4.98,Agora Business Publications LLP,Equipment & Materials - Carriage/Handling Charge,2014453,201910
Rother District Council,21/12/2019,031RESOURCES,Executive Directors & Corporate Core,20171,Human Resources,D2922,Subscriptions,79.80,Agora Business Publications LLP,Subscriptions - Subscription to Organisations,2014453,201910
Rother District Council,21/12/2019,091HOUSING,Housing and Community Services,20109,Sports Development,D2923,Grants made,500.00,The Pelham,Grants made - Active Sussex Project workforce dev.,2014330,201910
Rother District Council,22/12/2019,091HOUSING,Housing and Community Services,20145,Maintenance Services,D1201,Equipment & Materials,325.00,Hawthorn Safety Consultancy,Equipment & Materials - Purchase of Tools,2015304,201911
Rother District Council,22/12/2019,999NOREPORT,Not included in reporting,70704,Capital - Bexhill Leisure Centre,N1004,Architects & Consultant Fees,"2,462.50",The Environment Partnership (TEP) Ltd,Architects & Consultant Fees Capital-Architect and Conslt Fees,2014451,201910
Rother District Council,23/12/2019,071STRAT,Strategy and Planning,20246,Planning Applications,D2509,Consultants and Other Services,"1,957.30",Carrington West Ltd,Consultants and other services - Consultants Fees,2014470,201910
Rother District Council,23/12/2019,081ACQUISIT,"Acquisitions, Transformation and Regeneration",20144,Property Management,D2513,Hired and Contracted services,"4,500.00",Colliers International Valuation UK LLP,Hired and contracted services - Valuation Services,2014423,201910
Rother District Council,23/12/2019,081ACQUISIT,"Acquisitions, Transformation and Regeneration",20153,"Elva Business Centre, Bexhill",B1100,Repairs to Premises,80.00,C-Thru Window Cleaning,Repairs to Premises - Specified Repairs and Works listed,2014431,201910
Rother District Council,23/12/2019,101RESOURCES,Resources,20214,Unapportion Central Overheads,D2513,Hired and Contracted services,"59,396.66",East Sussex Pension Fund,Hired and contracted services - Salary-Pension Fund ERS Unfunded,2014365,201910
Rother District Council,23/12/2019,091HOUSING,Housing and Community Services,20200,Housing Needs - HB (Housing Benefit),D2509,Consultants and Other Services,27.50,Northgate Public Services (UK) Ltd,Consultants and other services - Consultants Fees,2014377,201910
Rother District Council,23/12/2019,101RESOURCES,Resources,20216,Cost Of Collection,D2509,Consultants and Other Services,113.51,Northgate Public Services (UK) Ltd,Consultants and other services - Consultants Fees,2014377,201910
Rother District Council,23/12/2019,101RESOURCES,Resources,20217,Reliefs & Benefits-Council Tax Benefit,D2509,Consultants and Other Services,60.90,Northgate Public Services (UK) Ltd,Consultants and other services - Consultants Fees,2014377,201910
Rother District Council,23/12/2019,021CORP,Corporate Services & Human Resources,20166,Parliamentary Elections,D2626,Postages,"1,009.55",Royal Mail Group Ltd,Postages - Response Service-Royal Mail Chg,2014396,201910
Rother District Council,23/12/2019,091HOUSING,Housing and Community Services,20200,Housing Needs - HB (Housing Benefit),D2514,Accommodation Costs,364.00,South Down Residential Ltd,Accommodation Costs,2014380,201910
Rother District Council,23/12/2019,091HOUSING,Housing and Community Services,20200,Housing Needs - HB (Housing Benefit),D2514,Accommodation Costs,91.00,South Down Residential Ltd,Accommodation Costs,2014380,201910
Rother District Council,23/12/2019,091HOUSING,Housing and Community Services,20329,Rough Sleeping Initiative,D2514,Accommodation Costs,142.80,South Down Residential Ltd,Accommodation Costs,2014380,201910
Rother District Council,23/12/2019,091HOUSING,Housing and Community Services,20329,Rough Sleeping Initiative,D2514,Accommodation Costs,35.70,South Down Residential Ltd,Accommodation Costs,2014380,201910
Rother District Council,23/12/2019,091HOUSING,Housing and Community Services,20329,Rough Sleeping Initiative,D2514,Accommodation Costs,142.80,South Down Residential Ltd,Accommodation Costs,2014380,201910
Rother District Council,23/12/2019,091HOUSING,Housing and Community Services,20329,Rough Sleeping Initiative,D2514,Accommodation Costs,35.70,South Down Residential Ltd,Accommodation Costs,2014380,201910
Rother District Council,23/12/2019,091HOUSING,Housing and Community Services,20329,Rough Sleeping Initiative,D2514,Accommodation Costs,142.80,South Down Residential Ltd,Accommodation Costs,2014380,201910
Rother District Council,23/12/2019,091HOUSING,Housing and Community Services,20329,Rough Sleeping Initiative,D2514,Accommodation Costs,35.70,South Down Residential Ltd,Accommodation Costs,2014380,201910
Rother District Council,23/12/2019,091HOUSING,Housing and Community Services,20200,Housing Needs - HB (Housing Benefit),D2514,Accommodation Costs,399.98,South Down Residential Ltd,Accommodation Costs,2014380,201910
Rother District Council,23/12/2019,091HOUSING,Housing and Community Services,20200,Housing Needs - HB (Housing Benefit),D2514,Accommodation Costs,100.03,South Down Residential Ltd,Accommodation Costs,2014380,201910
Rother District Council,23/12/2019,091HOUSING,Housing and Community Services,20329,Rough Sleeping Initiative,D2514,Accommodation Costs,102.00,South Down Residential Ltd,Accommodation Costs,2014380,201910
Rother District Council,23/12/2019,091HOUSING,Housing and Community Services,20200,Housing Needs - HB (Housing Benefit),D2514,Accommodation Costs,102.00,South Down Residential Ltd,Accommodation Costs,2014380,201910
Rother District Council,23/12/2019,091HOUSING,Housing and Community Services,20200,Housing Needs - HB (Housing Benefit),D2514,Accommodation Costs,268.80,South Down Residential Ltd,Accommodation Costs,2014380,201910
Rother District Council,23/12/2019,091HOUSING,Housing and Community Services,20200,Housing Needs - HB (Housing Benefit),D2514,Accommodation Costs,67.20,South Down Residential Ltd,Accommodation Costs,2014380,201910
Rother District Council,23/12/2019,091HOUSING,Housing and Community Services,20200,Housing Needs - HB (Housing Benefit),D2514,Accommodation Costs,268.80,South Down Residential Ltd,Accommodation Costs,2014380,201910
Rother District Council,23/12/2019,091HOUSING,Housing and Community Services,20200,Housing Needs - HB (Housing Benefit),D2514,Accommodation Costs,67.20,South Down Residential Ltd,Accommodation Costs,2014380,201910
Rother District Council,23/12/2019,091HOUSING,Housing and Community Services,20200,Housing Needs - HB (Housing Benefit),D2514,Accommodation Costs,316.40,South Down Residential Ltd,Accommodation Costs,2014380,201910
Rother District Council,23/12/2019,091HOUSING,Housing and Community Services,20200,Housing Needs - HB (Housing Benefit),D2514,Accommodation Costs,79.10,South Down Residential Ltd,Accommodation Costs,2014380,201910
Rother District Council,23/12/2019,091HOUSING,Housing and Community Services,20200,Housing Needs - HB (Housing Benefit),D2514,Accommodation Costs,330.40,South Down Residential Ltd,Accommodation Costs,2014380,201910
Rother District Council,23/12/2019,091HOUSING,Housing and Community Services,20200,Housing Needs - HB (Housing Benefit),D2514,Accommodation Costs,82.60,South Down Residential Ltd,Accommodation Costs,2014380,201910
Rother District Council,23/12/2019,091HOUSING,Housing and Community Services,20200,Housing Needs - HB (Housing Benefit),D2514,Accommodation Costs,330.40,South Down Residential Ltd,Accommodation Costs,2014380,201910
Rother District Council,23/12/2019,091HOUSING,Housing and Community Services,20200,Housing Needs - HB (Housing Benefit),D2514,Accommodation Costs,82.60,South Down Residential Ltd,Accommodation Costs,2014380,201910
Rother District Council,23/12/2019,091HOUSING,Housing and Community Services,20200,Housing Needs - HB (Housing Benefit),D2514,Accommodation Costs,296.80,South Down Residential Ltd,Accommodation Costs,2014380,201910
Rother District Council,23/12/2019,091HOUSING,Housing and Community Services,20200,Housing Needs - HB (Housing Benefit),D2514,Accommodation Costs,74.20,South Down Residential Ltd,Accommodation Costs,2014380,201910
Rother District Council,23/12/2019,091HOUSING,Housing and Community Services,20329,Rough Sleeping Initiative,D2514,Accommodation Costs,296.80,South Down Residential Ltd,Accommodation Costs,2014380,201910
Rother District Council,23/12/2019,091HOUSING,Housing and Community Services,20329,Rough Sleeping Initiative,D2514,Accommodation Costs,74.20,South Down Residential Ltd,Accommodation Costs,2014380,201910
Rother District Council,23/12/2019,091HOUSING,Housing and Community Services,20200,Housing Needs - HB (Housing Benefit),D2514,Accommodation Costs,240.03,South Down Residential Ltd,Accommodation Costs,2014380,201910
Rother District Council,23/12/2019,091HOUSING,Housing and Community Services,20200,Housing Needs - HB (Housing Benefit),D2514,Accommodation Costs,59.99,South Down Residential Ltd,Accommodation Costs,2014380,201910
Rother District Council,23/12/2019,999NOREPORT,Not included in reporting,70744,Capital - 1066 Walk Pathways,N1004,Architects & Consultant Fees,250.00,Southern Water (miscellaneous income),Architects & Consultant Fees,2014370,201911
Rother District Council,23/12/2019,091HOUSING,Housing and Community Services,20137,Car Parks,D2513,Hired and Contracted services,240.00,William Cooke and Son (Farmers) Ltd,Hired and Contracted services,2014355,201910
Rother District Council,24/12/2019,091HOUSING,Housing and Community Services,20236,Customer Services and Development,D2635,Computer Licences,718.80,Click4Assistance,Computer Licences - Computer Licence Renewal,2014835,201910
Rother District Council,24/12/2019,091HOUSING,Housing and Community Services,20128,Public Conveniences,B2422,Sewerage,330.00,CountyClean Environmental Services Ltd,Sewerage - Sewage/Cesspool Emptying,2014461,201910
Rother District Council,24/12/2019,091HOUSING,Housing and Community Services,20206,Syrians,D2513,Hired and Contracted services,250.00,Felicity Stephen,Hired and contracted services - Syrian-Education-Exempt VAT,2014376,201910
Rother District Council,24/12/2019,091HOUSING,Housing and Community Services,20206,Syrians,D2513,Hired and Contracted services,186.00,REDACTED PERSONAL DATA,Hired and contracted services - Syrian Resettlement Programme-Travel,2014476,201910
Rother District Council,25/12/2019,091HOUSING,Housing and Community Services,20235,Rye Community Help Point,B2311,Rents and service charges,"2,300.00",East Sussex County Council,Rents and service charges - Rent - Rye CHP,2014369,201910
Rother District Council,25/12/2019,101RESOURCES,Resources,20239,Computer Services,D2621,Telephones,267.68,Interoute Networks Ltd,Telephones - Leased Line Rental,2014459,201910
Rother District Council,26/12/2019,101RESOURCES,Resources,20216,Cost Of Collection,D2513,Hired and Contracted services,915.00,Inform CPI Ltd,Hired and Contracted services,2014589,201910
Rother District Council,27/12/2019,101RESOURCES,Resources,20242,Communications-Phones,D2621,Telephones,274.60,BT British Telecommunications plc,Telephones - BT-Rental-General,2014395,201910
Rother District Council,27/12/2019,071STRAT,Strategy and Planning,20255,Local Development Framework,D2513,Hired and Contracted services,"5,815.50",GL Hearn Ltd,Hired and contracted services - LDF Consultancy,2014382,201910
Rother District Council,27/12/2019,071STRAT,Strategy and Planning,20255,Local Development Framework,D2513,Hired and Contracted services,34.50,GL Hearn Ltd,Hired and contracted services - LDF Consultancy,2014382,201910
Rother District Council,27/12/2019,101RESOURCES,Resources,20216,Cost Of Collection,D2513,Hired and Contracted services,9.00,H M Land Registry,Hired and contracted services - Council Tax-Land Registry Enquiries,2014757,201910
Rother District Council,27/12/2019,091HOUSING,Housing and Community Services,20200,Housing Needs - HB (Housing Benefit),D2514,Accommodation Costs,610.00,MB Hotels Ltd,Accommodation Costs,2014435,201910
Rother District Council,27/12/2019,091HOUSING,Housing and Community Services,20200,Housing Needs - HB (Housing Benefit),D2514,Accommodation Costs,456.43,MB Hotels Ltd,Accommodation Costs,2014434,201910
Rother District Council,27/12/2019,091HOUSING,Housing and Community Services,20200,Housing Needs - HB (Housing Benefit),D2514,Accommodation Costs,615.00,MB Hotels Ltd,Accommodation Costs,2014433,201910
Rother District Council,27/12/2019,091HOUSING,Housing and Community Services,20200,Housing Needs - HB (Housing Benefit),D2514,Accommodation Costs,435.71,MB Hotels Ltd,Accommodation Costs,2014438,201910
Rother District Council,27/12/2019,091HOUSING,Housing and Community Services,20200,Housing Needs - HB (Housing Benefit),D2514,Accommodation Costs,610.00,MB Hotels Ltd,Accommodation Costs,2014439,201910
Rother District Council,27/12/2019,091HOUSING,Housing and Community Services,20200,Housing Needs - HB (Housing Benefit),D2514,Accommodation Costs,610.00,MB Hotels Ltd,Accommodation Costs,2014436,201910
Rother District Council,27/12/2019,091HOUSING,Housing and Community Services,20200,Housing Needs - HB (Housing Benefit),D2514,Accommodation Costs,610.00,MB Hotels Ltd,Hired and contracted services - Service fee paid,2014437,201910
Rother District Council,28/12/2019,071STRAT,Strategy and Planning,20244,General Planning Expenses,D1204,Newspapers & Periodicals,11.50,Pipers News Ltd,Newspapers & Periodicals - Newspapers,2014426,201910
Rother District Council,28/12/2019,031RESOURCES,Executive Directors & Corporate Core,20156,Representing Local Interest,D1204,Newspapers & Periodicals,11.50,Pipers News Ltd,Newspapers & Periodicals - Newspapers,2014427,201910
Rother District Council,28/12/2019,031RESOURCES,Executive Directors & Corporate Core,20159,Corporate Policy Making,D1204,Newspapers & Periodicals,11.50,Pipers News Ltd,Newspapers & Periodicals - Newspapers,2014428,201910
Rother District Council,28/12/2019,091HOUSING,Housing and Community Services,20200,Housing Needs - HB (Housing Benefit),D2508,Removals and Storage,363.00,Stamford Storage Solutions,Removals and Storage,2014452,201910
Rother District Council,29/12/2019,101RESOURCES,Resources,20222,Accountancy,D2635,Computer Licences,"1,133.21",Integra Associates Ltd,Computer Licences - New Computer Software,2014742,201910
Rother District Council,29/12/2019,091HOUSING,Housing and Community Services,20200,Housing Needs - HB (Housing Benefit),D2514,Accommodation Costs,"2,350.00",Specialist Care UK Group Ltd,Accommodation Costs,2014403,201910
Rother District Council,29/12/2019,091HOUSING,Housing and Community Services,20200,Housing Needs - HB (Housing Benefit),D2514,Accommodation Costs,262.50,Specialist Care UK Group Ltd,Accommodation Costs,2014402,201910
Rother District Council,29/12/2019,091HOUSING,Housing and Community Services,20200,Housing Needs - HB (Housing Benefit),D2514,Accommodation Costs,75.00,Specialist Care UK Group Ltd,Accommodation Costs,2014397,201910
Rother District Council,29/12/2019,091HOUSING,Housing and Community Services,20200,Housing Needs - HB (Housing Benefit),D2514,Accommodation Costs,175.00,Specialist Care UK Group Ltd,Accommodation Costs,2014398,201910
Rother District Council,29/12/2019,091HOUSING,Housing and Community Services,20200,Housing Needs - HB (Housing Benefit),D2514,Accommodation Costs,262.50,Specialist Care UK Group Ltd,Accommodation Costs,2014399,201910
Rother District Council,29/12/2019,091HOUSING,Housing and Community Services,20200,Housing Needs - HB (Housing Benefit),D2514,Accommodation Costs,350.00,Specialist Care UK Group Ltd,Accommodation Costs,2014400,201910
Rother District Council,29/12/2019,091HOUSING,Housing and Community Services,20200,Housing Needs - HB (Housing Benefit),D2514,Accommodation Costs,175.00,Specialist Care UK Group Ltd,Accommodation Costs,2014401,201910
Rother District Council,30/12/2019,021CORP,Corporate Services & Human Resources,20166,Parliamentary Elections,D2513,Hired and Contracted services,"3,950.00",1066 Removal Services,Hired and contracted services - Delivery and/or Packaging of Equipm,2014391,201910
Rother District Council,30/12/2019,101RESOURCES,Resources,20240,Printing Services,D1201,Equipment & Materials,247.40,Coloursped Services Ltd,Equipment & Materials - Platemaking Materials,2014580,201910
Rother District Council,30/12/2019,031RESOURCES,Executive Directors & Corporate Core,20171,Human Resources,D2513,Hired and Contracted services,89.12,Computershare Voucher Services,Hired and contracted services - Child Care Voucher Service Charge,2014644,201910
Rother District Council,30/12/2019,999NOREPORT,Not included in reporting,90000,Balance sheet all accounts,T1002,Childcare Vouchers,"1,371.00",Computershare Voucher Services,Childcare Vouchers,2014644,201910
Rother District Council,30/12/2019,091HOUSING,Housing and Community Services,20114,Bexhill Parks & Open Spaces,B2422,Sewerage,235.00,CountyClean Environmental Services Ltd,Sewerage Parks- Emptying of Cesspit,2014506,201910
Rother District Council,30/12/2019,091HOUSING,Housing and Community Services,20200,Housing Needs - HB (Housing Benefit),D2514,Accommodation Costs,315.00,High Weald Property Investments,Accommodation Costs,2014424,201910
Rother District Council,30/12/2019,091HOUSING,Housing and Community Services,20200,Housing Needs - HB (Housing Benefit),D2514,Accommodation Costs,385.00,Lets 2 Share Limited,Accommodation Costs,2014467,201910
Rother District Council,30/12/2019,091HOUSING,Housing and Community Services,20200,Housing Needs - HB (Housing Benefit),D2514,Accommodation Costs,260.00,Lets 2 Share Limited,Accommodation Costs,2014469,201910
Rother District Council,30/12/2019,091HOUSING,Housing and Community Services,20200,Housing Needs - HB (Housing Benefit),D2514,Accommodation Costs,385.00,Lets 2 Share Limited,Accommodation Costs,2014468,201910
Rother District Council,30/12/2019,091HOUSING,Housing and Community Services,20200,Housing Needs - HB (Housing Benefit),D2514,Accommodation Costs,385.00,Lets 2 Share Limited,Accommodation Costs,2014467,201910
Rother District Council,30/12/2019,091HOUSING,Housing and Community Services,20200,Housing Needs - HB (Housing Benefit),D2514,Accommodation Costs,300.00,Lets 2 Share Limited,Accommodation Costs,2014469,201910
Rother District Council,30/12/2019,091HOUSING,Housing and Community Services,20200,Housing Needs - HB (Housing Benefit),D2514,Accommodation Costs,385.00,Lets 2 Share Limited,Accommodation Costs,2014467,201910
Rother District Council,30/12/2019,091HOUSING,Housing and Community Services,20200,Housing Needs - HB (Housing Benefit),D2514,Accommodation Costs,260.00,Lets 2 Share Limited,Accommodation Costs,2014469,201910
Rother District Council,30/12/2019,091HOUSING,Housing and Community Services,20200,Housing Needs - HB (Housing Benefit),D2514,Accommodation Costs,780.00,PADA Hanlon Ltd,Accommodation Costs,2014422,201910
Rother District Council,30/12/2019,091HOUSING,Housing and Community Services,20200,Housing Needs - HB (Housing Benefit),D2514,Accommodation Costs,390.00,Roost People Ltd,Accommodation Costs,2014420,201910
Rother District Council,30/12/2019,091HOUSING,Housing and Community Services,20200,Housing Needs - HB (Housing Benefit),D2514,Accommodation Costs,364.00,South Down Residential Ltd,Accommodation Costs,2014464,201910
Rother District Council,30/12/2019,091HOUSING,Housing and Community Services,20200,Housing Needs - HB (Housing Benefit),D2514,Accommodation Costs,91.00,South Down Residential Ltd,Accommodation Costs,2014464,201910
Rother District Council,30/12/2019,091HOUSING,Housing and Community Services,20329,Rough Sleeping Initiative,D2514,Accommodation Costs,142.80,South Down Residential Ltd,Accommodation Costs,2014464,201910
Rother District Council,30/12/2019,091HOUSING,Housing and Community Services,20329,Rough Sleeping Initiative,D2514,Accommodation Costs,35.70,South Down Residential Ltd,Accommodation Costs,2014464,201910
Rother District Council,30/12/2019,091HOUSING,Housing and Community Services,20329,Rough Sleeping Initiative,D2514,Accommodation Costs,142.80,South Down Residential Ltd,Accommodation Costs,2014464,201910
Rother District Council,30/12/2019,091HOUSING,Housing and Community Services,20329,Rough Sleeping Initiative,D2514,Accommodation Costs,35.70,South Down Residential Ltd,Accommodation Costs,2014464,201910
Rother District Council,30/12/2019,091HOUSING,Housing and Community Services,20329,Rough Sleeping Initiative,D2514,Accommodation Costs,10.00,South Down Residential Ltd,Accommodation Costs,2014464,201910
Rother District Council,30/12/2019,091HOUSING,Housing and Community Services,20329,Rough Sleeping Initiative,D2514,Accommodation Costs,142.80,South Down Residential Ltd,Accommodation Costs,2014464,201910
Rother District Council,30/12/2019,091HOUSING,Housing and Community Services,20329,Rough Sleeping Initiative,D2514,Accommodation Costs,35.70,South Down Residential Ltd,Accommodation Costs,2014464,201910
Rother District Council,30/12/2019,091HOUSING,Housing and Community Services,20200,Housing Needs - HB (Housing Benefit),D2514,Accommodation Costs,399.98,South Down Residential Ltd,Accommodation Costs,2014464,201910
Rother District Council,30/12/2019,091HOUSING,Housing and Community Services,20200,Housing Needs - HB (Housing Benefit),D2514,Accommodation Costs,100.03,South Down Residential Ltd,Accommodation Costs,2014464,201910
Rother District Council,30/12/2019,091HOUSING,Housing and Community Services,20329,Rough Sleeping Initiative,D2514,Accommodation Costs,178.50,South Down Residential Ltd,Accommodation Costs,2014464,201910
Rother District Council,30/12/2019,091HOUSING,Housing and Community Services,20200,Housing Needs - HB (Housing Benefit),D2514,Accommodation Costs,371.00,South Down Residential Ltd,Accommodation Costs,2014464,201910
Rother District Council,30/12/2019,091HOUSING,Housing and Community Services,20200,Housing Needs - HB (Housing Benefit),D2514,Accommodation Costs,268.80,South Down Residential Ltd,Accommodation Costs,2014464,201910
Rother District Council,30/12/2019,091HOUSING,Housing and Community Services,20200,Housing Needs - HB (Housing Benefit),D2514,Accommodation Costs,67.20,South Down Residential Ltd,Accommodation Costs,2014464,201910
Rother District Council,30/12/2019,091HOUSING,Housing and Community Services,20200,Housing Needs - HB (Housing Benefit),D2514,Accommodation Costs,268.80,South Down Residential Ltd,Accommodation Costs,2014464,201910
Rother District Council,30/12/2019,091HOUSING,Housing and Community Services,20200,Housing Needs - HB (Housing Benefit),D2514,Accommodation Costs,67.20,South Down Residential Ltd,Accommodation Costs,2014464,201910
Rother District Council,30/12/2019,091HOUSING,Housing and Community Services,20200,Housing Needs - HB (Housing Benefit),D2514,Accommodation Costs,316.40,South Down Residential Ltd,Accommodation Costs,2014464,201910
Rother District Council,30/12/2019,091HOUSING,Housing and Community Services,20200,Housing Needs - HB (Housing Benefit),D2514,Accommodation Costs,79.10,South Down Residential Ltd,Accommodation Costs,2014464,201910
Rother District Council,30/12/2019,091HOUSING,Housing and Community Services,20200,Housing Needs - HB (Housing Benefit),D2514,Accommodation Costs,330.40,South Down Residential Ltd,Accommodation Costs,2014464,201910
Rother District Council,30/12/2019,091HOUSING,Housing and Community Services,20200,Housing Needs - HB (Housing Benefit),D2514,Accommodation Costs,82.60,South Down Residential Ltd,Accommodation Costs,2014464,201910
Rother District Council,30/12/2019,091HOUSING,Housing and Community Services,20200,Housing Needs - HB (Housing Benefit),D2514,Accommodation Costs,296.80,South Down Residential Ltd,Accommodation Costs,2014464,201910
Rother District Council,30/12/2019,091HOUSING,Housing and Community Services,20200,Housing Needs - HB (Housing Benefit),D2514,Accommodation Costs,74.20,South Down Residential Ltd,Accommodation Costs,2014464,201910
Rother District Council,30/12/2019,091HOUSING,Housing and Community Services,20329,Rough Sleeping Initiative,D2514,Accommodation Costs,296.80,South Down Residential Ltd,Accommodation Costs,2014464,201910
Rother District Council,30/12/2019,091HOUSING,Housing and Community Services,20329,Rough Sleeping Initiative,D2514,Accommodation Costs,74.20,South Down Residential Ltd,Accommodation Costs,2014464,201910
Rother District Council,30/12/2019,091HOUSING,Housing and Community Services,20200,Housing Needs - HB (Housing Benefit),D2514,Accommodation Costs,240.03,South Down Residential Ltd,Accommodation Costs,2014464,201910
Rother District Council,30/12/2019,091HOUSING,Housing and Community Services,20200,Housing Needs - HB (Housing Benefit),D2514,Accommodation Costs,59.99,South Down Residential Ltd,Accommodation Costs,2014464,201910
Rother District Council,31/12/2019,091HOUSING,Housing and Community Services,20206,Syrians,D2513,Hired and Contracted services,691.49,247 Transport Solutions Ltd,Hired and contracted services - Syrian Resettlement Programme-Travel,2015660,201912
Rother District Council,31/12/2019,091HOUSING,Housing and Community Services,20138,Residual Highway Services,B2611,Contract cleaning,500.00,Abacus Main Ltd,Contract cleaning,2014495,201910
Rother District Council,31/12/2019,091HOUSING,Housing and Community Services,20108,Bexhill Promenade & Foreshore,B2611,Contract cleaning,126.00,Abacus Main Ltd,Contract cleaning - Office Cleaning,2014494,201910
Rother District Council,31/12/2019,101RESOURCES,Resources,20209,Corporate management,D2513,Hired and Contracted services,"1,226.41",allpay.net Ltd,Hired and contracted services - Allpay Card/Rep/Let Chrg - Vatable,2015628,201911
Rother District Council,31/12/2019,101RESOURCES,Resources,20209,Corporate management,D2513,Hired and Contracted services,31.15,allpay.net Ltd,Hired and contracted services - Allpay Card/Rep/Let Chrg - Vatable,2015473,201911
Rother District Council,31/12/2019,101RESOURCES,Resources,20209,Corporate management,D2513,Hired and Contracted services,14.27,allpay.net Ltd,Hired and contracted services - Allpay Card/Rep/Let Chrg - Vatable,2015472,201911
Rother District Council,31/12/2019,101RESOURCES,Resources,20209,Corporate management,D2513,Hired and Contracted services,22.07,allpay.net Ltd,Hired and contracted services - Allpay Card/Rep/Let Chrg - Vatable,2015474,201911
Rother District Council,31/12/2019,041ENVIRON,Environmental Services,32136,EH Pest Control R + W Partnership,C1104,Derv,44.17,Allstar Business Solutions,Derv,2015572,201911
Rother District Council,31/12/2019,091HOUSING,Housing and Community Services,20145,Maintenance Services,C1104,Derv,39.77,Allstar Business Solutions,Derv,2015572,201911
Rother District Council,31/12/2019,091HOUSING,Housing and Community Services,20145,Maintenance Services,C1104,Derv,58.33,Allstar Business Solutions,Derv,2015572,201911
Rother District Council,31/12/2019,091HOUSING,Housing and Community Services,20107,Camber Beach & Foreshore,C1104,Derv,34.04,Allstar Business Solutions,Derv,2015572,201911
Rother District Council,31/12/2019,091HOUSING,Housing and Community Services,20145,Maintenance Services,C1104,Derv,73.77,Allstar Business Solutions,Derv,2015572,201911
Rother District Council,31/12/2019,091HOUSING,Housing and Community Services,20107,Camber Beach & Foreshore,C1104,Derv,1.90,Allstar Business Solutions,Derv - Fuel Service fee payable on fuel cards,2015572,201911
Rother District Council,31/12/2019,071STRAT,Strategy and Planning,20246,Planning Applications,D2513,Hired and Contracted services,950.00,Altair Consultancy & Advisory Services Ltd,Hired and Contracted services,2014878,201911
Rother District Council,31/12/2019,091HOUSING,Housing and Community Services,20133,Refuse Collection,E2302,Third party payment private contractors,349.91,Biffa Waste Services Ltd,Third party payment private contractors - Commercial Waste Collection Contract,2014381,201910
Rother District Council,31/12/2019,031RESOURCES,Executive Directors & Corporate Core,20171,Human Resources,D2513,Hired and Contracted services,499.50,Blue Planet Software Ltd,Hired and contracted services - Consultancy Service per Contract,2015083,201911
Rother District Council,31/12/2019,091HOUSING,Housing and Community Services,20114,Bexhill Parks & Open Spaces,B1100,Repairs to Premises,24.28,C Brewer and Sons Ltd,Repairs to Premises - Parks - Carpentry Repairs,2014443,201910
Rother District Council,31/12/2019,091HOUSING,Housing and Community Services,20114,Bexhill Parks & Open Spaces,B1100,Repairs to Premises,28.68,C Brewer and Sons Ltd,Repairs to Premises - Parks - Carpentry Repairs,2014441,201910
Rother District Council,31/12/2019,091HOUSING,Housing and Community Services,20114,Bexhill Parks & Open Spaces,B1100,Repairs to Premises,-18.78,C Brewer and Sons Ltd,Repairs to Premises - Purchase of Materials - Build Maint,2014444,201910
Rother District Council,31/12/2019,091HOUSING,Housing and Community Services,20108,Bexhill Promenade & Foreshore,B1100,Repairs to Premises,43.21,C Brewer and Sons Ltd,Repairs to Premises - Repairs/Maintenance - various,2014442,201910
Rother District Council,31/12/2019,091HOUSING,Housing and Community Services,20145,Maintenance Services,D1201,Equipment & Materials,18.14,C Brewer and Sons Ltd,Equipment & Materials - Purchase of Tools,2014440,201910
Rother District Council,31/12/2019,021CORP,Corporate Services & Human Resources,20166,Parliamentary Elections,D2415,Printing by external suppliers,"15,662.79",Civica Election Services Ltd,Printing by external suppliers - Printing (Not from RDC Print Room),2015244,201911
Rother District Council,31/12/2019,021CORP,Corporate Services & Human Resources,20166,Parliamentary Elections,D2415,Printing by external suppliers,"6,162.82",Civica Election Services Ltd,Printing by external suppliers - Printing (Not from RDC Print Room),2015243,201911
Rother District Council,31/12/2019,021CORP,Corporate Services & Human Resources,20166,Parliamentary Elections,D2415,Printing by external suppliers,"5,139.76",Civica Election Services Ltd,Printing by external suppliers - Printing (Not from RDC Print Room),2015245,201911
Rother District Council,31/12/2019,031RESOURCES,Executive Directors & Corporate Core,20162,Electoral Registration,D2415,Printing by external suppliers,"1,107.45",Civica Election Services Ltd,Printing by external suppliers - Printing (Not from RDC Print Room),2014478,201910
Rother District Council,31/12/2019,081ACQUISIT,"Acquisitions, Transformation and Regeneration",20267,Property Investment Strategy - 18-40 Beeching Road ( Land and Buildings),D2507,Security Services,"1,056.50",Clearway Environmental Services (UK) Ltd,Security Services,2014473,201910
Rother District Council,31/12/2019,091HOUSING,Housing and Community Services,20137,Car Parks,D2513,Hired and Contracted services,"1,887.42",Cobalt Telephone Technologies Ltd,Hired and contracted services - Car Parks-RingGo service charges,2014475,201910
Rother District Council,31/12/2019,031RESOURCES,Executive Directors & Corporate Core,20173,Administrative Offices - Town Hall,D2513,Hired and Contracted services,128.60,Data Shredding Services Ltd,Hired and contracted services - Charges-Confidential Office Waste,2014546,201910
Rother District Council,31/12/2019,041ENVIRON,Environmental Services,32142,EH Taxi and Private Hire Licenses R + W Partnership,D2513,Hired and Contracted services,160.00,DBS The Disclosure and Barring Service,Hired and Contracted services,2015386,201911
Rother District Council,31/12/2019,101RESOURCES,Resources,20216,Cost Of Collection,D2513,Hired and Contracted services,613.63,DSI Billing Services Ltd,Hired and contracted services - DSI Billing Printing,2014553,201910
Rother District Council,31/12/2019,101RESOURCES,Resources,20222,Accountancy,D2513,Hired and Contracted services,"1,743.43",Embridge Consulting (UK) Ltd,Hired and Contracted services,2014592,201910
Rother District Council,31/12/2019,101RESOURCES,Resources,20209,Corporate management,D2513,Hired and Contracted services,175.00,Jade Security Services Ltd,Hired and contracted services - Service fee paid,2014477,201910
Rother District Council,31/12/2019,091HOUSING,Housing and Community Services,20137,Car Parks,D2513,Hired and Contracted services,"1,530.00",Jade Security Services Ltd,Hired and contracted services - Cash Security Fees-Car Parks,2014477,201910
Rother District Council,31/12/2019,091HOUSING,Housing and Community Services,20200,Housing Needs - HB (Housing Benefit),D2513,Hired and Contracted services,"2,625.00",LHS Locata (Housing Services) Ltd,Hired and contracted services - Service fee paid,2015061,201911
Rother District Council,31/12/2019,091HOUSING,Housing and Community Services,20200,Housing Needs - HB (Housing Benefit),D2514,Accommodation Costs,531.00,Lillybank Homes Ltd,Accommodation Costs,2014943,201910
Rother District Council,31/12/2019,101RESOURCES,Resources,20241,Stationery,D2420,General office supplies (Stationery purchased from ext suppliers),92.30,Lyreco UK Limited,General office supplies - Stationery (Stationery Services to buy ONLY),2014482,201910
Rother District Council,31/12/2019,101RESOURCES,Resources,20241,Stationery,D2420,General office supplies (Stationery purchased from ext suppliers),7.10,Lyreco UK Limited,General office supplies - Stationery (Stationery Services to buy ONLY),2014488,201910
Rother District Council,31/12/2019,101RESOURCES,Resources,20241,Stationery,D2420,General office supplies (Stationery purchased from ext suppliers),176.64,Lyreco UK Limited,General office supplies - Stationery (Stationery Services to buy ONLY),2014483,201910
Rother District Council,31/12/2019,101RESOURCES,Resources,20241,Stationery,D2420,General office supplies (Stationery purchased from ext suppliers),13.00,Lyreco UK Limited,General office supplies - Stationery (Stationery Services to buy ONLY),2014491,201910
Rother District Council,31/12/2019,101RESOURCES,Resources,20241,Stationery,D2420,General office supplies (Stationery purchased from ext suppliers),18.07,Lyreco UK Limited,General office supplies - Stationery (Stationery Services to buy ONLY),2014492,201910
Rother District Council,31/12/2019,101RESOURCES,Resources,20241,Stationery,D2420,General office supplies (Stationery purchased from ext suppliers),20.60,Lyreco UK Limited,General office supplies - Stationery (Stationery Services to buy ONLY),2014484,201910
Rother District Council,31/12/2019,091HOUSING,Housing and Community Services,20108,Bexhill Promenade & Foreshore,B1100,Repairs to Premises,40.00,MC Glass (East Sussex) Ltd,Repairs to Premises - Specified Repairs and Works listed,2014493,201910
Rother District Council,31/12/2019,091HOUSING,Housing and Community Services,20200,Housing Needs - HB (Housing Benefit),D1201,Equipment & Materials,40.00,Now! Charity Group Ltd,Equipment & materials - Miscellaneous,2014458,201910
Rother District Council,31/12/2019,091HOUSING,Housing and Community Services,20200,Housing Needs - HB (Housing Benefit),D1201,Equipment & Materials,378.00,Now! Charity Group Ltd,Equipment & materials - Miscellaneous,2014458,201910
Rother District Council,31/12/2019,091HOUSING,Housing and Community Services,20200,Housing Needs - HB (Housing Benefit),D2513,Hired and Contracted services,140.00,NowMedical,Hired and Contracted services,2014590,201910
Rother District Council,31/12/2019,091HOUSING,Housing and Community Services,20200,Housing Needs - HB (Housing Benefit),D2513,Hired and Contracted services,48.00,NowMedical,Hired and Contracted services,2014591,201910
Rother District Council,31/12/2019,031RESOURCES,Executive Directors & Corporate Core,20173,Administrative Offices - Town Hall,B1100,Repairs to Premises,235.00,R French and  Son Ltd,Hired and contracted services - Hire of Skip,2014392,201910
Rother District Council,31/12/2019,091HOUSING,Housing and Community Services,20145,Maintenance Services,D2513,Hired and Contracted services,320.00,R French and  Son Ltd,Hired and contracted services - Hire of Skip,2014393,201910
Rother District Council,31/12/2019,021CORP,Corporate Services & Human Resources,20166,Parliamentary Elections,B2312,Hire of premises (RDC),144.00,Robertsbridge Community Association,Hire of premises (RDC),2014924,201910
Rother District Council,31/12/2019,091HOUSING,Housing and Community Services,20200,Housing Needs - HB (Housing Benefit),D2514,Accommodation Costs,84.00,Solutions Accommodation Providers Ltd,Accommodation Costs,2014417,201910
Rother District Council,31/12/2019,091HOUSING,Housing and Community Services,20200,Housing Needs - HB (Housing Benefit),D2514,Accommodation Costs,336.00,Solutions Accommodation Providers Ltd,Accommodation Costs,2014417,201910
Rother District Council,31/12/2019,091HOUSING,Housing and Community Services,20200,Housing Needs - HB (Housing Benefit),D2514,Accommodation Costs,"1,820.00",Solutions Accommodation Providers Ltd,Accommodation Costs,2014418,201910
Rother District Council,31/12/2019,091HOUSING,Housing and Community Services,20200,Housing Needs - HB (Housing Benefit),D2514,Accommodation Costs,70.00,Solutions Accommodation Providers Ltd,Accommodation Costs,2014419,201910
Rother District Council,31/12/2019,091HOUSING,Housing and Community Services,20200,Housing Needs - HB (Housing Benefit),D2514,Accommodation Costs,280.00,Solutions Accommodation Providers Ltd,Accommodation Costs,2014419,201910
Rother District Council,31/12/2019,091HOUSING,Housing and Community Services,20200,Housing Needs - HB (Housing Benefit),D2514,Accommodation Costs,135.00,Solutions Accommodation Providers Ltd,Accommodation Costs,2014414,201910
Rother District Council,31/12/2019,091HOUSING,Housing and Community Services,20200,Housing Needs - HB (Housing Benefit),D2514,Accommodation Costs,540.00,Solutions Accommodation Providers Ltd,Accommodation Costs,2014414,201910
Rother District Council,31/12/2019,091HOUSING,Housing and Community Services,20200,Housing Needs - HB (Housing Benefit),D2514,Accommodation Costs,637.50,Solutions Accommodation Providers Ltd,Accommodation Costs,2014415,201910
Rother District Council,31/12/2019,091HOUSING,Housing and Community Services,20200,Housing Needs - HB (Housing Benefit),D2514,Accommodation Costs,105.00,Solutions Accommodation Providers Ltd,Accommodation Costs,2014416,201910
Rother District Council,31/12/2019,091HOUSING,Housing and Community Services,20200,Housing Needs - HB (Housing Benefit),D2514,Accommodation Costs,420.00,Solutions Accommodation Providers Ltd,Accommodation Costs,2014416,201910
Rother District Council,31/12/2019,091HOUSING,Housing and Community Services,20200,Housing Needs - HB (Housing Benefit),D2514,Accommodation Costs,310.00,Solutions Accommodation Providers Ltd,Accommodation Costs,2014413,201910
Rother District Council,31/12/2019,091HOUSING,Housing and Community Services,20200,Housing Needs - HB (Housing Benefit),D2514,Accommodation Costs,"1,240.00",Solutions Accommodation Providers Ltd,Accommodation Costs,2014413,201910
Rother District Council,31/12/2019,101RESOURCES,Resources,20216,Cost Of Collection,D2509,Consultants and Other Services,72.10,Wilson�s Express Hastings Ltd,Consultants and other services - Consultants Fees,2014498,201910
Rother District Council,01/01/2020,031RESOURCES,Executive Directors & Corporate Core,20175,Administrative Offices - T.H. Annex (NOT CHP),B1100,Repairs to Premises,"1,012.90",ADT Fire and  Security Plc,Repairs to Premises - Intruder Alarm System Monitor/Maint,2014394,201910
Rother District Council,01/01/2020,091HOUSING,Housing and Community Services,20145,Maintenance Services,C1101,Vehicle Repairs & Servicing,90.00,Asset Monitoring Solutions Group (UK) Ltd,Vehicle Repairs & Servicing,2014510,201910
Rother District Council,01/01/2020,091HOUSING,Housing and Community Services,20235,Rye Community Help Point,D2621,Telephones,50.95,Beaming Ltd,Telephones - Broadband Connection,2014647,201910
Rother District Council,01/01/2020,021CORP,Corporate Services & Human Resources,20166,Parliamentary Elections,B2312,Hire of premises (RDC),250.00,Cooden Beach Sports and Social Club,Hire of premises (RDC),2014896,201910
Rother District Council,01/01/2020,091HOUSING,Housing and Community Services,20107,Camber Beach & Foreshore,D2621,Telephones,29.48,Daisy Communications PLC,Telephones - Telephone Call Costs+Line Rental,2014750,201910
Rother District Council,01/01/2020,091HOUSING,Housing and Community Services,20102,Rother Museum Services,D2621,Telephones,14.74,Daisy Communications PLC,Telephones - Telephone Call Costs+Line Rental,2014750,201910
Rother District Council,01/01/2020,031RESOURCES,Executive Directors & Corporate Core,20180,Emergency Planning,D2621,Telephones,14.74,Daisy Communications PLC,Telephones - Telephone Call Costs+Line Rental,2014750,201910
Rother District Council,01/01/2020,041ENVIRON,Environmental Services,32134,EH Pollution R + W Partnership,D2621,Telephones,14.74,Daisy Communications PLC,Telephones - Telephone Call Costs+Line Rental,2014750,201910
Rother District Council,01/01/2020,101RESOURCES,Resources,20242,Communications-Phones,D2621,Telephones,88.54,Daisy Communications PLC,Telephones - Telephone Call Costs+Line Rental,2014750,201910
Rother District Council,01/01/2020,101RESOURCES,Resources,20239,Computer Services,D2621,Telephones,29.48,Daisy Communications PLC,Telephones - Telephone Call Costs+Line Rental,2014750,201910
Rother District Council,01/01/2020,101RESOURCES,Resources,20239,Computer Services,D2513,Hired and Contracted services,168.50,Edward Baden Ltd,Hired and Contracted services,2015760,201912
Rother District Council,01/01/2020,031RESOURCES,Executive Directors & Corporate Core,20180,Emergency Planning,D2922,Subscriptions,120.00,Emergency Planning Society,Subscriptions - Subscription to Organisations,2014659,201910
Rother District Council,01/01/2020,101RESOURCES,Resources,20216,Cost Of Collection,D2513,Hired and Contracted services,110.00,Her Majestys Court Service,Hired and contracted services - Court Costs/Fees,2014648,201910
Rother District Council,01/01/2020,091HOUSING,Housing and Community Services,20200,Housing Needs - HB (Housing Benefit),D2514,Accommodation Costs,427.50,Imperial Portfolios Ltd,Accommodation Costs,2014466,201910
Rother District Council,01/01/2020,091HOUSING,Housing and Community Services,20200,Housing Needs - HB (Housing Benefit),D2514,Accommodation Costs,460.00,Imperial Portfolios Ltd,Accommodation Costs,2014466,201910
Rother District Council,01/01/2020,091HOUSING,Housing and Community Services,20200,Housing Needs - HB (Housing Benefit),D2514,Accommodation Costs,57.50,Imperial Portfolios Ltd,Accommodation Costs,2014466,201910
Rother District Council,01/01/2020,091HOUSING,Housing and Community Services,20200,Housing Needs - HB (Housing Benefit),D2514,Accommodation Costs,"2,092.50",Imperial Portfolios Ltd,Accommodation Costs,2014466,201910
Rother District Council,01/01/2020,091HOUSING,Housing and Community Services,20200,Housing Needs - HB (Housing Benefit),D2514,Accommodation Costs,"1,472.50",Imperial Portfolios Ltd,Accommodation Costs,2014466,201910
Rother District Council,01/01/2020,091HOUSING,Housing and Community Services,20200,Housing Needs - HB (Housing Benefit),D2514,Accommodation Costs,57.50,Imperial Portfolios Ltd,Accommodation Costs,2014466,201910
Rother District Council,01/01/2020,091HOUSING,Housing and Community Services,20200,Housing Needs - HB (Housing Benefit),D2514,Accommodation Costs,"1,782.50",Imperial Portfolios Ltd,Accommodation Costs,2014466,201910
Rother District Council,01/01/2020,091HOUSING,Housing and Community Services,20200,Housing Needs - HB (Housing Benefit),D2514,Accommodation Costs,517.50,Imperial Portfolios Ltd,Accommodation Costs,2014466,201910
Rother District Council,01/01/2020,091HOUSING,Housing and Community Services,20200,Housing Needs - HB (Housing Benefit),D2514,Accommodation Costs,"1,782.50",Imperial Portfolios Ltd,Accommodation Costs,2014466,201910
Rother District Council,01/01/2020,101RESOURCES,Resources,20242,Communications-Phones,D2621,Telephones,26.00,KCOM Group Plc,Telephones - KCOM Smartnumber Charges,2014706,201910
Rother District Council,01/01/2020,101RESOURCES,Resources,20242,Communications-Phones,D2621,Telephones,596.69,KCOM Group Plc,Telephones - KCOM Smartnumber Charges,2014705,201910
Rother District Council,01/01/2020,101RESOURCES,Resources,20242,Communications-Phones,D2621,Telephones,"9,916.14",KCOM Group Plc,Telephones - KCOM Smartnumber Charges,2014707,201910
Rother District Council,01/01/2020,091HOUSING,Housing and Community Services,20125,Coast Protection,E2302,Third party payment private contractors,400.00,Laurence Beetham,Third party payment private contractors - Fairlight Compressor Maintenance Contract,2014366,201910
Rother District Council,01/01/2020,101RESOURCES,Resources,20209,Corporate management,D2513,Hired and Contracted services,598.30,Lloyds Bank,Bank Charges,2014768,201910
Rother District Council,01/01/2020,101RESOURCES,Resources,20209,Corporate management,D2513,Hired and Contracted services,20.01,Lloyds Bank,Bank Charges,2014766,201910
Rother District Council,01/01/2020,101RESOURCES,Resources,20209,Corporate management,D2513,Hired and Contracted services,20.00,Lloyds Bank,Bank Charges,2014769,201910
Rother District Council,01/01/2020,101RESOURCES,Resources,20209,Corporate management,D2513,Hired and Contracted services,20.00,Lloyds Bank,Bank Charges,2014771,201910
Rother District Council,01/01/2020,101RESOURCES,Resources,20209,Corporate management,D2513,Hired and Contracted services,"1,115.68",Lloyds Bank,Bank Charges,2014765,201910
Rother District Council,01/01/2020,101RESOURCES,Resources,20209,Corporate management,D2513,Hired and Contracted services,20.00,Lloyds Bank,Bank Charges,2014767,201910
Rother District Council,01/01/2020,101RESOURCES,Resources,20209,Corporate management,D2513,Hired and Contracted services,20.00,Lloyds Bank,Bank Charges,2014770,201910
Rother District Council,01/01/2020,101RESOURCES,Resources,20209,Corporate management,D2513,Hired and Contracted services,535.79,Lloyds Bank,Bank Charges,2014774,201910
Rother District Council,01/01/2020,101RESOURCES,Resources,20209,Corporate management,D2513,Hired and Contracted services,20.45,Lloyds Bank,Bank Charges,2014772,201910
Rother District Council,01/01/2020,101RESOURCES,Resources,20209,Corporate management,D2513,Hired and Contracted services,20.00,Lloyds Bank,Bank Charges,2014773,201910
Rother District Council,01/01/2020,101RESOURCES,Resources,20209,Corporate management,D2513,Hired and Contracted services,20.09,Merchant Rentals Ltd,Hired and contracted services - Streamline Machine-Rental,2014642,201910
Rother District Council,01/01/2020,091HOUSING,Housing and Community Services,20108,Bexhill Promenade & Foreshore,D2623,Radios and licences,11.92,Radio Relay,Radios and licences,2014479,201910
Rother District Council,01/01/2020,091HOUSING,Housing and Community Services,20109,Sports Development,D2923,Grants made,500.00,Skiltek Ltd,Grants made - Active Sussex Project workforce dev.,2014429,201910
Rother District Council,02/01/2020,101RESOURCES,Resources,20240,Printing Services,D2417,Photocopy Paper by external suppliers,303.32,Canon (UK) Ltd,Photocopy Paper by external supplier - Wide Format Consumables,2014544,201910
Rother District Council,02/01/2020,091HOUSING,Housing and Community Services,20206,Syrians,D2513,Hired and Contracted services,"1,026.00",In2Play CIC,Hired and contracted services - Syrian-Education-Exempt VAT,2014425,201910
Rother District Council,02/01/2020,091HOUSING,Housing and Community Services,20137,Car Parks,B1100,Repairs to Premises,650.82,Littlewood Fencing Ltd,Repairs to Premises - Car Park Maintenance,2014378,201910
Rother District Council,02/01/2020,081ACQUISIT,"Acquisitions, Transformation and Regeneration",20101,Cultural Development,D2923,Grants made,500.00,Mr Kenton Lowe,Grants made - Arts Development Projects,2014681,201910
Rother District Council,02/01/2020,091HOUSING,Housing and Community Services,20206,Syrians,D2513,Hired and Contracted services,"1,775.50",Muna Smallman,Hired and contracted services - Syrian-Translation Services,2014509,201910
Rother District Council,02/01/2020,091HOUSING,Housing and Community Services,20200,Housing Needs - HB (Housing Benefit),D2514,Accommodation Costs,992.00,Paramount Independent Property Services LLP,Accommodation Costs,2014463,201910
Rother District Council,02/01/2020,091HOUSING,Housing and Community Services,20200,Housing Needs - HB (Housing Benefit),D2514,Accommodation Costs,"2,015.00",Paramount Independent Property Services LLP,Accommodation Costs,2014463,201910
Rother District Council,02/01/2020,091HOUSING,Housing and Community Services,20200,Housing Needs - HB (Housing Benefit),D2514,Accommodation Costs,"1,395.00",Paramount Independent Property Services LLP,Accommodation Costs,2014463,201910
Rother District Council,02/01/2020,091HOUSING,Housing and Community Services,20200,Housing Needs - HB (Housing Benefit),D2514,Accommodation Costs,"2,015.00",Paramount Independent Property Services LLP,Accommodation Costs,2014463,201910
Rother District Council,02/01/2020,091HOUSING,Housing and Community Services,20200,Housing Needs - HB (Housing Benefit),D2514,Accommodation Costs,440.00,Paramount Independent Property Services LLP,Accommodation Costs,2014463,201910
Rother District Council,02/01/2020,071STRAT,Strategy and Planning,20246,Planning Applications,D2509,Consultants and Other Services,250.00,Rural Planning Ltd,Consultants and other services - Consultants Fees,2014432,201910
Rother District Council,02/01/2020,091HOUSING,Housing and Community Services,20109,Sports Development,D2923,Grants made,800.00,Skiltek Ltd,Grants made - Sports Development-Active Rother,2014430,201912
Rother District Council,02/01/2020,041ENVIRON,Environmental Services,32134,EH Pollution R + W Partnership,D2352,Clothing and Uniforms,195.00,SuperStitch 86,Clothing and Uniforms - EnvH- Protective Clothing EnvHealth,2014379,201910
Rother District Council,02/01/2020,101RESOURCES,Resources,20242,Communications-Phones,D2621,Telephones,26.70,TalkTalk Communications Ltd T/A TalkTalk Business,Telephones - Telephone Call Costs+Line Rental,2015573,201911
Rother District Council,02/01/2020,091HOUSING,Housing and Community Services,20200,Housing Needs - HB (Housing Benefit),D2514,Accommodation Costs,"1,674.00",The Northern Hotel,Accommodation Costs,2014462,201910
Rother District Council,03/01/2020,091HOUSING,Housing and Community Services,20123,Cemeteries,D2513,Hired and Contracted services,"1,370.00",Bexhill Funeral Service,Hired and contracted services - Parks-Public Health Burials,2014390,201910
Rother District Council,03/01/2020,091HOUSING,Housing and Community Services,20137,Car Parks,B1100,Repairs to Premises,225.00,CountyClean Environmental Services Ltd,Sewerage - Sewage/Cesspool Emptying,2014607,201910
Rother District Council,03/01/2020,081ACQUISIT,"Acquisitions, Transformation and Regeneration",20154,Committee Property Account,B1100,Repairs to Premises,225.00,CountyClean Environmental Services Ltd,Sewerage - Sewage/Cesspool Emptying,2014607,201910
Rother District Council,03/01/2020,091HOUSING,Housing and Community Services,20128,Public Conveniences,B1100,Repairs to Premises,225.00,CountyClean Environmental Services Ltd,Sewerage - Sewage/Cesspool Emptying,2014607,201910
Rother District Council,03/01/2020,091HOUSING,Housing and Community Services,20128,Public Conveniences,B1100,Repairs to Premises,225.00,CountyClean Environmental Services Ltd,Sewerage - Sewage/Cesspool Emptying,2014607,201910
Rother District Council,03/01/2020,081ACQUISIT,"Acquisitions, Transformation and Regeneration",20154,Committee Property Account,B1100,Repairs to Premises,175.00,CountyClean Environmental Services Ltd,Repairs to Premises - Cesspool Pumping station service/Call out,2014607,201910
Rother District Council,03/01/2020,091HOUSING,Housing and Community Services,20128,Public Conveniences,B1100,Repairs to Premises,175.00,CountyClean Environmental Services Ltd,Repairs to Premises - Cesspool Pumping station service/Call out,2014607,201910
Rother District Council,03/01/2020,091HOUSING,Housing and Community Services,20128,Public Conveniences,B1100,Repairs to Premises,175.00,CountyClean Environmental Services Ltd,Repairs to Premises - Cesspool Pumping station service/Call out,2014607,201910
Rother District Council,03/01/2020,091HOUSING,Housing and Community Services,20137,Car Parks,B1100,Repairs to Premises,175.00,CountyClean Environmental Services Ltd,Repairs to Premises - Cesspool Pumping station service/Call out,2014607,201910
Rother District Council,03/01/2020,101RESOURCES,Resources,20216,Cost Of Collection,D2513,Hired and Contracted services,9.00,H M Land Registry,Hired and contracted services - Council Tax-Land Registry Enquiries,2014758,201910
Rother District Council,03/01/2020,071STRAT,Strategy and Planning,20246,Planning Applications,D2513,Hired and Contracted services,12.00,H M Land Registry,Hired and contracted services - Land Registry-Planning,2014758,201910
Rother District Council,03/01/2020,041ENVIRON,Environmental Services,32144,EH Environmental Services Admin R + W Partnership,D2513,Hired and Contracted services,187.50,Rocksure Systems Ltd,Hired and Contracted services,2014465,201910
Rother District Council,03/01/2020,091HOUSING,Housing and Community Services,20112,Bexhill Leisure Centre,B1100,Repairs to Premises,225.25,Streetlights,Repairs to Premises - Lighting Repairs,2014593,201910
Rother District Council,04/01/2020,091HOUSING,Housing and Community Services,20200,Housing Needs - HB (Housing Benefit),D2514,Accommodation Costs,"7,500.00",Paramount Independent Property Services LLP,Accommodation Costs,2015873,201912
Rother District Council,05/01/2020,031RESOURCES,Executive Directors & Corporate Core,20179,Communications,E1101,Third party payment other LAs,"3,600.00",East Sussex County Council,Third party payment other LAs - Communications-Officer costs,2014454,201910
Rother District Council,05/01/2020,091HOUSING,Housing and Community Services,20200,Housing Needs - HB (Housing Benefit),D2514,Accommodation Costs,"1,900.00",Specialist Care UK Group Ltd,Accommodation Costs,2014412,201910
Rother District Council,05/01/2020,091HOUSING,Housing and Community Services,20200,Housing Needs - HB (Housing Benefit),D2514,Accommodation Costs,150.00,Specialist Care UK Group Ltd,Accommodation Costs,2014410,201910
Rother District Council,05/01/2020,091HOUSING,Housing and Community Services,20200,Housing Needs - HB (Housing Benefit),D2514,Accommodation Costs,262.50,Specialist Care UK Group Ltd,Accommodation Costs,2014411,201910
Rother District Council,05/01/2020,091HOUSING,Housing and Community Services,20200,Housing Needs - HB (Housing Benefit),D2514,Accommodation Costs,262.50,Specialist Care UK Group Ltd,Accommodation Costs,2014404,201910
Rother District Council,05/01/2020,091HOUSING,Housing and Community Services,20200,Housing Needs - HB (Housing Benefit),D2514,Accommodation Costs,175.00,Specialist Care UK Group Ltd,Accommodation Costs,2014405,201910
Rother District Council,05/01/2020,091HOUSING,Housing and Community Services,20200,Housing Needs - HB (Housing Benefit),D2514,Accommodation Costs,262.50,Specialist Care UK Group Ltd,Accommodation Costs,2014406,201910
Rother District Council,05/01/2020,091HOUSING,Housing and Community Services,20200,Housing Needs - HB (Housing Benefit),D2514,Accommodation Costs,112.50,Specialist Care UK Group Ltd,Accommodation Costs,2014407,201910
Rother District Council,05/01/2020,091HOUSING,Housing and Community Services,20200,Housing Needs - HB (Housing Benefit),D2514,Accommodation Costs,350.00,Specialist Care UK Group Ltd,Accommodation Costs,2014408,201910
Rother District Council,05/01/2020,091HOUSING,Housing and Community Services,20200,Housing Needs - HB (Housing Benefit),D2514,Accommodation Costs,175.00,Specialist Care UK Group Ltd,Accommodation Costs,2014409,201910
Rother District Council,05/01/2020,091HOUSING,Housing and Community Services,20102,Rother Museum Services,B1100,Repairs to Premises,120.90,Stannah Lift Services Ltd,Repairs to Premises - Specified Repairs and Works listed,2014534,201910
Rother District Council,05/01/2020,041ENVIRON,Environmental Services,32142,EH Taxi and Private Hire Licenses R + W Partnership,D2513,Hired and Contracted services,80.00,uCheck,Hired and contracted services - Service fee paid,2014645,201910
Rother District Council,05/01/2020,041ENVIRON,Environmental Services,32142,EH Taxi and Private Hire Licenses R + W Partnership,D2513,Hired and Contracted services,22.34,uCheck,Hired and contracted services - Service fee paid,2014645,201910
Rother District Council,06/01/2020,031RESOURCES,Executive Directors & Corporate Core,20173,Administrative Offices - Town Hall,B1100,Repairs to Premises,328.11,Alfa Electric Ltd,Repairs to Premises - Electrical Installation,2014563,201910
Rother District Council,06/01/2020,091HOUSING,Housing and Community Services,20145,Maintenance Services,C1101,Vehicle Repairs & Servicing,20.42,Autolec Motor Factors,Vehicle Repairs & Servicing,2014504,201910
Rother District Council,06/01/2020,081ACQUISIT,"Acquisitions, Transformation and Regeneration",20153,"Elva Business Centre, Bexhill",B1100,Repairs to Premises,195.00,CountyClean Environmental Services Ltd,Repairs to Premises - Cesspool Pumping station service/Call out,2014508,201910
Rother District Council,06/01/2020,091HOUSING,Housing and Community Services,20128,Public Conveniences,B2422,Sewerage,330.00,CountyClean Environmental Services Ltd,Sewerage - Sewage/Cesspool Emptying,2014507,201910
Rother District Council,06/01/2020,081ACQUISIT,"Acquisitions, Transformation and Regeneration",20153,"Elva Business Centre, Bexhill",B2422,Sewerage,235.00,CountyClean Environmental Services Ltd,Sewerage Parks- Emptying of Cesspit,2014508,201910
Rother District Council,06/01/2020,999NOREPORT,Not included in reporting,90000,Balance sheet all accounts,P1065,Transitional relief grant payable/receivable,"27,450.00",Department for Communities and Local Government,Transitional relief grant payable/receivable,2015466,201911
Rother District Council,06/01/2020,101RESOURCES,Resources,20216,Cost Of Collection,D2626,Postages,327.33,DSI Billing Services Ltd,Postages - DSI Billing,2014825,201910
Rother District Council,06/01/2020,091HOUSING,Housing and Community Services,20200,Housing Needs - HB (Housing Benefit),D2514,Accommodation Costs,315.00,High Weald Property Investments,Accommodation Costs,2014503,201910
Rother District Council,06/01/2020,101RESOURCES,Resources,20242,Communications-Phones,D2621,Telephones,"2,107.77",KCOM Group Plc,Telephones - KCOM Smartnumber Charges,2015284,201911
Rother District Council,06/01/2020,031RESOURCES,Executive Directors & Corporate Core,20173,Administrative Offices - Town Hall,B1100,Repairs to Premises,857.34,Kerry SCS Ltd,Repairs to Premises - Specified Repairs and Works listed,2015235,201911
Rother District Council,06/01/2020,091HOUSING,Housing and Community Services,20200,Housing Needs - HB (Housing Benefit),D2514,Accommodation Costs,385.00,Lets 2 Share Limited,Accommodation Costs,2014513,201910
Rother District Council,06/01/2020,091HOUSING,Housing and Community Services,20200,Housing Needs - HB (Housing Benefit),D2514,Accommodation Costs,385.00,Lets 2 Share Limited,Accommodation Costs,2014513,201910
Rother District Council,06/01/2020,091HOUSING,Housing and Community Services,20200,Housing Needs - HB (Housing Benefit),D2514,Accommodation Costs,820.00,Lets 2 Share Limited,Accommodation Costs,2014874,201910
Rother District Council,06/01/2020,091HOUSING,Housing and Community Services,20200,Housing Needs - HB (Housing Benefit),D2514,Accommodation Costs,385.00,Lets 2 Share Limited,Accommodation Costs,2014703,201910
Rother District Council,06/01/2020,091HOUSING,Housing and Community Services,20200,Housing Needs - HB (Housing Benefit),D2514,Accommodation Costs,385.00,Lets 2 Share Limited,Accommodation Costs,2014513,201910
Rother District Council,06/01/2020,101RESOURCES,Resources,20209,Corporate management,D2513,Hired and Contracted services,116.00,Lloyds Bank,Bank Charges,2015570,201911
Rother District Council,06/01/2020,091HOUSING,Housing and Community Services,20202,Rother Tenant Finder (prev Rother Letting Service),D2514,Accommodation Costs,"1,000.00",REDACTED PERSONAL DATA,Accommodation Costs - Homelessness services Deposit for Landlords,2014457,201910
Rother District Council,06/01/2020,091HOUSING,Housing and Community Services,20200,Housing Needs - HB (Housing Benefit),D2514,Accommodation Costs,780.00,PADA Hanlon Ltd,Accommodation Costs,2014471,201910
Rother District Council,06/01/2020,031RESOURCES,Executive Directors & Corporate Core,20170,Communications-Postages,D2626,Postages,1.38,Pitney Bowes Purchase Power,Hired and contracted services - Postages franking machine costs,2014690,201910
Rother District Council,06/01/2020,091HOUSING,Housing and Community Services,20200,Housing Needs - HB (Housing Benefit),D2514,Accommodation Costs,390.00,Roost People Ltd,Accommodation Costs,2014421,201910
Rother District Council,06/01/2020,031RESOURCES,Executive Directors & Corporate Core,20162,Electoral Registration,D2626,Postages,99.50,Royal Mail Group Ltd,Postages - Response Service-Royal Mail Chg,2014481,201910
Rother District Council,06/01/2020,081ACQUISIT,"Acquisitions, Transformation and Regeneration",20118,Tourism,D2513,Hired and Contracted services,500.00,Rye Christmas Festival,Hired and contracted services - Rye Marketing Campaign,2014595,201910
Rother District Council,06/01/2020,091HOUSING,Housing and Community Services,20109,Sports Development,D2923,Grants made,480.00,Rye Harbour Sailability,Grants made - Active Sussex Project workforce dev.,2014515,201910
Rother District Council,06/01/2020,081ACQUISIT,"Acquisitions, Transformation and Regeneration",20267,Property Investment Strategy - 18-40 Beeching Road ( Land and Buildings),B2201,Electricity,32.08,SmartestEnergy Ltd,Electricity - Electricity Charges,2014604,201910
Rother District Council,06/01/2020,081ACQUISIT,"Acquisitions, Transformation and Regeneration",20267,Property Investment Strategy - 18-40 Beeching Road ( Land and Buildings),B2201,Electricity,194.09,SmartestEnergy Ltd,Electricity - Electricity Charges,2014604,201910
Rother District Council,06/01/2020,091HOUSING,Housing and Community Services,20200,Housing Needs - HB (Housing Benefit),D2514,Accommodation Costs,104.00,South Down Residential Ltd,Accommodation Costs,2014490,201910
Rother District Council,06/01/2020,091HOUSING,Housing and Community Services,20200,Housing Needs - HB (Housing Benefit),D2514,Accommodation Costs,264.00,South Down Residential Ltd,Accommodation Costs,2014490,201910
Rother District Council,06/01/2020,091HOUSING,Housing and Community Services,20200,Housing Needs - HB (Housing Benefit),D2514,Accommodation Costs,26.00,South Down Residential Ltd,Accommodation Costs,2014490,201910
Rother District Council,06/01/2020,091HOUSING,Housing and Community Services,20200,Housing Needs - HB (Housing Benefit),D2514,Accommodation Costs,66.00,South Down Residential Ltd,Accommodation Costs,2014490,201910
Rother District Council,06/01/2020,091HOUSING,Housing and Community Services,20329,Rough Sleeping Initiative,D2514,Accommodation Costs,40.80,South Down Residential Ltd,Accommodation Costs,2014490,201910
Rother District Council,06/01/2020,091HOUSING,Housing and Community Services,20329,Rough Sleeping Initiative,D2514,Accommodation Costs,104.00,South Down Residential Ltd,Accommodation Costs,2014490,201910
Rother District Council,06/01/2020,091HOUSING,Housing and Community Services,20329,Rough Sleeping Initiative,D2514,Accommodation Costs,10.20,South Down Residential Ltd,Accommodation Costs,2014490,201910
Rother District Council,06/01/2020,091HOUSING,Housing and Community Services,20329,Rough Sleeping Initiative,D2514,Accommodation Costs,26.00,South Down Residential Ltd,Accommodation Costs,2014490,201910
Rother District Council,06/01/2020,091HOUSING,Housing and Community Services,20329,Rough Sleeping Initiative,D2514,Accommodation Costs,40.80,South Down Residential Ltd,Accommodation Costs,2014490,201910
Rother District Council,06/01/2020,091HOUSING,Housing and Community Services,20329,Rough Sleeping Initiative,D2514,Accommodation Costs,104.00,South Down Residential Ltd,Accommodation Costs,2014490,201910
Rother District Council,06/01/2020,091HOUSING,Housing and Community Services,20329,Rough Sleeping Initiative,D2514,Accommodation Costs,10.20,South Down Residential Ltd,Accommodation Costs,2014490,201910
Rother District Council,06/01/2020,091HOUSING,Housing and Community Services,20329,Rough Sleeping Initiative,D2514,Accommodation Costs,26.00,South Down Residential Ltd,Accommodation Costs,2014490,201910
Rother District Council,06/01/2020,091HOUSING,Housing and Community Services,20329,Rough Sleeping Initiative,D2514,Accommodation Costs,10.00,South Down Residential Ltd,Accommodation Costs,2014490,201910
Rother District Council,06/01/2020,091HOUSING,Housing and Community Services,20329,Rough Sleeping Initiative,D2514,Accommodation Costs,40.80,South Down Residential Ltd,Accommodation Costs,2014490,201910
Rother District Council,06/01/2020,091HOUSING,Housing and Community Services,20329,Rough Sleeping Initiative,D2514,Accommodation Costs,62.40,South Down Residential Ltd,Accommodation Costs,2014490,201910
Rother District Council,06/01/2020,091HOUSING,Housing and Community Services,20329,Rough Sleeping Initiative,D2514,Accommodation Costs,10.20,South Down Residential Ltd,Accommodation Costs,2014490,201910
Rother District Council,06/01/2020,091HOUSING,Housing and Community Services,20329,Rough Sleeping Initiative,D2514,Accommodation Costs,15.60,South Down Residential Ltd,Accommodation Costs,2014490,201910
Rother District Council,06/01/2020,091HOUSING,Housing and Community Services,20200,Housing Needs - HB (Housing Benefit),D2514,Accommodation Costs,114.28,South Down Residential Ltd,Accommodation Costs,2014490,201910
Rother District Council,06/01/2020,091HOUSING,Housing and Community Services,20200,Housing Needs - HB (Housing Benefit),D2514,Accommodation Costs,294.00,South Down Residential Ltd,Accommodation Costs,2014490,201910
Rother District Council,06/01/2020,091HOUSING,Housing and Community Services,20200,Housing Needs - HB (Housing Benefit),D2514,Accommodation Costs,28.58,South Down Residential Ltd,Accommodation Costs,2014490,201910
Rother District Council,06/01/2020,091HOUSING,Housing and Community Services,20200,Housing Needs - HB (Housing Benefit),D2514,Accommodation Costs,73.50,South Down Residential Ltd,Accommodation Costs,2014490,201910
Rother District Council,06/01/2020,091HOUSING,Housing and Community Services,20329,Rough Sleeping Initiative,D2514,Accommodation Costs,51.00,South Down Residential Ltd,Accommodation Costs,2014490,201910
